Body Name,Body,Service Area Categorisation,Service Division Categorisation,Responsible Unit,Expenses Type,Detailed Expenses Type,Payment Date,Transaction Number,Payment Amount,Supplier Type,Supplier Name,Supplier Id
Portsmouth City Council,PCC,Costs below Net Cost of Services,Trading,Regeneration,Premises-Related Expenditure,Rates,28-Sep-23,6740041,"2,876.00",OTHER LOCAL AUTHORITY,LEEDS CITY COUNCIL,300000020461628
Portsmouth City Council,PCC,Costs below Net Cost of Services,Trading,Regeneration,Premises-Related Expenditure,Rates,28-Sep-23,6740120,130,SUPPLIER,MANCHESTER CITY COUNCIL,300000112662644
Portsmouth City Council,PCC,Costs below Net Cost of Services,Trading,Regeneration,Premises-Related Expenditure,Rates,28-Sep-23,6740120,430,SUPPLIER,MANCHESTER CITY COUNCIL,300000112662644
Portsmouth City Council,PCC,Housing Revenue Account,"Rents, Rates, Taxes and Other Charges","Housing, Neighbourhood and Building Services",Premises-Related Expenditure,Rates,25-Sep-23,6739215,135,OTHER LOCAL AUTHORITY,HAVANT BOROUGH COUNCIL,300000020457057
Portsmouth City Council,PCC,Housing Revenue Account,"Rents, Rates, Taxes and Other Charges","Housing, Neighbourhood and Building Services",Premises-Related Expenditure,Rates,25-Sep-23,6739215,135,OTHER LOCAL AUTHORITY,HAVANT BOROUGH COUNCIL,300000020457057
Portsmouth City Council,PCC,Housing Services,Homelessness,"Housing, Neighbourhood and Building Services",Premises-Related Expenditure,Rents,25-Sep-23,6739206,"2,760.00",SOLETRADER,Classified as 'personal data' (under the Data Protection Act 2018),300000020482994
Portsmouth City Council,PCC,Housing Revenue Account,"Rents, Rates, Taxes and Other Charges","Housing, Neighbourhood and Building Services",Premises-Related Expenditure,Rates,25-Sep-23,6739215,256,OTHER LOCAL AUTHORITY,HAVANT BOROUGH COUNCIL,300000020457057
Portsmouth City Council,PCC,Housing Services,Homelessness,"Housing, Neighbourhood and Building Services",Premises-Related Expenditure,Rents,25-Sep-23,6739195,"2,826.34",SOLETRADER,Classified as 'personal data' (under the Data Protection Act 2018),300000020470862
Portsmouth City Council,PCC,Housing Revenue Account,"Rents, Rates, Taxes and Other Charges","Housing, Neighbourhood and Building Services",Premises-Related Expenditure,Rates,25-Sep-23,6739213,157,OTHER LOCAL AUTHORITY,HAVANT BOROUGH COUNCIL,300000020457057
Portsmouth City Council,PCC,Housing Revenue Account,"Rents, Rates, Taxes and Other Charges","Housing, Neighbourhood and Building Services",Premises-Related Expenditure,Rates,25-Sep-23,6739215,135,OTHER LOCAL AUTHORITY,HAVANT BOROUGH COUNCIL,300000020457057
Portsmouth City Council,PCC,Housing Revenue Account,"Rents, Rates, Taxes and Other Charges","Housing, Neighbourhood and Building Services",Premises-Related Expenditure,Rates,25-Sep-23,6739215,135,OTHER LOCAL AUTHORITY,HAVANT BOROUGH COUNCIL,300000020457057
Portsmouth City Council,PCC,Housing Revenue Account,"Rents, Rates, Taxes and Other Charges","Housing, Neighbourhood and Building Services",Premises-Related Expenditure,Rates,25-Sep-23,6739213,135,OTHER LOCAL AUTHORITY,HAVANT BOROUGH COUNCIL,300000020457057
Portsmouth City Council,PCC,Housing Revenue Account,"Rents, Rates, Taxes and Other Charges","Housing, Neighbourhood and Building Services",Premises-Related Expenditure,Rates,25-Sep-23,6739215,135,OTHER LOCAL AUTHORITY,HAVANT BOROUGH COUNCIL,300000020457057
Portsmouth City Council,PCC,Housing Revenue Account,"Rents, Rates, Taxes and Other Charges","Housing, Neighbourhood and Building Services",Premises-Related Expenditure,Rates,25-Sep-23,6739213,135,OTHER LOCAL AUTHORITY,HAVANT BOROUGH COUNCIL,300000020457057
Portsmouth City Council,PCC,Housing Revenue Account,"Rents, Rates, Taxes and Other Charges","Housing, Neighbourhood and Building Services",Premises-Related Expenditure,Rates,25-Sep-23,6739213,135,OTHER LOCAL AUTHORITY,HAVANT BOROUGH COUNCIL,300000020457057
Portsmouth City Council,PCC,Housing Revenue Account,"Rents, Rates, Taxes and Other Charges","Housing, Neighbourhood and Building Services",Premises-Related Expenditure,Rates,25-Sep-23,6739213,135,OTHER LOCAL AUTHORITY,HAVANT BOROUGH COUNCIL,300000020457057
Portsmouth City Council,PCC,Housing Revenue Account,"Rents, Rates, Taxes and Other Charges","Housing, Neighbourhood and Building Services",Premises-Related Expenditure,Rates,25-Sep-23,6739213,135,OTHER LOCAL AUTHORITY,HAVANT BOROUGH COUNCIL,300000020457057
Portsmouth City Council,PCC,Housing Services,Homelessness,"Housing, Neighbourhood and Building Services",Premises-Related Expenditure,Rents,25-Sep-23,6739195,"2,826.34",SOLETRADER,Classified as 'personal data' (under the Data Protection Act 2018),300000020470862
Portsmouth City Council,PCC,Housing Revenue Account,"Rents, Rates, Taxes and Other Charges","Housing, Neighbourhood and Building Services",Premises-Related Expenditure,Rates,25-Sep-23,6739213,135,OTHER LOCAL AUTHORITY,HAVANT BOROUGH COUNCIL,300000020457057
Portsmouth City Council,PCC,Housing Revenue Account,"Rents, Rates, Taxes and Other Charges","Housing, Neighbourhood and Building Services",Premises-Related Expenditure,Rates,25-Sep-23,6739213,269,OTHER LOCAL AUTHORITY,HAVANT BOROUGH COUNCIL,300000020457057
Portsmouth City Council,PCC,Housing Services,Homelessness,"Housing, Neighbourhood and Building Services",Premises-Related Expenditure,Rents,25-Sep-23,6739219,"1,830.00",SOLETRADER,Classified as 'personal data' (under the Data Protection Act 2018),300000020482847
Portsmouth City Council,PCC,Housing Revenue Account,"Rents, Rates, Taxes and Other Charges","Housing, Neighbourhood and Building Services",Premises-Related Expenditure,Rates,25-Sep-23,6739213,135,OTHER LOCAL AUTHORITY,HAVANT BOROUGH COUNCIL,300000020457057
Portsmouth City Council,PCC,Housing Services,Homelessness,"Housing, Neighbourhood and Building Services",Premises-Related Expenditure,Rents,25-Sep-23,6739225,"2,220.00",SUPPLIER,DOLPHIN PROPERTY RENTAL,300000020461423
Portsmouth City Council,PCC,Housing Revenue Account,"Rents, Rates, Taxes and Other Charges","Housing, Neighbourhood and Building Services",Premises-Related Expenditure,Rates,25-Sep-23,6739213,135,OTHER LOCAL AUTHORITY,HAVANT BOROUGH COUNCIL,300000020457057
Portsmouth City Council,PCC,Housing Revenue Account,"Rents, Rates, Taxes and Other Charges","Housing, Neighbourhood and Building Services",Premises-Related Expenditure,Rates,25-Sep-23,6739213,135,OTHER LOCAL AUTHORITY,HAVANT BOROUGH COUNCIL,300000020457057
Portsmouth City Council,PCC,Housing Services,Homelessness,"Housing, Neighbourhood and Building Services",Premises-Related Expenditure,Rents,18-Sep-23,43005,"3,000.00",SOLETRADER,Classified as 'personal data' (under the Data Protection Act 2018),300000020457106
Portsmouth City Council,PCC,Housing Services,Homelessness,"Housing, Neighbourhood and Building Services",Premises-Related Expenditure,Rents,28-Sep-23,6740077,"1,920.00",SOLETRADER,Classified as 'personal data' (under the Data Protection Act 2018),300000020467247
Portsmouth City Council,PCC,Housing Services,Homelessness,"Housing, Neighbourhood and Building Services",Premises-Related Expenditure,Rents,25-Sep-23,6739208,"1,650.00",SOLETRADER,Classified as 'personal data' (under the Data Protection Act 2018),300000020476961
Portsmouth City Council,PCC,Housing Services,Homelessness,"Housing, Neighbourhood and Building Services",Premises-Related Expenditure,Rents,25-Sep-23,6739204,"1,890.00",SOLETRADER,Classified as 'personal data' (under the Data Protection Act 2018),300000020482755
Portsmouth City Council,PCC,Housing Services,Homelessness,"Housing, Neighbourhood and Building Services",Premises-Related Expenditure,Rents,25-Sep-23,6739225,"2,820.00",SUPPLIER,DOLPHIN PROPERTY RENTAL,300000020461423
Portsmouth City Council,PCC,Housing Services,Homelessness,"Housing, Neighbourhood and Building Services",Premises-Related Expenditure,Rents,25-Sep-23,6739198,"1,650.00",SOLETRADER,Classified as 'personal data' (under the Data Protection Act 2018),300000020479484
Portsmouth City Council,PCC,Housing Services,Homelessness,"Housing, Neighbourhood and Building Services",Premises-Related Expenditure,Rents,25-Sep-23,6739203,"1,448.33",SOLETRADER,Classified as 'personal data' (under the Data Protection Act 2018),300000020482749
Portsmouth City Council,PCC,Housing Services,Homelessness,"Housing, Neighbourhood and Building Services",Premises-Related Expenditure,Rents,25-Sep-23,6739255,"1,968.99",SOLETRADER,Classified as 'personal data' (under the Data Protection Act 2018),300000020461845
Portsmouth City Council,PCC,Housing Services,Homelessness,"Housing, Neighbourhood and Building Services",Premises-Related Expenditure,Rents,25-Sep-23,6739317,"11,250.00",SUPPLIER,Classified as 'personal data' (under the Data Protection Act 2018),300000512558782
Portsmouth City Council,PCC,Housing Services,Homelessness,"Housing, Neighbourhood and Building Services",Premises-Related Expenditure,Rents,25-Sep-23,6739207,"1,620.00",SOLETRADER,Classified as 'personal data' (under the Data Protection Act 2018),300000020457873
Portsmouth City Council,PCC,Housing Services,Homelessness,"Housing, Neighbourhood and Building Services",Premises-Related Expenditure,Rents,25-Sep-23,6739210,"1,875.00",SOLETRADER,Classified as 'personal data' (under the Data Protection Act 2018),300000020474472
Portsmouth City Council,PCC,Housing Services,Homelessness,"Housing, Neighbourhood and Building Services",Premises-Related Expenditure,Rents,25-Sep-23,6739283,"2,580.00",SUPPLIER,Classified as 'personal data' (under the Data Protection Act 2018),300000020470705
Portsmouth City Council,PCC,Housing Services,Homelessness,"Housing, Neighbourhood and Building Services",Premises-Related Expenditure,Rents,25-Sep-23,6739182,"2,100.00",SUPPLIER,Classified as 'personal data' (under the Data Protection Act 2018),300000020480090
Portsmouth City Council,PCC,Housing Services,Homelessness,"Housing, Neighbourhood and Building Services",Premises-Related Expenditure,Rents,25-Sep-23,6739269,"2,940.00",SUPPLIER,Classified as 'personal data' (under the Data Protection Act 2018),300000020472316
Portsmouth City Council,PCC,Housing Services,Homelessness,"Housing, Neighbourhood and Building Services",Premises-Related Expenditure,Rents,25-Sep-23,6739295,"2,340.00",SUPPLIER,Classified as 'personal data' (under the Data Protection Act 2018),300000020472897
Portsmouth City Council,PCC,Housing Services,Homelessness,"Housing, Neighbourhood and Building Services",Premises-Related Expenditure,Rents,25-Sep-23,6739194,"2,616.00",SOLETRADER,Classified as 'personal data' (under the Data Protection Act 2018),300000020477758
Portsmouth City Council,PCC,Housing Services,Homelessness,"Housing, Neighbourhood and Building Services",Premises-Related Expenditure,Rents,25-Sep-23,6739217,"2,100.00",SOLETRADER,Classified as 'personal data' (under the Data Protection Act 2018),300000020480176
Portsmouth City Council,PCC,Housing Services,Homelessness,"Housing, Neighbourhood and Building Services",Premises-Related Expenditure,Rents,25-Sep-23,6739196,"3,366.00",SOLETRADER,Classified as 'personal data' (under the Data Protection Act 2018),300000020482117
Portsmouth City Council,PCC,Housing Services,Homelessness,"Housing, Neighbourhood and Building Services",Premises-Related Expenditure,Rents,25-Sep-23,6739256,"2,280.00",SOLETRADER,Classified as 'personal data' (under the Data Protection Act 2018),300000020470961
Portsmouth City Council,PCC,Housing Services,Homelessness,"Housing, Neighbourhood and Building Services",Premises-Related Expenditure,Rents,25-Sep-23,6739205,"1,950.00",SOLETRADER,Classified as 'personal data' (under the Data Protection Act 2018),300000020482767
Portsmouth City Council,PCC,Housing Services,Homelessness,"Housing, Neighbourhood and Building Services",Premises-Related Expenditure,Rents,25-Sep-23,6739211,"2,475.00",SOLETRADER,Classified as 'personal data' (under the Data Protection Act 2018),300000020474888
Portsmouth City Council,PCC,Housing Services,Homelessness,"Housing, Neighbourhood and Building Services",Premises-Related Expenditure,Rents,25-Sep-23,6739194,"1,699.98",SOLETRADER,Classified as 'personal data' (under the Data Protection Act 2018),300000020477758
Portsmouth City Council,PCC,Housing Services,Homelessness,"Housing, Neighbourhood and Building Services",Premises-Related Expenditure,Rents,25-Sep-23,6739192,"2,580.00",SOLETRADER,Classified as 'personal data' (under the Data Protection Act 2018),300000020484434
Portsmouth City Council,PCC,Housing Services,Homelessness,"Housing, Neighbourhood and Building Services",Premises-Related Expenditure,Rents,25-Sep-23,6739264,"1,275.00",SUPPLIER,Classified as 'personal data' (under the Data Protection Act 2018),300000020476892
Portsmouth City Council,PCC,Housing Services,Homelessness,"Housing, Neighbourhood and Building Services",Premises-Related Expenditure,Rents,25-Sep-23,6739220,"1,950.00",SOLETRADER,Classified as 'personal data' (under the Data Protection Act 2018),300000020484086
Portsmouth City Council,PCC,Housing Services,Homelessness,"Housing, Neighbourhood and Building Services",Premises-Related Expenditure,Rents,25-Sep-23,6739264,"1,275.00",SUPPLIER,Classified as 'personal data' (under the Data Protection Act 2018),300000020476892
Portsmouth City Council,PCC,Housing Services,Homelessness,"Housing, Neighbourhood and Building Services",Premises-Related Expenditure,Rents,25-Sep-23,6739249,"-2,310.00",SOLETRADER,Classified as 'personal data' (under the Data Protection Act 2018),300000020473300
Portsmouth City Council,PCC,Housing Services,Homelessness,"Housing, Neighbourhood and Building Services",Premises-Related Expenditure,Rents,25-Sep-23,6739249,"4,620.00",SOLETRADER,Classified as 'personal data' (under the Data Protection Act 2018),300000020473300
Portsmouth City Council,PCC,Housing Services,Homelessness,"Housing, Neighbourhood and Building Services",Premises-Related Expenditure,Rents,25-Sep-23,6739252,"5,130.00",SOLETRADER,Classified as 'personal data' (under the Data Protection Act 2018),300000020463749
Portsmouth City Council,PCC,Housing Services,Homelessness,"Housing, Neighbourhood and Building Services",Premises-Related Expenditure,Rents,25-Sep-23,6739206,"3,150.00",SOLETRADER,Classified as 'personal data' (under the Data Protection Act 2018),300000020482994
Portsmouth City Council,PCC,Housing Services,Homelessness,"Housing, Neighbourhood and Building Services",Premises-Related Expenditure,Rents,25-Sep-23,6739199,"3,000.00",SOLETRADER,Classified as 'personal data' (under the Data Protection Act 2018),300000020467123
Portsmouth City Council,PCC,Housing Revenue Account,"Rents, Rates, Taxes and Other Charges","Housing, Neighbourhood and Building Services",Premises-Related Expenditure,Rates,25-Sep-23,6739215,269,OTHER LOCAL AUTHORITY,HAVANT BOROUGH COUNCIL,300000020457057
Portsmouth City Council,PCC,Housing Revenue Account,"Rents, Rates, Taxes and Other Charges","Housing, Neighbourhood and Building Services",Premises-Related Expenditure,Rates,25-Sep-23,6739215,135,OTHER LOCAL AUTHORITY,HAVANT BOROUGH COUNCIL,300000020457057
Portsmouth City Council,PCC,Housing Revenue Account,"Rents, Rates, Taxes and Other Charges","Housing, Neighbourhood and Building Services",Premises-Related Expenditure,Rates,25-Sep-23,6739215,135,OTHER LOCAL AUTHORITY,HAVANT BOROUGH COUNCIL,300000020457057
Portsmouth City Council,PCC,Housing Services,Homelessness,"Housing, Neighbourhood and Building Services",Premises-Related Expenditure,Rents,25-Sep-23,6739273,"-6,180.00",SUPPLIER,K H PROPERTY INVESTMENT LIMITED,300000020467836
Portsmouth City Council,PCC,Housing Services,Homelessness,"Housing, Neighbourhood and Building Services",Premises-Related Expenditure,Rents,25-Sep-23,6739273,"6,180.00",SUPPLIER,K H PROPERTY INVESTMENT LIMITED,300000020467836
Portsmouth City Council,PCC,Housing Services,Homelessness,"Housing, Neighbourhood and Building Services",Premises-Related Expenditure,Rents,25-Sep-23,6739273,"6,180.00",SUPPLIER,K H PROPERTY INVESTMENT LIMITED,300000020467836
Portsmouth City Council,PCC,Housing Revenue Account,Supervision and Management,"Housing, Neighbourhood and Building Services",Premises-Related Expenditure,Rates,25-Sep-23,6739215,"1,297.00",OTHER LOCAL AUTHORITY,HAVANT BOROUGH COUNCIL,300000020457057
Portsmouth City Council,PCC,Housing Revenue Account,Special Services,"Housing, Neighbourhood and Building Services",Premises-Related Expenditure,Rates,25-Sep-23,6739215,267,OTHER LOCAL AUTHORITY,HAVANT BOROUGH COUNCIL,300000020457057
Portsmouth City Council,PCC,Housing Revenue Account,Special Services,"Housing, Neighbourhood and Building Services",Premises-Related Expenditure,Rates,25-Sep-23,6739215,394,OTHER LOCAL AUTHORITY,HAVANT BOROUGH COUNCIL,300000020457057
Portsmouth City Council,PCC,Housing Revenue Account,Supervision and Management,"Housing, Neighbourhood and Building Services",Premises-Related Expenditure,Rates,25-Sep-23,6739215,"3,507.00",OTHER LOCAL AUTHORITY,HAVANT BOROUGH COUNCIL,300000020457057
Portsmouth City Council,PCC,Housing Services,Homelessness,"Housing, Neighbourhood and Building Services",Premises-Related Expenditure,Rents,25-Sep-23,6739216,"1,800.00",SOLETRADER,Classified as 'personal data' (under the Data Protection Act 2018),300000020478633
Portsmouth City Council,PCC,Housing Services,Homelessness,"Housing, Neighbourhood and Building Services",Premises-Related Expenditure,Rents,25-Sep-23,6739196,"3,825.00",SOLETRADER,Classified as 'personal data' (under the Data Protection Act 2018),300000020482117
Portsmouth City Council,PCC,Housing Revenue Account,"Rents, Rates, Taxes and Other Charges","Housing, Neighbourhood and Building Services",Premises-Related Expenditure,Rates,25-Sep-23,6739215,133,OTHER LOCAL AUTHORITY,HAVANT BOROUGH COUNCIL,300000020457057
Portsmouth City Council,PCC,Children's and Education Services,Special Schools,Children's Services and Education,Third Party Payments,Other establishments,25-Sep-23,6739298,"123,346.00",SUPPLIER,SOLENT ACADEMIES TRUST,300000020477417
Portsmouth City Council,PCC,Children's and Education Services,Special Schools,Children's Services and Education,Third Party Payments,Other establishments,25-Sep-23,6739298,"8,218.72",SUPPLIER,SOLENT ACADEMIES TRUST,300000020477417
Portsmouth City Council,PCC,Children's and Education Services,Special Schools,Children's Services and Education,Third Party Payments,Other establishments,26-Sep-23,6739401,-1,SUPPLIER,SOLENT ACADEMIES TRUST,300000020477417
Portsmouth City Council,PCC,Children's and Education Services,Special Schools,Children's Services and Education,Third Party Payments,Other establishments,26-Sep-23,6739401,0.24,SUPPLIER,SOLENT ACADEMIES TRUST,300000020477417
Portsmouth City Council,PCC,Children's and Education Services,Special Schools,Children's Services and Education,Third Party Payments,Other establishments,26-Sep-23,6739401,"246,489.00",SUPPLIER,SOLENT ACADEMIES TRUST,300000020477417
Portsmouth City Council,PCC,Children's and Education Services,Special Schools,Children's Services and Education,Third Party Payments,Other establishments,26-Sep-23,6739401,"1,230.00",SUPPLIER,SOLENT ACADEMIES TRUST,300000020477417
Portsmouth City Council,PCC,Children's and Education Services,Special Schools,Children's Services and Education,Third Party Payments,Other establishments,26-Sep-23,6739401,666.64,SUPPLIER,SOLENT ACADEMIES TRUST,300000020477417
Portsmouth City Council,PCC,Children's and Education Services,Special Schools,Children's Services and Education,Third Party Payments,Other establishments,26-Sep-23,6739401,"12,848.72",SUPPLIER,SOLENT ACADEMIES TRUST,300000020477417
Portsmouth City Council,PCC,Children's and Education Services,Special Schools,Children's Services and Education,Third Party Payments,Other establishments,25-Sep-23,6739296,"247,247.76",SUPPLIER,SOLENT ACADEMIES TRUST,300000020477417
Portsmouth City Council,PCC,Children's and Education Services,Special Schools,Children's Services and Education,Third Party Payments,Other establishments,25-Sep-23,6739296,"18,809.84",SUPPLIER,SOLENT ACADEMIES TRUST,300000020477417
Portsmouth City Council,PCC,Children's and Education Services,Special Schools,Children's Services and Education,Third Party Payments,Other establishments,25-Sep-23,6739296,"10,800.00",SUPPLIER,SOLENT ACADEMIES TRUST,300000020477417
Portsmouth City Council,PCC,Children's and Education Services,Special Schools,Children's Services and Education,Third Party Payments,Other establishments,25-Sep-23,6739296,"12,828.40",SUPPLIER,SOLENT ACADEMIES TRUST,300000020477417
Portsmouth City Council,PCC,Children's and Education Services,Special Schools,Children's Services and Education,Third Party Payments,Other establishments,25-Sep-23,6739296,978,SUPPLIER,SOLENT ACADEMIES TRUST,300000020477417
Portsmouth City Council,PCC,Costs below Net Cost of Services,Trading,Regeneration,Premises-Related Expenditure,Rates,29-Sep-23,6740175,"10,119.00",OTHER LOCAL AUTHORITY,WARRINGTON BOROUGH COUNCIL,300000449627398
Portsmouth City Council,PCC,Children's and Education Services,Management and Support Services,Children's Services and Education,Third Party Payments,Other establishments,28-Sep-23,6740126,833.33,TRUST,Academy Trust - University of Portsmouth,300000316357634
Portsmouth City Council,PCC,Housing Revenue Account,"Rents, Rates, Taxes and Other Charges","Housing, Neighbourhood and Building Services",Premises-Related Expenditure,Rates,25-Sep-23,6739215,135,OTHER LOCAL AUTHORITY,HAVANT BOROUGH COUNCIL,300000020457057
Portsmouth City Council,PCC,Housing Revenue Account,"Rents, Rates, Taxes and Other Charges","Housing, Neighbourhood and Building Services",Premises-Related Expenditure,Rates,25-Sep-23,6739215,126,OTHER LOCAL AUTHORITY,HAVANT BOROUGH COUNCIL,300000020457057
Portsmouth City Council,PCC,Housing Revenue Account,"Rents, Rates, Taxes and Other Charges","Housing, Neighbourhood and Building Services",Premises-Related Expenditure,Rates,25-Sep-23,6739215,124,OTHER LOCAL AUTHORITY,HAVANT BOROUGH COUNCIL,300000020457057
Portsmouth City Council,PCC,Housing Revenue Account,"Rents, Rates, Taxes and Other Charges","Housing, Neighbourhood and Building Services",Premises-Related Expenditure,Rates,25-Sep-23,6739215,138,OTHER LOCAL AUTHORITY,HAVANT BOROUGH COUNCIL,300000020457057
Portsmouth City Council,PCC,Children's and Education Services,Special Schools,Children's Services and Education,Third Party Payments,Other establishments,25-Sep-23,6739297,"128,704.80",SUPPLIER,THE DELTA EDUCATION TRUST,300000020481637
Portsmouth City Council,PCC,Children's and Education Services,Management and Support Services,Children's Services and Education,Third Party Payments,Other establishments,25-Sep-23,6739297,"20,204.80",SUPPLIER,THE DELTA EDUCATION TRUST,300000020481637
Portsmouth City Council,PCC,Children's and Education Services,Management and Support Services,Children's Services and Education,Third Party Payments,Other establishments,25-Sep-23,6739297,"4,800.00",SUPPLIER,THE DELTA EDUCATION TRUST,300000020481637
Portsmouth City Council,PCC,Children's and Education Services,Management and Support Services,Children's Services and Education,Third Party Payments,Other establishments,25-Sep-23,6739297,"52,800.00",SUPPLIER,THE DELTA EDUCATION TRUST,300000020481637
Portsmouth City Council,PCC,Children's and Education Services,Special Schools,Children's Services and Education,Third Party Payments,Other establishments,25-Sep-23,6739297,"1,795.20",SUPPLIER,THE DELTA EDUCATION TRUST,300000020481637
Portsmouth City Council,PCC,Children's and Education Services,Special Schools,Children's Services and Education,Third Party Payments,Other establishments,25-Sep-23,6739297,"7,217.60",SUPPLIER,THE DELTA EDUCATION TRUST,300000020481637
Portsmouth City Council,PCC,Children's and Education Services,Special Schools,Children's Services and Education,Third Party Payments,Other establishments,25-Sep-23,6739297,"16,319.84",SUPPLIER,THE DELTA EDUCATION TRUST,300000020481637
Portsmouth City Council,PCC,Housing Revenue Account,"Rents, Rates, Taxes and Other Charges","Housing, Neighbourhood and Building Services",Premises-Related Expenditure,Rates,25-Sep-23,6739215,146,OTHER LOCAL AUTHORITY,HAVANT BOROUGH COUNCIL,300000020457057
Portsmouth City Council,PCC,Housing Revenue Account,"Rents, Rates, Taxes and Other Charges","Housing, Neighbourhood and Building Services",Premises-Related Expenditure,Rates,25-Sep-23,6739215,324,OTHER LOCAL AUTHORITY,HAVANT BOROUGH COUNCIL,300000020457057
Portsmouth City Council,PCC,Children's and Education Services,Special Schools,Children's Services and Education,Third Party Payments,Other establishments,25-Sep-23,6739153,"48,397.86",SUPPLIER,THE DELTA EDUCATION TRUST,300000020481637
Portsmouth City Council,PCC,Children's and Education Services,Special Schools,Children's Services and Education,Third Party Payments,Other establishments,25-Sep-23,6739153,"3,034.40",SUPPLIER,THE DELTA EDUCATION TRUST,300000020481637
Portsmouth City Council,PCC,Housing Revenue Account,"Rents, Rates, Taxes and Other Charges","Housing, Neighbourhood and Building Services",Premises-Related Expenditure,Rates,25-Sep-23,6739215,127,OTHER LOCAL AUTHORITY,HAVANT BOROUGH COUNCIL,300000020457057
Portsmouth City Council,PCC,Housing Revenue Account,"Rents, Rates, Taxes and Other Charges","Housing, Neighbourhood and Building Services",Premises-Related Expenditure,Rates,25-Sep-23,6739215,143,OTHER LOCAL AUTHORITY,HAVANT BOROUGH COUNCIL,300000020457057
Portsmouth City Council,PCC,Housing Revenue Account,"Rents, Rates, Taxes and Other Charges","Housing, Neighbourhood and Building Services",Premises-Related Expenditure,Rates,25-Sep-23,6739215,134,OTHER LOCAL AUTHORITY,HAVANT BOROUGH COUNCIL,300000020457057
Portsmouth City Council,PCC,Housing Services,Homelessness,"Housing, Neighbourhood and Building Services",Premises-Related Expenditure,Rents,25-Sep-23,6739193,"1,800.00",SOLETRADER,Classified as 'personal data' (under the Data Protection Act 2018),300000020478191
Portsmouth City Council,PCC,Children's and Education Services,Special Schools,Children's Services and Education,Third Party Payments,Other establishments,25-Sep-23,6739153,"-25,000.00",SUPPLIER,THE DELTA EDUCATION TRUST,300000020481637
Portsmouth City Council,PCC,Children's and Education Services,Other Education and Community Budget,Children's Services and Education,Third Party Payments,Other establishments,26-Sep-23,6739401,"12,615.13",SUPPLIER,SOLENT ACADEMIES TRUST,300000020477417
Portsmouth City Council,PCC,Children's and Education Services,Other Education and Community Budget,Children's Services and Education,Third Party Payments,Other establishments,25-Sep-23,6739298,"9,074.02",SUPPLIER,SOLENT ACADEMIES TRUST,300000020477417
Portsmouth City Council,PCC,Children's and Education Services,Other Education and Community Budget,Children's Services and Education,Third Party Payments,Other establishments,25-Sep-23,6739296,"11,971.35",SUPPLIER,SOLENT ACADEMIES TRUST,300000020477417
Portsmouth City Council,PCC,Children's and Education Services,Other Education and Community Budget,Children's Services and Education,Third Party Payments,Other establishments,25-Sep-23,6739297,"13,225.95",SUPPLIER,THE DELTA EDUCATION TRUST,300000020481637
Portsmouth City Council,PCC,Housing Services,Homelessness,"Housing, Neighbourhood and Building Services",Premises-Related Expenditure,Rents,25-Sep-23,6739218,"2,190.00",SOLETRADER,Classified as 'personal data' (under the Data Protection Act 2018),300000020477639
Portsmouth City Council,PCC,Housing Services,Homelessness,"Housing, Neighbourhood and Building Services",Premises-Related Expenditure,Rents,25-Sep-23,6739280,"1,800.00",SUPPLIER,S J EDGE LTD,300000020473593
Portsmouth City Council,PCC,Housing Services,Homelessness,"Housing, Neighbourhood and Building Services",Premises-Related Expenditure,Rents,25-Sep-23,6739212,"1,530.00",SOLETRADER,Classified as 'personal data' (under the Data Protection Act 2018),300000020471749
Portsmouth City Council,PCC,Housing Revenue Account,"Rents, Rates, Taxes and Other Charges","Housing, Neighbourhood and Building Services",Premises-Related Expenditure,Rates,25-Sep-23,6739215,145,OTHER LOCAL AUTHORITY,HAVANT BOROUGH COUNCIL,300000020457057
Portsmouth City Council,PCC,Housing Services,Homelessness,"Housing, Neighbourhood and Building Services",Premises-Related Expenditure,Rents,25-Sep-23,6739253,"2,250.00",SOLETRADER,Classified as 'personal data' (under the Data Protection Act 2018),300000020464746
Portsmouth City Council,PCC,Housing Services,Homelessness,"Housing, Neighbourhood and Building Services",Premises-Related Expenditure,Rents,25-Sep-23,6739209,"2,700.00",SOLETRADER,Classified as 'personal data' (under the Data Protection Act 2018),300000020476967
Portsmouth City Council,PCC,Housing Services,Homelessness,"Housing, Neighbourhood and Building Services",Premises-Related Expenditure,Rents,25-Sep-23,6739282,"1,650.00",SUPPLIER,Classified as 'personal data' (under the Data Protection Act 2018),300000020468795
Portsmouth City Council,PCC,Housing Services,Homelessness,"Housing, Neighbourhood and Building Services",Premises-Related Expenditure,Rents,25-Sep-23,6739201,"2,850.00",SOLETRADER,Classified as 'personal data' (under the Data Protection Act 2018),300000020466304
Portsmouth City Council,PCC,Housing Services,Homelessness,"Housing, Neighbourhood and Building Services",Premises-Related Expenditure,Rents,25-Sep-23,6739197,"2,100.00",SOLETRADER,Classified as 'personal data' (under the Data Protection Act 2018),300000020478994
Portsmouth City Council,PCC,Housing Services,Homelessness,"Housing, Neighbourhood and Building Services",Premises-Related Expenditure,Rents,25-Sep-23,6739221,"2,850.00",SOLETRADER,Classified as 'personal data' (under the Data Protection Act 2018),300000020475891
Portsmouth City Council,PCC,Housing Services,Homelessness,"Housing, Neighbourhood and Building Services",Premises-Related Expenditure,Rents,25-Sep-23,6739200,"2,420.00",SOLETRADER,Classified as 'personal data' (under the Data Protection Act 2018),300000020469518
Portsmouth City Council,PCC,Children's and Education Services,Special Schools,Children's Services and Education,Third Party Payments,Other establishments,05-Sep-23,6736091,"1,522.92",SUPPLIER,ACADEMY TRUST (UNIVERSITY OF CHICHESTER),300000020484342
Portsmouth City Council,PCC,Children's and Education Services,Other Education and Community Budget,Children's Services and Education,Third Party Payments,Other establishments,05-Sep-23,6736091,"2,869.10",SUPPLIER,ACADEMY TRUST (UNIVERSITY OF CHICHESTER),300000020484342
Portsmouth City Council,PCC,Housing Revenue Account,"Rents, Rates, Taxes and Other Charges","Housing, Neighbourhood and Building Services",Premises-Related Expenditure,Rates,25-Sep-23,6739215,142,OTHER LOCAL AUTHORITY,HAVANT BOROUGH COUNCIL,300000020457057
Portsmouth City Council,PCC,Housing Revenue Account,"Rents, Rates, Taxes and Other Charges","Housing, Neighbourhood and Building Services",Premises-Related Expenditure,Rates,25-Sep-23,6739215,119,OTHER LOCAL AUTHORITY,HAVANT BOROUGH COUNCIL,300000020457057
Portsmouth City Council,PCC,Housing Revenue Account,"Rents, Rates, Taxes and Other Charges","Housing, Neighbourhood and Building Services",Premises-Related Expenditure,Rates,25-Sep-23,6739215,140,OTHER LOCAL AUTHORITY,HAVANT BOROUGH COUNCIL,300000020457057
Portsmouth City Council,PCC,Housing Revenue Account,"Rents, Rates, Taxes and Other Charges","Housing, Neighbourhood and Building Services",Premises-Related Expenditure,Rates,25-Sep-23,6739215,134,OTHER LOCAL AUTHORITY,HAVANT BOROUGH COUNCIL,300000020457057
Portsmouth City Council,PCC,Housing Revenue Account,"Rents, Rates, Taxes and Other Charges","Housing, Neighbourhood and Building Services",Premises-Related Expenditure,Rates,25-Sep-23,6739215,152,OTHER LOCAL AUTHORITY,HAVANT BOROUGH COUNCIL,300000020457057
Portsmouth City Council,PCC,Housing Revenue Account,"Rents, Rates, Taxes and Other Charges","Housing, Neighbourhood and Building Services",Premises-Related Expenditure,Rates,25-Sep-23,6739215,242,OTHER LOCAL AUTHORITY,HAVANT BOROUGH COUNCIL,300000020457057
Portsmouth City Council,PCC,Children's and Education Services,Safeguarding Children and Young Peoples Services,Children's Services and Education,Third Party Payments,Other establishments,05-Sep-23,6735926,-862.5,SUPPLIER,CAPSTONE FOSTER CARE LTD,300000020477691
Portsmouth City Council,PCC,Children's and Education Services,Safeguarding Children and Young Peoples Services,Children's Services and Education,Third Party Payments,Other establishments,05-Sep-23,6735926,456,SUPPLIER,CAPSTONE FOSTER CARE LTD,300000020477691
Portsmouth City Council,PCC,Children's and Education Services,Safeguarding Children and Young Peoples Services,Children's Services and Education,Third Party Payments,Other establishments,05-Sep-23,6735926,684,SUPPLIER,CAPSTONE FOSTER CARE LTD,300000020477691
Portsmouth City Council,PCC,Children's and Education Services,Safeguarding Children and Young Peoples Services,Children's Services and Education,Third Party Payments,Other establishments,05-Sep-23,6735926,798,SUPPLIER,CAPSTONE FOSTER CARE LTD,300000020477691
Portsmouth City Council,PCC,Children's and Education Services,Safeguarding Children and Young Peoples Services,Children's Services and Education,Third Party Payments,Other establishments,05-Sep-23,6735926,798,SUPPLIER,CAPSTONE FOSTER CARE LTD,300000020477691
Portsmouth City Council,PCC,Children's and Education Services,Safeguarding Children and Young Peoples Services,Children's Services and Education,Third Party Payments,Other establishments,05-Sep-23,6735926,798,SUPPLIER,CAPSTONE FOSTER CARE LTD,300000020477691
Portsmouth City Council,PCC,Children's and Education Services,Safeguarding Children and Young Peoples Services,Children's Services and Education,Third Party Payments,Other establishments,05-Sep-23,6735926,-690,SUPPLIER,CAPSTONE FOSTER CARE LTD,300000020477691
Portsmouth City Council,PCC,Children's and Education Services,Safeguarding Children and Young Peoples Services,Children's Services and Education,Third Party Payments,Other establishments,05-Sep-23,6735926,342,SUPPLIER,CAPSTONE FOSTER CARE LTD,300000020477691
Portsmouth City Council,PCC,Children's and Education Services,Safeguarding Children and Young Peoples Services,Children's Services and Education,Third Party Payments,Other establishments,05-Sep-23,6735926,684,SUPPLIER,CAPSTONE FOSTER CARE LTD,300000020477691
Portsmouth City Council,PCC,Children's and Education Services,Safeguarding Children and Young Peoples Services,Children's Services and Education,Third Party Payments,Other establishments,05-Sep-23,6735926,798,SUPPLIER,CAPSTONE FOSTER CARE LTD,300000020477691
Portsmouth City Council,PCC,Children's and Education Services,Safeguarding Children and Young Peoples Services,Children's Services and Education,Third Party Payments,Other establishments,05-Sep-23,6735926,798,SUPPLIER,CAPSTONE FOSTER CARE LTD,300000020477691
Portsmouth City Council,PCC,Children's and Education Services,Safeguarding Children and Young Peoples Services,Children's Services and Education,Third Party Payments,Other establishments,05-Sep-23,6735926,798,SUPPLIER,CAPSTONE FOSTER CARE LTD,300000020477691
Portsmouth City Council,PCC,Children's and Education Services,Safeguarding Children and Young Peoples Services,Children's Services and Education,Third Party Payments,Other establishments,05-Sep-23,6735926,"-5,980.00",SUPPLIER,CAPSTONE FOSTER CARE LTD,300000020477691
Portsmouth City Council,PCC,Children's and Education Services,Safeguarding Children and Young Peoples Services,Children's Services and Education,Third Party Payments,Other establishments,05-Sep-23,6735926,-798,SUPPLIER,CAPSTONE FOSTER CARE LTD,300000020477691
Portsmouth City Council,PCC,Children's and Education Services,Safeguarding Children and Young Peoples Services,Children's Services and Education,Third Party Payments,Other establishments,05-Sep-23,6735926,-798,SUPPLIER,CAPSTONE FOSTER CARE LTD,300000020477691
Portsmouth City Council,PCC,Children's and Education Services,Safeguarding Children and Young Peoples Services,Children's Services and Education,Third Party Payments,Other establishments,05-Sep-23,6735926,-798,SUPPLIER,CAPSTONE FOSTER CARE LTD,300000020477691
Portsmouth City Council,PCC,Children's and Education Services,Safeguarding Children and Young Peoples Services,Children's Services and Education,Third Party Payments,Other establishments,05-Sep-23,6735926,-684,SUPPLIER,CAPSTONE FOSTER CARE LTD,300000020477691
Portsmouth City Council,PCC,Children's and Education Services,Safeguarding Children and Young Peoples Services,Children's Services and Education,Third Party Payments,Other establishments,05-Sep-23,6735926,-456,SUPPLIER,CAPSTONE FOSTER CARE LTD,300000020477691
Portsmouth City Council,PCC,Children's and Education Services,Safeguarding Children and Young Peoples Services,Children's Services and Education,Third Party Payments,Other establishments,05-Sep-23,6735926,456,SUPPLIER,CAPSTONE FOSTER CARE LTD,300000020477691
Portsmouth City Council,PCC,Children's and Education Services,Safeguarding Children and Young Peoples Services,Children's Services and Education,Third Party Payments,Other establishments,05-Sep-23,6735926,684,SUPPLIER,CAPSTONE FOSTER CARE LTD,300000020477691
Portsmouth City Council,PCC,Children's and Education Services,Safeguarding Children and Young Peoples Services,Children's Services and Education,Third Party Payments,Other establishments,05-Sep-23,6735926,798,SUPPLIER,CAPSTONE FOSTER CARE LTD,300000020477691
Portsmouth City Council,PCC,Children's and Education Services,Safeguarding Children and Young Peoples Services,Children's Services and Education,Third Party Payments,Other establishments,05-Sep-23,6735926,798,SUPPLIER,CAPSTONE FOSTER CARE LTD,300000020477691
Portsmouth City Council,PCC,Children's and Education Services,Safeguarding Children and Young Peoples Services,Children's Services and Education,Third Party Payments,Other establishments,05-Sep-23,6735926,798,SUPPLIER,CAPSTONE FOSTER CARE LTD,300000020477691
Portsmouth City Council,PCC,Children's and Education Services,Children Looked After,Children's Services and Education,Third Party Payments,Other establishments,01-Sep-23,6735756,-0.26,SUPPLIER,BLUE SKY FOSTERING,300000020464936
Portsmouth City Council,PCC,Children's and Education Services,Children Looked After,Children's Services and Education,Third Party Payments,Other establishments,01-Sep-23,6735756,552.14,SUPPLIER,BLUE SKY FOSTERING,300000020464936
Portsmouth City Council,PCC,Children's and Education Services,Children Looked After,Children's Services and Education,Third Party Payments,Other establishments,01-Sep-23,6735756,552.14,SUPPLIER,BLUE SKY FOSTERING,300000020464936
Portsmouth City Council,PCC,Children's and Education Services,Children Looked After,Children's Services and Education,Third Party Payments,Other establishments,01-Sep-23,6735756,773,SUPPLIER,BLUE SKY FOSTERING,300000020464936
Portsmouth City Council,PCC,Children's and Education Services,Children Looked After,Children's Services and Education,Third Party Payments,Other establishments,01-Sep-23,6735756,773,SUPPLIER,BLUE SKY FOSTERING,300000020464936
Portsmouth City Council,PCC,Children's and Education Services,Children Looked After,Children's Services and Education,Third Party Payments,Other establishments,01-Sep-23,6735756,773,SUPPLIER,BLUE SKY FOSTERING,300000020464936
Portsmouth City Council,PCC,Children's and Education Services,Children Looked After,Children's Services and Education,Third Party Payments,Other establishments,01-Sep-23,6735756,620,SUPPLIER,BLUE SKY FOSTERING,300000020464936
Portsmouth City Council,PCC,Children's and Education Services,Children Looked After,Children's Services and Education,Third Party Payments,Other establishments,01-Sep-23,6735756,620,SUPPLIER,BLUE SKY FOSTERING,300000020464936
Portsmouth City Council,PCC,Children's and Education Services,Children Looked After,Children's Services and Education,Third Party Payments,Other establishments,01-Sep-23,6735756,868,SUPPLIER,BLUE SKY FOSTERING,300000020464936
Portsmouth City Council,PCC,Children's and Education Services,Children Looked After,Children's Services and Education,Third Party Payments,Other establishments,01-Sep-23,6735756,868,SUPPLIER,BLUE SKY FOSTERING,300000020464936
Portsmouth City Council,PCC,Children's and Education Services,Children Looked After,Children's Services and Education,Third Party Payments,Other establishments,01-Sep-23,6735756,868,SUPPLIER,BLUE SKY FOSTERING,300000020464936
Portsmouth City Council,PCC,Children's and Education Services,Children Looked After,Children's Services and Education,Third Party Payments,Other establishments,01-Sep-23,6735756,-0.26,SUPPLIER,BLUE SKY FOSTERING,300000020464936
Portsmouth City Council,PCC,Children's and Education Services,Children Looked After,Children's Services and Education,Third Party Payments,Other establishments,01-Sep-23,6735756,552.14,SUPPLIER,BLUE SKY FOSTERING,300000020464936
Portsmouth City Council,PCC,Children's and Education Services,Children Looked After,Children's Services and Education,Third Party Payments,Other establishments,01-Sep-23,6735756,552.14,SUPPLIER,BLUE SKY FOSTERING,300000020464936
Portsmouth City Council,PCC,Children's and Education Services,Children Looked After,Children's Services and Education,Third Party Payments,Other establishments,01-Sep-23,6735756,773,SUPPLIER,BLUE SKY FOSTERING,300000020464936
Portsmouth City Council,PCC,Children's and Education Services,Children Looked After,Children's Services and Education,Third Party Payments,Other establishments,01-Sep-23,6735756,773,SUPPLIER,BLUE SKY FOSTERING,300000020464936
Portsmouth City Council,PCC,Children's and Education Services,Children Looked After,Children's Services and Education,Third Party Payments,Other establishments,01-Sep-23,6735756,773,SUPPLIER,BLUE SKY FOSTERING,300000020464936
Portsmouth City Council,PCC,Children's and Education Services,Children Looked After,Children's Services and Education,Third Party Payments,Other establishments,01-Sep-23,6735761,"1,108.93",SUPPLIER,FIVE RIVERS CHILD CARE LIMITED,300000020461320
Portsmouth City Council,PCC,Children's and Education Services,Children Looked After,Children's Services and Education,Third Party Payments,Other establishments,01-Sep-23,6735761,"1,108.93",SUPPLIER,FIVE RIVERS CHILD CARE LIMITED,300000020461320
Portsmouth City Council,PCC,Children's and Education Services,Children Looked After,Children's Services and Education,Third Party Payments,Other establishments,01-Sep-23,6735761,"1,552.50",SUPPLIER,FIVE RIVERS CHILD CARE LIMITED,300000020461320
Portsmouth City Council,PCC,Children's and Education Services,Children Looked After,Children's Services and Education,Third Party Payments,Other establishments,01-Sep-23,6735761,"1,552.50",SUPPLIER,FIVE RIVERS CHILD CARE LIMITED,300000020461320
Portsmouth City Council,PCC,Children's and Education Services,Children Looked After,Children's Services and Education,Third Party Payments,Other establishments,01-Sep-23,6735761,"1,552.50",SUPPLIER,FIVE RIVERS CHILD CARE LIMITED,300000020461320
Portsmouth City Council,PCC,Adult Social Care,Physical Support Adults (18 - 64),Adult Care,Third Party Payments,Other establishments,05-Sep-23,6736033,"-2,700.00",SUPPLIER,PREPAID FINANCIAL SERVICES,300000020477745
Portsmouth City Council,PCC,Adult Social Care,Physical Support Adults (18 - 64),Adult Care,Third Party Payments,Other establishments,05-Sep-23,6736092,-544.63,SUPPLIER,DAVID HOWARD LIMITED,300000020479591
Portsmouth City Council,PCC,Adult Social Care,Physical Support Adults (18 - 64),Adult Care,Third Party Payments,Other establishments,05-Sep-23,6736092,-195.11,SUPPLIER,DAVID HOWARD LIMITED,300000020479591
Portsmouth City Council,PCC,Adult Social Care,Mental Health Support Adults (18 - 64),Adult Care,Third Party Payments,Other establishments,05-Sep-23,6736033,77,SUPPLIER,PREPAID FINANCIAL SERVICES,300000020477745
Portsmouth City Council,PCC,Adult Social Care,Mental Health Support Adults (18 - 64),Adult Care,Third Party Payments,Other establishments,05-Sep-23,6736033,84.8,SUPPLIER,PREPAID FINANCIAL SERVICES,300000020477745
Portsmouth City Council,PCC,Adult Social Care,Mental Health Support Adults (18 - 64),Adult Care,Third Party Payments,Other establishments,05-Sep-23,6736033,84.8,SUPPLIER,PREPAID FINANCIAL SERVICES,300000020477745
Portsmouth City Council,PCC,Adult Social Care,Physical Support Older People (85+),Adult Care,Third Party Payments,Other establishments,05-Sep-23,6736033,120.54,SUPPLIER,PREPAID FINANCIAL SERVICES,300000020477745
Portsmouth City Council,PCC,Adult Social Care,Mental Health Support Adults (18 - 64),Adult Care,Third Party Payments,Other establishments,05-Sep-23,6736033,177.1,SUPPLIER,PREPAID FINANCIAL SERVICES,300000020477745
Portsmouth City Council,PCC,Adult Social Care,Mental Health Support Older People (65 - 74),Adult Care,Third Party Payments,Other establishments,07-Sep-23,6736653,940,SUPPLIER,SPARKLING WHITE CLEANING SERVICES,300000020476825
Portsmouth City Council,PCC,Adult Social Care,Physical Support Adults (18 - 64),Adult Care,Third Party Payments,Other establishments,07-Sep-23,6736653,204,SUPPLIER,SPARKLING WHITE CLEANING SERVICES,300000020476825
Portsmouth City Council,PCC,Adult Social Care,Mental Health Support Older People (65 - 74),Adult Care,Third Party Payments,Other establishments,07-Sep-23,6736653,68,SUPPLIER,SPARKLING WHITE CLEANING SERVICES,300000020476825
Portsmouth City Council,PCC,Adult Social Care,Physical Support Older People (85+),Adult Care,Third Party Payments,Other establishments,07-Sep-23,6736653,144,SUPPLIER,SPARKLING WHITE CLEANING SERVICES,300000020476825
Portsmouth City Council,PCC,Adult Social Care,Physical Support Older People (85+),Adult Care,Third Party Payments,Other establishments,07-Sep-23,6736653,192,SUPPLIER,SPARKLING WHITE CLEANING SERVICES,300000020476825
Portsmouth City Council,PCC,Adult Social Care,Physical Support Older People (85+),Adult Care,Third Party Payments,Other establishments,07-Sep-23,6736653,360,SUPPLIER,SPARKLING WHITE CLEANING SERVICES,300000020476825
Portsmouth City Council,PCC,Adult Social Care,Learning Disability Support Adults (18 - 64),Adult Care,Third Party Payments,Other establishments,05-Sep-23,6736033,-251.06,SUPPLIER,PREPAID FINANCIAL SERVICES,300000020477745
Portsmouth City Council,PCC,Adult Social Care,Physical Support Adults (18 - 64),Adult Care,Third Party Payments,Other establishments,05-Sep-23,6736033,42,SUPPLIER,PREPAID FINANCIAL SERVICES,300000020477745
Portsmouth City Council,PCC,Adult Social Care,Learning Disability Support Adults (18 - 64),Adult Care,Third Party Payments,Other establishments,05-Sep-23,6736033,140.32,SUPPLIER,PREPAID FINANCIAL SERVICES,300000020477745
Portsmouth City Council,PCC,Housing Services,Housing Strategy,"Housing, Neighbourhood and Building Services",Income,Customer and client receipts,06-Sep-23,6736439,-125.18,LIMITED COMPANY,S & J BUILDING SERVICES (UK) LTD,300000118164690
Portsmouth City Council,PCC,Adult Social Care,Assistive Equipment & Technology,"Housing, Neighbourhood and Building Services",Supplies and Services,Services,06-Sep-23,6736439,150.22,LIMITED COMPANY,S & J BUILDING SERVICES (UK) LTD,300000118164690
Portsmouth City Council,PCC,Adult Social Care,Assistive Equipment & Technology,"Housing, Neighbourhood and Building Services",Supplies and Services,Services,06-Sep-23,6736439,834.52,LIMITED COMPANY,S & J BUILDING SERVICES (UK) LTD,300000118164690
Portsmouth City Council,PCC,Adult Social Care,Assistive Equipment & Technology,"Housing, Neighbourhood and Building Services",Supplies and Services,Services,06-Sep-23,6736440,"6,770.00",LIMITED COMPANY,CONCEPT DESIGN SOLUTIONS LTD,300000118164776
Portsmouth City Council,PCC,Adult Social Care,Learning Disability Support Adults (18 - 64),Adult Care,Third Party Payments,Other establishments,05-Sep-23,6736033,"-1,000.00",SUPPLIER,PREPAID FINANCIAL SERVICES,300000020477745
Portsmouth City Council,PCC,Adult Social Care,Learning Disability Support Adults (18 - 64),Adult Care,Third Party Payments,Other establishments,05-Sep-23,6736033,-360,SUPPLIER,PREPAID FINANCIAL SERVICES,300000020477745
Portsmouth City Council,PCC,Adult Social Care,Learning Disability Support Adults (18 - 64),Adult Care,Third Party Payments,Other establishments,05-Sep-23,6736033,-360,SUPPLIER,PREPAID FINANCIAL SERVICES,300000020477745
Portsmouth City Council,PCC,Adult Social Care,Learning Disability Support Adults (18 - 64),Adult Care,Third Party Payments,Other establishments,05-Sep-23,6736033,165,SUPPLIER,PREPAID FINANCIAL SERVICES,300000020477745
Portsmouth City Council,PCC,Adult Social Care,Learning Disability Support Adults (18 - 64),Adult Care,Third Party Payments,Other establishments,05-Sep-23,6736033,165,SUPPLIER,PREPAID FINANCIAL SERVICES,300000020477745
Portsmouth City Council,PCC,Adult Social Care,Physical Support Older People (85+),Adult Care,Third Party Payments,Other establishments,05-Sep-23,6736033,-120.54,SUPPLIER,PREPAID FINANCIAL SERVICES,300000020477745
Portsmouth City Council,PCC,Adult Social Care,Physical Support Older People (85+),Adult Care,Third Party Payments,Other establishments,05-Sep-23,6736033,237.38,SUPPLIER,PREPAID FINANCIAL SERVICES,300000020477745
Portsmouth City Council,PCC,Adult Social Care,Physical Support Adults (18 - 64),Adult Care,Third Party Payments,Other establishments,05-Sep-23,6736092,"-2,000.00",SUPPLIER,DAVID HOWARD LIMITED,300000020479591
Portsmouth City Council,PCC,Housing Services,Housing Strategy,"Housing, Neighbourhood and Building Services",Income,Customer and client receipts,04-Sep-23,6735832,-316.5,LIMITED COMPANY,LIFTECH SYSTEMS (SE) LIMITED,300000020461913
Portsmouth City Council,PCC,Adult Social Care,Assistive Equipment & Technology,"Housing, Neighbourhood and Building Services",Supplies and Services,Services,04-Sep-23,6735832,379.8,LIMITED COMPANY,LIFTECH SYSTEMS (SE) LIMITED,300000020461913
Portsmouth City Council,PCC,Adult Social Care,Assistive Equipment & Technology,"Housing, Neighbourhood and Building Services",Supplies and Services,Services,04-Sep-23,6735832,"2,110.00",LIMITED COMPANY,LIFTECH SYSTEMS (SE) LIMITED,300000020461913
Portsmouth City Council,PCC,Housing Services,Private Sector Housing Renewal,"Housing, Neighbourhood and Building Services",Income,Other grants reimbursements and contributions,04-Sep-23,6735903,"-1,118.74",LIMITED COMPANY,DELL DEVELOPMENTS LIMITED,300000504159996
Portsmouth City Council,PCC,Other,Suspense and Capital Schemes,Capital - Housing and Tackling Homelessness,Capital Charges,REFCUS,04-Sep-23,6735903,"1,342.49",LIMITED COMPANY,DELL DEVELOPMENTS LIMITED,300000504159996
Portsmouth City Council,PCC,Other,Suspense and Capital Schemes,Capital - Housing and Tackling Homelessness,Capital Charges,REFCUS,04-Sep-23,6735903,"7,458.20",LIMITED COMPANY,DELL DEVELOPMENTS LIMITED,300000504159996
Portsmouth City Council,PCC,Children's and Education Services,Family Support Services,Children's Services and Education,Third Party Payments,Other establishments,04-Sep-23,6735872,250,SUPPLIER,HOPE INTO ACTION PORTSMOUTH,300000020472723
Portsmouth City Council,PCC,Children's and Education Services,Family Support Services,Children's Services and Education,Third Party Payments,Other establishments,04-Sep-23,6735872,"1,064.34",SUPPLIER,HOPE INTO ACTION PORTSMOUTH,300000020472723
Portsmouth City Council,PCC,Children's and Education Services,Children Looked After,Children's Services and Education,Third Party Payments,Other establishments,08-Sep-23,6736850,616.6,SUPPLIER,FOSTER CARE ASSOCIATES LTD,300000020461175
Portsmouth City Council,PCC,Children's and Education Services,Children Looked After,Children's Services and Education,Third Party Payments,Other establishments,08-Sep-23,6736850,616.6,SUPPLIER,FOSTER CARE ASSOCIATES LTD,300000020461175
Portsmouth City Council,PCC,Children's and Education Services,Children Looked After,Children's Services and Education,Third Party Payments,Other establishments,08-Sep-23,6736850,863.24,SUPPLIER,FOSTER CARE ASSOCIATES LTD,300000020461175
Portsmouth City Council,PCC,Children's and Education Services,Children Looked After,Children's Services and Education,Third Party Payments,Other establishments,08-Sep-23,6736850,863.24,SUPPLIER,FOSTER CARE ASSOCIATES LTD,300000020461175
Portsmouth City Council,PCC,Children's and Education Services,Children Looked After,Children's Services and Education,Third Party Payments,Other establishments,08-Sep-23,6736850,863.24,SUPPLIER,FOSTER CARE ASSOCIATES LTD,300000020461175
Portsmouth City Council,PCC,Children's and Education Services,Safeguarding Children and Young Peoples Services,Children's Services and Education,Third Party Payments,Other establishments,08-Sep-23,6736850,501.75,SUPPLIER,FOSTER CARE ASSOCIATES LTD,300000020461175
Portsmouth City Council,PCC,Children's and Education Services,Safeguarding Children and Young Peoples Services,Children's Services and Education,Third Party Payments,Other establishments,08-Sep-23,6736850,501.75,SUPPLIER,FOSTER CARE ASSOCIATES LTD,300000020461175
Portsmouth City Council,PCC,Children's and Education Services,Safeguarding Children and Young Peoples Services,Children's Services and Education,Third Party Payments,Other establishments,08-Sep-23,6736850,702.45,SUPPLIER,FOSTER CARE ASSOCIATES LTD,300000020461175
Portsmouth City Council,PCC,Children's and Education Services,Safeguarding Children and Young Peoples Services,Children's Services and Education,Third Party Payments,Other establishments,08-Sep-23,6736850,702.45,SUPPLIER,FOSTER CARE ASSOCIATES LTD,300000020461175
Portsmouth City Council,PCC,Children's and Education Services,Safeguarding Children and Young Peoples Services,Children's Services and Education,Third Party Payments,Other establishments,08-Sep-23,6736850,702.45,SUPPLIER,FOSTER CARE ASSOCIATES LTD,300000020461175
Portsmouth City Council,PCC,Children's and Education Services,Safeguarding Children and Young Peoples Services,Children's Services and Education,Third Party Payments,Other establishments,05-Sep-23,6735943,-941,SUPPLIER,LILIAN DAVIS GROUP LTD,300000020467263
Portsmouth City Council,PCC,Children's and Education Services,Safeguarding Children and Young Peoples Services,Children's Services and Education,Third Party Payments,Other establishments,05-Sep-23,6735943,-10,SUPPLIER,LILIAN DAVIS GROUP LTD,300000020467263
Portsmouth City Council,PCC,Children's and Education Services,Safeguarding Children and Young Peoples Services,Children's Services and Education,Third Party Payments,Other establishments,05-Sep-23,6735943,-10,SUPPLIER,LILIAN DAVIS GROUP LTD,300000020467263
Portsmouth City Council,PCC,Children's and Education Services,Safeguarding Children and Young Peoples Services,Children's Services and Education,Third Party Payments,Other establishments,05-Sep-23,6735943,-10,SUPPLIER,LILIAN DAVIS GROUP LTD,300000020467263
Portsmouth City Council,PCC,Children's and Education Services,Safeguarding Children and Young Peoples Services,Children's Services and Education,Third Party Payments,Other establishments,05-Sep-23,6735943,-7.14,SUPPLIER,LILIAN DAVIS GROUP LTD,300000020467263
Portsmouth City Council,PCC,Children's and Education Services,Safeguarding Children and Young Peoples Services,Children's Services and Education,Third Party Payments,Other establishments,05-Sep-23,6735943,-7.14,SUPPLIER,LILIAN DAVIS GROUP LTD,300000020467263
Portsmouth City Council,PCC,Children's and Education Services,Safeguarding Children and Young Peoples Services,Children's Services and Education,Third Party Payments,Other establishments,05-Sep-23,6735943,-0.02,SUPPLIER,LILIAN DAVIS GROUP LTD,300000020467263
Portsmouth City Council,PCC,Children's and Education Services,Safeguarding Children and Young Peoples Services,Children's Services and Education,Third Party Payments,Other establishments,05-Sep-23,6735943,89.29,SUPPLIER,LILIAN DAVIS GROUP LTD,300000020467263
Portsmouth City Council,PCC,Children's and Education Services,Safeguarding Children and Young Peoples Services,Children's Services and Education,Third Party Payments,Other establishments,05-Sep-23,6735943,89.29,SUPPLIER,LILIAN DAVIS GROUP LTD,300000020467263
Portsmouth City Council,PCC,Children's and Education Services,Safeguarding Children and Young Peoples Services,Children's Services and Education,Third Party Payments,Other establishments,05-Sep-23,6735943,125,SUPPLIER,LILIAN DAVIS GROUP LTD,300000020467263
Portsmouth City Council,PCC,Children's and Education Services,Safeguarding Children and Young Peoples Services,Children's Services and Education,Third Party Payments,Other establishments,05-Sep-23,6735943,125,SUPPLIER,LILIAN DAVIS GROUP LTD,300000020467263
Portsmouth City Council,PCC,Children's and Education Services,Safeguarding Children and Young Peoples Services,Children's Services and Education,Third Party Payments,Other establishments,05-Sep-23,6735943,125,SUPPLIER,LILIAN DAVIS GROUP LTD,300000020467263
Portsmouth City Council,PCC,Children's and Education Services,Safeguarding Children and Young Peoples Services,Children's Services and Education,Third Party Payments,Other establishments,05-Sep-23,6735943,275,SUPPLIER,LILIAN DAVIS GROUP LTD,300000020467263
Portsmouth City Council,PCC,Children's and Education Services,Safeguarding Children and Young Peoples Services,Children's Services and Education,Third Party Payments,Other establishments,05-Sep-23,6735943,275,SUPPLIER,LILIAN DAVIS GROUP LTD,300000020467263
Portsmouth City Council,PCC,Children's and Education Services,Safeguarding Children and Young Peoples Services,Children's Services and Education,Third Party Payments,Other establishments,05-Sep-23,6735943,385,SUPPLIER,LILIAN DAVIS GROUP LTD,300000020467263
Portsmouth City Council,PCC,Children's and Education Services,Safeguarding Children and Young Peoples Services,Children's Services and Education,Third Party Payments,Other establishments,05-Sep-23,6735943,385,SUPPLIER,LILIAN DAVIS GROUP LTD,300000020467263
Portsmouth City Council,PCC,Children's and Education Services,Safeguarding Children and Young Peoples Services,Children's Services and Education,Third Party Payments,Other establishments,05-Sep-23,6735943,385,SUPPLIER,LILIAN DAVIS GROUP LTD,300000020467263
Portsmouth City Council,PCC,Children's and Education Services,Safeguarding Children and Young Peoples Services,Children's Services and Education,Third Party Payments,Other establishments,05-Sep-23,6735943,-872.6,SUPPLIER,LILIAN DAVIS GROUP LTD,300000020467263
Portsmouth City Council,PCC,Children's and Education Services,Safeguarding Children and Young Peoples Services,Children's Services and Education,Third Party Payments,Other establishments,05-Sep-23,6735943,-10,SUPPLIER,LILIAN DAVIS GROUP LTD,300000020467263
Portsmouth City Council,PCC,Children's and Education Services,Safeguarding Children and Young Peoples Services,Children's Services and Education,Third Party Payments,Other establishments,05-Sep-23,6735943,-10,SUPPLIER,LILIAN DAVIS GROUP LTD,300000020467263
Portsmouth City Council,PCC,Children's and Education Services,Safeguarding Children and Young Peoples Services,Children's Services and Education,Third Party Payments,Other establishments,05-Sep-23,6735943,-10,SUPPLIER,LILIAN DAVIS GROUP LTD,300000020467263
Portsmouth City Council,PCC,Children's and Education Services,Safeguarding Children and Young Peoples Services,Children's Services and Education,Third Party Payments,Other establishments,05-Sep-23,6735943,-7.14,SUPPLIER,LILIAN DAVIS GROUP LTD,300000020467263
Portsmouth City Council,PCC,Children's and Education Services,Safeguarding Children and Young Peoples Services,Children's Services and Education,Third Party Payments,Other establishments,05-Sep-23,6735943,-7.14,SUPPLIER,LILIAN DAVIS GROUP LTD,300000020467263
Portsmouth City Council,PCC,Children's and Education Services,Safeguarding Children and Young Peoples Services,Children's Services and Education,Third Party Payments,Other establishments,05-Sep-23,6735943,-0.01,SUPPLIER,LILIAN DAVIS GROUP LTD,300000020467263
Portsmouth City Council,PCC,Children's and Education Services,Safeguarding Children and Young Peoples Services,Children's Services and Education,Third Party Payments,Other establishments,05-Sep-23,6735943,53.57,SUPPLIER,LILIAN DAVIS GROUP LTD,300000020467263
Portsmouth City Council,PCC,Children's and Education Services,Safeguarding Children and Young Peoples Services,Children's Services and Education,Third Party Payments,Other establishments,05-Sep-23,6735943,53.57,SUPPLIER,LILIAN DAVIS GROUP LTD,300000020467263
Portsmouth City Council,PCC,Children's and Education Services,Safeguarding Children and Young Peoples Services,Children's Services and Education,Third Party Payments,Other establishments,05-Sep-23,6735943,75,SUPPLIER,LILIAN DAVIS GROUP LTD,300000020467263
Portsmouth City Council,PCC,Children's and Education Services,Safeguarding Children and Young Peoples Services,Children's Services and Education,Third Party Payments,Other establishments,05-Sep-23,6735943,75,SUPPLIER,LILIAN DAVIS GROUP LTD,300000020467263
Portsmouth City Council,PCC,Children's and Education Services,Safeguarding Children and Young Peoples Services,Children's Services and Education,Third Party Payments,Other establishments,05-Sep-23,6735943,75,SUPPLIER,LILIAN DAVIS GROUP LTD,300000020467263
Portsmouth City Council,PCC,Children's and Education Services,Safeguarding Children and Young Peoples Services,Children's Services and Education,Third Party Payments,Other establishments,05-Sep-23,6735943,314.29,SUPPLIER,LILIAN DAVIS GROUP LTD,300000020467263
Portsmouth City Council,PCC,Children's and Education Services,Safeguarding Children and Young Peoples Services,Children's Services and Education,Third Party Payments,Other establishments,05-Sep-23,6735943,314.29,SUPPLIER,LILIAN DAVIS GROUP LTD,300000020467263
Portsmouth City Council,PCC,Children's and Education Services,Safeguarding Children and Young Peoples Services,Children's Services and Education,Third Party Payments,Other establishments,05-Sep-23,6735943,440,SUPPLIER,LILIAN DAVIS GROUP LTD,300000020467263
Portsmouth City Council,PCC,Children's and Education Services,Safeguarding Children and Young Peoples Services,Children's Services and Education,Third Party Payments,Other establishments,05-Sep-23,6735943,440,SUPPLIER,LILIAN DAVIS GROUP LTD,300000020467263
Portsmouth City Council,PCC,Children's and Education Services,Safeguarding Children and Young Peoples Services,Children's Services and Education,Third Party Payments,Other establishments,05-Sep-23,6735943,440,SUPPLIER,LILIAN DAVIS GROUP LTD,300000020467263
Portsmouth City Council,PCC,Children's and Education Services,Safeguarding Children and Young Peoples Services,Children's Services and Education,Third Party Payments,Other establishments,05-Sep-23,6735943,-872.6,SUPPLIER,LILIAN DAVIS GROUP LTD,300000020467263
Portsmouth City Council,PCC,Children's and Education Services,Safeguarding Children and Young Peoples Services,Children's Services and Education,Third Party Payments,Other establishments,05-Sep-23,6735943,-10,SUPPLIER,LILIAN DAVIS GROUP LTD,300000020467263
Portsmouth City Council,PCC,Children's and Education Services,Safeguarding Children and Young Peoples Services,Children's Services and Education,Third Party Payments,Other establishments,05-Sep-23,6735943,-10,SUPPLIER,LILIAN DAVIS GROUP LTD,300000020467263
Portsmouth City Council,PCC,Children's and Education Services,Safeguarding Children and Young Peoples Services,Children's Services and Education,Third Party Payments,Other establishments,05-Sep-23,6735943,-10,SUPPLIER,LILIAN DAVIS GROUP LTD,300000020467263
Portsmouth City Council,PCC,Children's and Education Services,Safeguarding Children and Young Peoples Services,Children's Services and Education,Third Party Payments,Other establishments,05-Sep-23,6735943,-7.14,SUPPLIER,LILIAN DAVIS GROUP LTD,300000020467263
Portsmouth City Council,PCC,Children's and Education Services,Safeguarding Children and Young Peoples Services,Children's Services and Education,Third Party Payments,Other establishments,05-Sep-23,6735943,-7.14,SUPPLIER,LILIAN DAVIS GROUP LTD,300000020467263
Portsmouth City Council,PCC,Children's and Education Services,Safeguarding Children and Young Peoples Services,Children's Services and Education,Third Party Payments,Other establishments,05-Sep-23,6735943,-0.01,SUPPLIER,LILIAN DAVIS GROUP LTD,300000020467263
Portsmouth City Council,PCC,Children's and Education Services,Safeguarding Children and Young Peoples Services,Children's Services and Education,Third Party Payments,Other establishments,05-Sep-23,6735943,89.29,SUPPLIER,LILIAN DAVIS GROUP LTD,300000020467263
Portsmouth City Council,PCC,Children's and Education Services,Safeguarding Children and Young Peoples Services,Children's Services and Education,Third Party Payments,Other establishments,05-Sep-23,6735943,89.29,SUPPLIER,LILIAN DAVIS GROUP LTD,300000020467263
Portsmouth City Council,PCC,Children's and Education Services,Safeguarding Children and Young Peoples Services,Children's Services and Education,Third Party Payments,Other establishments,05-Sep-23,6735943,125,SUPPLIER,LILIAN DAVIS GROUP LTD,300000020467263
Portsmouth City Council,PCC,Children's and Education Services,Safeguarding Children and Young Peoples Services,Children's Services and Education,Third Party Payments,Other establishments,05-Sep-23,6735943,125,SUPPLIER,LILIAN DAVIS GROUP LTD,300000020467263
Portsmouth City Council,PCC,Children's and Education Services,Safeguarding Children and Young Peoples Services,Children's Services and Education,Third Party Payments,Other establishments,05-Sep-23,6735943,125,SUPPLIER,LILIAN DAVIS GROUP LTD,300000020467263
Portsmouth City Council,PCC,Children's and Education Services,Safeguarding Children and Young Peoples Services,Children's Services and Education,Third Party Payments,Other establishments,05-Sep-23,6735943,277.14,SUPPLIER,LILIAN DAVIS GROUP LTD,300000020467263
Portsmouth City Council,PCC,Children's and Education Services,Safeguarding Children and Young Peoples Services,Children's Services and Education,Third Party Payments,Other establishments,05-Sep-23,6735943,277.14,SUPPLIER,LILIAN DAVIS GROUP LTD,300000020467263
Portsmouth City Council,PCC,Children's and Education Services,Safeguarding Children and Young Peoples Services,Children's Services and Education,Third Party Payments,Other establishments,05-Sep-23,6735943,388,SUPPLIER,LILIAN DAVIS GROUP LTD,300000020467263
Portsmouth City Council,PCC,Children's and Education Services,Safeguarding Children and Young Peoples Services,Children's Services and Education,Third Party Payments,Other establishments,05-Sep-23,6735943,388,SUPPLIER,LILIAN DAVIS GROUP LTD,300000020467263
Portsmouth City Council,PCC,Children's and Education Services,Safeguarding Children and Young Peoples Services,Children's Services and Education,Third Party Payments,Other establishments,05-Sep-23,6735943,388,SUPPLIER,LILIAN DAVIS GROUP LTD,300000020467263
Portsmouth City Council,PCC,Children's and Education Services,Safeguarding Children and Young Peoples Services,Children's Services and Education,Third Party Payments,Other establishments,05-Sep-23,6735943,-892.54,SUPPLIER,LILIAN DAVIS GROUP LTD,300000020467263
Portsmouth City Council,PCC,Children's and Education Services,Safeguarding Children and Young Peoples Services,Children's Services and Education,Third Party Payments,Other establishments,05-Sep-23,6735943,-10,SUPPLIER,LILIAN DAVIS GROUP LTD,300000020467263
Portsmouth City Council,PCC,Children's and Education Services,Safeguarding Children and Young Peoples Services,Children's Services and Education,Third Party Payments,Other establishments,05-Sep-23,6735943,-10,SUPPLIER,LILIAN DAVIS GROUP LTD,300000020467263
Portsmouth City Council,PCC,Children's and Education Services,Safeguarding Children and Young Peoples Services,Children's Services and Education,Third Party Payments,Other establishments,05-Sep-23,6735943,-10,SUPPLIER,LILIAN DAVIS GROUP LTD,300000020467263
Portsmouth City Council,PCC,Children's and Education Services,Safeguarding Children and Young Peoples Services,Children's Services and Education,Third Party Payments,Other establishments,05-Sep-23,6735943,-7.14,SUPPLIER,LILIAN DAVIS GROUP LTD,300000020467263
Portsmouth City Council,PCC,Children's and Education Services,Safeguarding Children and Young Peoples Services,Children's Services and Education,Third Party Payments,Other establishments,05-Sep-23,6735943,-7.14,SUPPLIER,LILIAN DAVIS GROUP LTD,300000020467263
Portsmouth City Council,PCC,Children's and Education Services,Safeguarding Children and Young Peoples Services,Children's Services and Education,Third Party Payments,Other establishments,05-Sep-23,6735943,85.71,SUPPLIER,LILIAN DAVIS GROUP LTD,300000020467263
Portsmouth City Council,PCC,Children's and Education Services,Safeguarding Children and Young Peoples Services,Children's Services and Education,Third Party Payments,Other establishments,05-Sep-23,6735943,85.71,SUPPLIER,LILIAN DAVIS GROUP LTD,300000020467263
Portsmouth City Council,PCC,Children's and Education Services,Safeguarding Children and Young Peoples Services,Children's Services and Education,Third Party Payments,Other establishments,05-Sep-23,6735943,120,SUPPLIER,LILIAN DAVIS GROUP LTD,300000020467263
Portsmouth City Council,PCC,Children's and Education Services,Safeguarding Children and Young Peoples Services,Children's Services and Education,Third Party Payments,Other establishments,05-Sep-23,6735943,120,SUPPLIER,LILIAN DAVIS GROUP LTD,300000020467263
Portsmouth City Council,PCC,Children's and Education Services,Safeguarding Children and Young Peoples Services,Children's Services and Education,Third Party Payments,Other establishments,05-Sep-23,6735943,120,SUPPLIER,LILIAN DAVIS GROUP LTD,300000020467263
Portsmouth City Council,PCC,Children's and Education Services,Safeguarding Children and Young Peoples Services,Children's Services and Education,Third Party Payments,Other establishments,05-Sep-23,6735943,314.29,SUPPLIER,LILIAN DAVIS GROUP LTD,300000020467263
Portsmouth City Council,PCC,Children's and Education Services,Safeguarding Children and Young Peoples Services,Children's Services and Education,Third Party Payments,Other establishments,05-Sep-23,6735943,314.29,SUPPLIER,LILIAN DAVIS GROUP LTD,300000020467263
Portsmouth City Council,PCC,Children's and Education Services,Safeguarding Children and Young Peoples Services,Children's Services and Education,Third Party Payments,Other establishments,05-Sep-23,6735943,440,SUPPLIER,LILIAN DAVIS GROUP LTD,300000020467263
Portsmouth City Council,PCC,Children's and Education Services,Safeguarding Children and Young Peoples Services,Children's Services and Education,Third Party Payments,Other establishments,05-Sep-23,6735943,440,SUPPLIER,LILIAN DAVIS GROUP LTD,300000020467263
Portsmouth City Council,PCC,Children's and Education Services,Safeguarding Children and Young Peoples Services,Children's Services and Education,Third Party Payments,Other establishments,05-Sep-23,6735943,440,SUPPLIER,LILIAN DAVIS GROUP LTD,300000020467263
Portsmouth City Council,PCC,Children's and Education Services,Asylum seekers,Children's Services and Education,Third Party Payments,Other establishments,04-Sep-23,6735874,228.57,SUPPLIER,FAMILY FIRST FOSTERING,300000020483859
Portsmouth City Council,PCC,Children's and Education Services,Asylum seekers,Children's Services and Education,Third Party Payments,Other establishments,04-Sep-23,6735874,457.14,SUPPLIER,FAMILY FIRST FOSTERING,300000020483859
Portsmouth City Council,PCC,Children's and Education Services,Asylum seekers,Children's Services and Education,Third Party Payments,Other establishments,04-Sep-23,6735874,"1,600.00",SUPPLIER,FAMILY FIRST FOSTERING,300000020483859
Portsmouth City Council,PCC,Children's and Education Services,Asylum seekers,Children's Services and Education,Third Party Payments,Other establishments,04-Sep-23,6735874,"1,600.00",SUPPLIER,FAMILY FIRST FOSTERING,300000020483859
Portsmouth City Council,PCC,Children's and Education Services,Asylum seekers,Children's Services and Education,Third Party Payments,Other establishments,04-Sep-23,6735874,"1,600.00",SUPPLIER,FAMILY FIRST FOSTERING,300000020483859
Portsmouth City Council,PCC,Children's and Education Services,Asylum seekers,Children's Services and Education,Third Party Payments,Other establishments,04-Sep-23,6735874,"1,600.00",SUPPLIER,FAMILY FIRST FOSTERING,300000020483859
Portsmouth City Council,PCC,Children's and Education Services,Safeguarding Children and Young Peoples Services,Children's Services and Education,Third Party Payments,Other establishments,04-Sep-23,6735874,125,SUPPLIER,FAMILY FIRST FOSTERING,300000020483859
Portsmouth City Council,PCC,Children's and Education Services,Safeguarding Children and Young Peoples Services,Children's Services and Education,Third Party Payments,Other establishments,04-Sep-23,6735874,250,SUPPLIER,FAMILY FIRST FOSTERING,300000020483859
Portsmouth City Council,PCC,Children's and Education Services,Safeguarding Children and Young Peoples Services,Children's Services and Education,Third Party Payments,Other establishments,04-Sep-23,6735874,875,SUPPLIER,FAMILY FIRST FOSTERING,300000020483859
Portsmouth City Council,PCC,Children's and Education Services,Safeguarding Children and Young Peoples Services,Children's Services and Education,Third Party Payments,Other establishments,04-Sep-23,6735874,875,SUPPLIER,FAMILY FIRST FOSTERING,300000020483859
Portsmouth City Council,PCC,Children's and Education Services,Safeguarding Children and Young Peoples Services,Children's Services and Education,Third Party Payments,Other establishments,04-Sep-23,6735874,875,SUPPLIER,FAMILY FIRST FOSTERING,300000020483859
Portsmouth City Council,PCC,Children's and Education Services,Safeguarding Children and Young Peoples Services,Children's Services and Education,Third Party Payments,Other establishments,04-Sep-23,6735874,875,SUPPLIER,FAMILY FIRST FOSTERING,300000020483859
Portsmouth City Council,PCC,Children's and Education Services,Safeguarding Children and Young Peoples Services,Children's Services and Education,Third Party Payments,Other establishments,04-Sep-23,6735874,-0.01,SUPPLIER,FAMILY FIRST FOSTERING,300000020483859
Portsmouth City Council,PCC,Children's and Education Services,Safeguarding Children and Young Peoples Services,Children's Services and Education,Third Party Payments,Other establishments,04-Sep-23,6735874,130.73,SUPPLIER,FAMILY FIRST FOSTERING,300000020483859
Portsmouth City Council,PCC,Children's and Education Services,Safeguarding Children and Young Peoples Services,Children's Services and Education,Third Party Payments,Other establishments,04-Sep-23,6735874,261.46,SUPPLIER,FAMILY FIRST FOSTERING,300000020483859
Portsmouth City Council,PCC,Children's and Education Services,Safeguarding Children and Young Peoples Services,Children's Services and Education,Third Party Payments,Other establishments,04-Sep-23,6735874,261.46,SUPPLIER,FAMILY FIRST FOSTERING,300000020483859
Portsmouth City Council,PCC,Children's and Education Services,Safeguarding Children and Young Peoples Services,Children's Services and Education,Third Party Payments,Other establishments,04-Sep-23,6735874,653.64,SUPPLIER,FAMILY FIRST FOSTERING,300000020483859
Portsmouth City Council,PCC,Children's and Education Services,Safeguarding Children and Young Peoples Services,Children's Services and Education,Third Party Payments,Other establishments,04-Sep-23,6735874,915.1,SUPPLIER,FAMILY FIRST FOSTERING,300000020483859
Portsmouth City Council,PCC,Children's and Education Services,Safeguarding Children and Young Peoples Services,Children's Services and Education,Third Party Payments,Other establishments,04-Sep-23,6735874,915.1,SUPPLIER,FAMILY FIRST FOSTERING,300000020483859
Portsmouth City Council,PCC,Children's and Education Services,Safeguarding Children and Young Peoples Services,Children's Services and Education,Third Party Payments,Other establishments,04-Sep-23,6735874,915.1,SUPPLIER,FAMILY FIRST FOSTERING,300000020483859
Portsmouth City Council,PCC,Children's and Education Services,Children Looked After,Children's Services and Education,Third Party Payments,Other establishments,06-Sep-23,6736145,"1,500.00",SUPPLIER,KEYS PCE LIMITED,300000020478917
Portsmouth City Council,PCC,Children's and Education Services,Children Looked After,Children's Services and Education,Third Party Payments,Other establishments,06-Sep-23,6736145,"3,000.00",SUPPLIER,KEYS PCE LIMITED,300000020478917
Portsmouth City Council,PCC,Children's and Education Services,Children Looked After,Children's Services and Education,Third Party Payments,Other establishments,06-Sep-23,6736145,"10,500.00",SUPPLIER,KEYS PCE LIMITED,300000020478917
Portsmouth City Council,PCC,Children's and Education Services,Children Looked After,Children's Services and Education,Third Party Payments,Other establishments,06-Sep-23,6736145,"10,500.00",SUPPLIER,KEYS PCE LIMITED,300000020478917
Portsmouth City Council,PCC,Children's and Education Services,Children Looked After,Children's Services and Education,Third Party Payments,Other establishments,06-Sep-23,6736145,"10,500.00",SUPPLIER,KEYS PCE LIMITED,300000020478917
Portsmouth City Council,PCC,Children's and Education Services,Children Looked After,Children's Services and Education,Third Party Payments,Other establishments,06-Sep-23,6736145,"10,500.00",SUPPLIER,KEYS PCE LIMITED,300000020478917
Portsmouth City Council,PCC,Children's and Education Services,Children Looked After,Children's Services and Education,Third Party Payments,Other establishments,04-Sep-23,6735806,-0.01,LIMITED COMPANY,FOUNDATION FOR FAMILIES LTD,300000580689662
Portsmouth City Council,PCC,Children's and Education Services,Children Looked After,Children's Services and Education,Third Party Payments,Other establishments,04-Sep-23,6735806,"2,228.57",LIMITED COMPANY,FOUNDATION FOR FAMILIES LTD,300000580689662
Portsmouth City Council,PCC,Children's and Education Services,Children Looked After,Children's Services and Education,Third Party Payments,Other establishments,04-Sep-23,6735806,"3,714.29",LIMITED COMPANY,FOUNDATION FOR FAMILIES LTD,300000580689662
Portsmouth City Council,PCC,Children's and Education Services,Children Looked After,Children's Services and Education,Third Party Payments,Other establishments,04-Sep-23,6735806,"5,200.00",LIMITED COMPANY,FOUNDATION FOR FAMILIES LTD,300000580689662
Portsmouth City Council,PCC,Children's and Education Services,Children Looked After,Children's Services and Education,Third Party Payments,Other establishments,04-Sep-23,6735806,"5,200.00",LIMITED COMPANY,FOUNDATION FOR FAMILIES LTD,300000580689662
Portsmouth City Council,PCC,Children's and Education Services,Other Children and Family Services,Children's Services and Education,Third Party Payments,Other establishments,01-Sep-23,6735754,"4,700.00",SUPPLIER,MOTIV8 SOUTH,300000020463140
Portsmouth City Council,PCC,Children's and Education Services,Children Looked After,Children's Services and Education,Third Party Payments,Other establishments,07-Sep-23,6736693,246.43,LIMITED COMPANY,UNIQUE CARE HOMES LIMITED,300000546966251
Portsmouth City Council,PCC,Children's and Education Services,Children Looked After,Children's Services and Education,Third Party Payments,Other establishments,07-Sep-23,6736693,246.43,LIMITED COMPANY,UNIQUE CARE HOMES LIMITED,300000546966251
Portsmouth City Council,PCC,Children's and Education Services,Children Looked After,Children's Services and Education,Third Party Payments,Other establishments,07-Sep-23,6736693,345,LIMITED COMPANY,UNIQUE CARE HOMES LIMITED,300000546966251
Portsmouth City Council,PCC,Children's and Education Services,Children Looked After,Children's Services and Education,Third Party Payments,Other establishments,07-Sep-23,6736693,345,LIMITED COMPANY,UNIQUE CARE HOMES LIMITED,300000546966251
Portsmouth City Council,PCC,Children's and Education Services,Children Looked After,Children's Services and Education,Third Party Payments,Other establishments,07-Sep-23,6736693,345,LIMITED COMPANY,UNIQUE CARE HOMES LIMITED,300000546966251
Portsmouth City Council,PCC,Children's and Education Services,Children Looked After,Children's Services and Education,Third Party Payments,Other establishments,07-Sep-23,6736693,542.86,LIMITED COMPANY,UNIQUE CARE HOMES LIMITED,300000546966251
Portsmouth City Council,PCC,Children's and Education Services,Children Looked After,Children's Services and Education,Third Party Payments,Other establishments,07-Sep-23,6736693,542.86,LIMITED COMPANY,UNIQUE CARE HOMES LIMITED,300000546966251
Portsmouth City Council,PCC,Children's and Education Services,Children Looked After,Children's Services and Education,Third Party Payments,Other establishments,07-Sep-23,6736693,760,LIMITED COMPANY,UNIQUE CARE HOMES LIMITED,300000546966251
Portsmouth City Council,PCC,Children's and Education Services,Children Looked After,Children's Services and Education,Third Party Payments,Other establishments,07-Sep-23,6736693,760,LIMITED COMPANY,UNIQUE CARE HOMES LIMITED,300000546966251
Portsmouth City Council,PCC,Children's and Education Services,Children Looked After,Children's Services and Education,Third Party Payments,Other establishments,07-Sep-23,6736693,760,LIMITED COMPANY,UNIQUE CARE HOMES LIMITED,300000546966251
Portsmouth City Council,PCC,Children's and Education Services,Children Looked After,Children's Services and Education,Third Party Payments,Other establishments,07-Sep-23,6736693,"2,532.14",LIMITED COMPANY,UNIQUE CARE HOMES LIMITED,300000546966251
Portsmouth City Council,PCC,Children's and Education Services,Children Looked After,Children's Services and Education,Third Party Payments,Other establishments,07-Sep-23,6736693,"2,532.14",LIMITED COMPANY,UNIQUE CARE HOMES LIMITED,300000546966251
Portsmouth City Council,PCC,Children's and Education Services,Children Looked After,Children's Services and Education,Third Party Payments,Other establishments,07-Sep-23,6736693,"3,545.00",LIMITED COMPANY,UNIQUE CARE HOMES LIMITED,300000546966251
Portsmouth City Council,PCC,Children's and Education Services,Children Looked After,Children's Services and Education,Third Party Payments,Other establishments,07-Sep-23,6736693,"3,545.00",LIMITED COMPANY,UNIQUE CARE HOMES LIMITED,300000546966251
Portsmouth City Council,PCC,Children's and Education Services,Children Looked After,Children's Services and Education,Third Party Payments,Other establishments,07-Sep-23,6736693,"3,545.00",LIMITED COMPANY,UNIQUE CARE HOMES LIMITED,300000546966251
Portsmouth City Council,PCC,Children's and Education Services,Children Looked After,Children's Services and Education,Third Party Payments,Other establishments,12-Sep-23,6736939,"4,050.00",LIMITED COMPANY,Proactive Intervention Care Ltd,300000384281903
Portsmouth City Council,PCC,Children's and Education Services,Children Looked After,Children's Services and Education,Third Party Payments,Other establishments,12-Sep-23,6736939,"6,750.00",LIMITED COMPANY,Proactive Intervention Care Ltd,300000384281903
Portsmouth City Council,PCC,Children's and Education Services,Children Looked After,Children's Services and Education,Third Party Payments,Other establishments,12-Sep-23,6736939,"9,450.00",LIMITED COMPANY,Proactive Intervention Care Ltd,300000384281903
Portsmouth City Council,PCC,Housing Services,Private Sector Housing Renewal,"Housing, Neighbourhood and Building Services",Income,Other grants reimbursements and contributions,04-Sep-23,6735832,-663,LIMITED COMPANY,LIFTECH SYSTEMS (SE) LIMITED,300000020461913
Portsmouth City Council,PCC,Other,Suspense and Capital Schemes,Capital - Housing and Tackling Homelessness,Capital Charges,REFCUS,04-Sep-23,6735832,795.6,LIMITED COMPANY,LIFTECH SYSTEMS (SE) LIMITED,300000020461913
Portsmouth City Council,PCC,Other,Suspense and Capital Schemes,Capital - Housing and Tackling Homelessness,Capital Charges,REFCUS,04-Sep-23,6735832,"4,420.00",LIMITED COMPANY,LIFTECH SYSTEMS (SE) LIMITED,300000020461913
Portsmouth City Council,PCC,Housing Services,Private Sector Housing Renewal,"Housing, Neighbourhood and Building Services",Income,Other grants reimbursements and contributions,04-Sep-23,6735832,-350,LIMITED COMPANY,LIFTECH SYSTEMS (SE) LIMITED,300000020461913
Portsmouth City Council,PCC,Other,Suspense and Capital Schemes,Capital - Housing and Tackling Homelessness,Capital Charges,REFCUS,04-Sep-23,6735832,420,LIMITED COMPANY,LIFTECH SYSTEMS (SE) LIMITED,300000020461913
Portsmouth City Council,PCC,Other,Suspense and Capital Schemes,Capital - Housing and Tackling Homelessness,Capital Charges,REFCUS,04-Sep-23,6735832,"2,197.00",LIMITED COMPANY,LIFTECH SYSTEMS (SE) LIMITED,300000020461913
Portsmouth City Council,PCC,Children's and Education Services,Early Years,Children's Services and Education,Third Party Payments,Other establishments,05-Sep-23,6736090,"1,041.60",SUPPLIER,ACADEMY TRUST (UNIVERSITY OF CHICHESTER),300000020484342
Portsmouth City Council,PCC,Children's and Education Services,Early Years,Children's Services and Education,Third Party Payments,Other establishments,05-Sep-23,6736090,"2,478.00",SUPPLIER,ACADEMY TRUST (UNIVERSITY OF CHICHESTER),300000020484342
Portsmouth City Council,PCC,Children's and Education Services,Early Years,Children's Services and Education,Third Party Payments,Other establishments,05-Sep-23,6736090,"45,334.80",SUPPLIER,ACADEMY TRUST (UNIVERSITY OF CHICHESTER),300000020484342
Portsmouth City Council,PCC,Children's and Education Services,Early Years,Children's Services and Education,Third Party Payments,Other establishments,05-Sep-23,6736091,260.4,SUPPLIER,ACADEMY TRUST (UNIVERSITY OF CHICHESTER),300000020484342
Portsmouth City Council,PCC,Children's and Education Services,Early Years,Children's Services and Education,Third Party Payments,Other establishments,05-Sep-23,6736091,"3,717.00",SUPPLIER,ACADEMY TRUST (UNIVERSITY OF CHICHESTER),300000020484342
Portsmouth City Council,PCC,Children's and Education Services,Early Years,Children's Services and Education,Third Party Payments,Other establishments,05-Sep-23,6736091,"15,111.60",SUPPLIER,ACADEMY TRUST (UNIVERSITY OF CHICHESTER),300000020484342
Portsmouth City Council,PCC,Children's and Education Services,Early Years,Children's Services and Education,Third Party Payments,Other establishments,05-Sep-23,6736120,381.92,SUPPLIER,ACADEMY TRUST (UNIVERSITY OF CHICHESTER),300000020484342
Portsmouth City Council,PCC,Children's and Education Services,Early Years,Children's Services and Education,Third Party Payments,Other establishments,05-Sep-23,6736120,"6,195.00",SUPPLIER,ACADEMY TRUST (UNIVERSITY OF CHICHESTER),300000020484342
Portsmouth City Council,PCC,Children's and Education Services,Early Years,Children's Services and Education,Third Party Payments,Other establishments,05-Sep-23,6736120,"8,386.28",SUPPLIER,ACADEMY TRUST (UNIVERSITY OF CHICHESTER),300000020484342
Portsmouth City Council,PCC,Children's and Education Services,Early Years,Children's Services and Education,Third Party Payments,Other establishments,05-Sep-23,6736120,"32,376.54",SUPPLIER,ACADEMY TRUST (UNIVERSITY OF CHICHESTER),300000020484342
Portsmouth City Council,PCC,Children's and Education Services,Early Years,Children's Services and Education,Third Party Payments,Other establishments,05-Sep-23,6735974,520.8,TRUST,Academy Trust - University of Portsmouth,300000316357634
Portsmouth City Council,PCC,Children's and Education Services,Early Years,Children's Services and Education,Third Party Payments,Other establishments,05-Sep-23,6735974,"34,540.80",TRUST,Academy Trust - University of Portsmouth,300000316357634
Portsmouth City Council,PCC,Children's and Education Services,Early Years,Children's Services and Education,Third Party Payments,Other establishments,05-Sep-23,6735961,317.44,SUPPLIER,ANDERSON AND BRETT LIMITED T/A ALPHABET CORNER,300000020459864
Portsmouth City Council,PCC,Children's and Education Services,Early Years,Children's Services and Education,Third Party Payments,Other establishments,05-Sep-23,6735961,"7,607.48",SUPPLIER,ANDERSON AND BRETT LIMITED T/A ALPHABET CORNER,300000020459864
Portsmouth City Council,PCC,Children's and Education Services,Early Years,Children's Services and Education,Third Party Payments,Other establishments,05-Sep-23,6735961,"22,075.36",SUPPLIER,ANDERSON AND BRETT LIMITED T/A ALPHABET CORNER,300000020459864
Portsmouth City Council,PCC,Children's and Education Services,Early Years,Children's Services and Education,Third Party Payments,Other establishments,05-Sep-23,6735961,"34,428.92",SUPPLIER,ANDERSON AND BRETT LIMITED T/A ALPHABET CORNER,300000020459864
Portsmouth City Council,PCC,Children's and Education Services,Early Years,Children's Services and Education,Third Party Payments,Other establishments,05-Sep-23,6736069,390.6,SUPPLIER,APPLE TREE DAY NURSERY,300000020459278
Portsmouth City Council,PCC,Children's and Education Services,Early Years,Children's Services and Education,Third Party Payments,Other establishments,05-Sep-23,6736069,"2,478.00",SUPPLIER,APPLE TREE DAY NURSERY,300000020459278
Portsmouth City Council,PCC,Children's and Education Services,Early Years,Children's Services and Education,Third Party Payments,Other establishments,05-Sep-23,6736069,"8,064.00",SUPPLIER,APPLE TREE DAY NURSERY,300000020459278
Portsmouth City Council,PCC,Children's and Education Services,Early Years,Children's Services and Education,Third Party Payments,Other establishments,05-Sep-23,6736069,"27,216.00",SUPPLIER,APPLE TREE DAY NURSERY,300000020459278
Portsmouth City Council,PCC,Children's and Education Services,Early Years,Children's Services and Education,Third Party Payments,Other establishments,05-Sep-23,6735921,"1,041.60",SUPPLIER,ARK SCHOOLS,300000020457866
Portsmouth City Council,PCC,Children's and Education Services,Early Years,Children's Services and Education,Third Party Payments,Other establishments,05-Sep-23,6735921,"9,506.70",SUPPLIER,ARK SCHOOLS,300000020457866
Portsmouth City Council,PCC,Children's and Education Services,Early Years,Children's Services and Education,Third Party Payments,Other establishments,05-Sep-23,6735921,"34,444.20",SUPPLIER,ARK SCHOOLS,300000020457866
Portsmouth City Council,PCC,Children's and Education Services,Early Years,Children's Services and Education,Third Party Payments,Other establishments,05-Sep-23,6735921,"59,152.80",SUPPLIER,ARK SCHOOLS,300000020457866
Portsmouth City Council,PCC,Children's and Education Services,Early Years,Children's Services and Education,Third Party Payments,Other establishments,05-Sep-23,6735922,"2,473.80",SUPPLIER,ARK SCHOOLS,300000020457866
Portsmouth City Council,PCC,Children's and Education Services,Early Years,Children's Services and Education,Third Party Payments,Other establishments,05-Sep-23,6735922,"59,367.00",SUPPLIER,ARK SCHOOLS,300000020457866
Portsmouth City Council,PCC,Children's and Education Services,Early Years,Children's Services and Education,Third Party Payments,Other establishments,05-Sep-23,6735957,781.2,SUPPLIER,BINSTEED CHILDCARE SERVICES LTD,300000020464156
Portsmouth City Council,PCC,Children's and Education Services,Early Years,Children's Services and Education,Third Party Payments,Other establishments,05-Sep-23,6735957,"1,239.00",SUPPLIER,BINSTEED CHILDCARE SERVICES LTD,300000020464156
Portsmouth City Council,PCC,Children's and Education Services,Early Years,Children's Services and Education,Third Party Payments,Other establishments,05-Sep-23,6735957,"8,248.80",SUPPLIER,BINSTEED CHILDCARE SERVICES LTD,300000020464156
Portsmouth City Council,PCC,Children's and Education Services,Early Years,Children's Services and Education,Third Party Payments,Other establishments,05-Sep-23,6735957,"26,808.60",SUPPLIER,BINSTEED CHILDCARE SERVICES LTD,300000020464156
Portsmouth City Council,PCC,Children's and Education Services,Early Years,Children's Services and Education,Third Party Payments,Other establishments,05-Sep-23,6735910,130.2,SUPPLIER,BUSY BEES NURSERIES LIMITED,300000020460888
Portsmouth City Council,PCC,Children's and Education Services,Early Years,Children's Services and Education,Third Party Payments,Other establishments,05-Sep-23,6735910,"3,717.00",SUPPLIER,BUSY BEES NURSERIES LIMITED,300000020460888
Portsmouth City Council,PCC,Children's and Education Services,Early Years,Children's Services and Education,Third Party Payments,Other establishments,05-Sep-23,6735910,"7,241.53",SUPPLIER,BUSY BEES NURSERIES LIMITED,300000020460888
Portsmouth City Council,PCC,Children's and Education Services,Early Years,Children's Services and Education,Third Party Payments,Other establishments,05-Sep-23,6735910,"16,053.03",SUPPLIER,BUSY BEES NURSERIES LIMITED,300000020460888
Portsmouth City Council,PCC,Children's and Education Services,Early Years,Children's Services and Education,Third Party Payments,Other establishments,05-Sep-23,6736074,235.6,SUPPLIER,CANOE LAKE NURSERY,300000020476277
Portsmouth City Council,PCC,Children's and Education Services,Early Years,Children's Services and Education,Third Party Payments,Other establishments,05-Sep-23,6736074,"1,120.35",SUPPLIER,CANOE LAKE NURSERY,300000020476277
Portsmouth City Council,PCC,Children's and Education Services,Early Years,Children's Services and Education,Third Party Payments,Other establishments,05-Sep-23,6736074,"5,014.94",SUPPLIER,CANOE LAKE NURSERY,300000020476277
Portsmouth City Council,PCC,Children's and Education Services,Early Years,Children's Services and Education,Third Party Payments,Other establishments,05-Sep-23,6736074,"17,667.77",SUPPLIER,CANOE LAKE NURSERY,300000020476277
Portsmouth City Council,PCC,Children's and Education Services,Early Years,Children's Services and Education,Third Party Payments,Other establishments,05-Sep-23,6736041,208.32,SUPPLIER,CAROUSEL NURSERY SCHOOL (HILSEA),300000020458059
Portsmouth City Council,PCC,Children's and Education Services,Early Years,Children's Services and Education,Third Party Payments,Other establishments,05-Sep-23,6736041,"10,490.20",SUPPLIER,CAROUSEL NURSERY SCHOOL (HILSEA),300000020458059
Portsmouth City Council,PCC,Children's and Education Services,Early Years,Children's Services and Education,Third Party Payments,Other establishments,05-Sep-23,6736041,"13,760.28",SUPPLIER,CAROUSEL NURSERY SCHOOL (HILSEA),300000020458059
Portsmouth City Council,PCC,Children's and Education Services,Early Years,Children's Services and Education,Third Party Payments,Other establishments,05-Sep-23,6736041,"30,638.40",SUPPLIER,CAROUSEL NURSERY SCHOOL (HILSEA),300000020458059
Portsmouth City Council,PCC,Children's and Education Services,Early Years,Children's Services and Education,Third Party Payments,Other establishments,05-Sep-23,6735909,"1,239.00",SUPPLIER,CASTLE PRE SCHOOL LTD,300000020459724
Portsmouth City Council,PCC,Children's and Education Services,Early Years,Children's Services and Education,Third Party Payments,Other establishments,05-Sep-23,6735909,"6,048.00",SUPPLIER,CASTLE PRE SCHOOL LTD,300000020459724
Portsmouth City Council,PCC,Children's and Education Services,Early Years,Children's Services and Education,Third Party Payments,Other establishments,05-Sep-23,6735909,"9,072.00",SUPPLIER,CASTLE PRE SCHOOL LTD,300000020459724
Portsmouth City Council,PCC,Children's and Education Services,Early Years,Children's Services and Education,Third Party Payments,Other establishments,05-Sep-23,6735931,260.4,SUPPLIER,CHERUBZ DAYCARE LIMITED,300000020470397
Portsmouth City Council,PCC,Children's and Education Services,Early Years,Children's Services and Education,Third Party Payments,Other establishments,05-Sep-23,6735931,"4,243.93",SUPPLIER,CHERUBZ DAYCARE LIMITED,300000020470397
Portsmouth City Council,PCC,Children's and Education Services,Early Years,Children's Services and Education,Third Party Payments,Other establishments,05-Sep-23,6735931,"10,523.84",SUPPLIER,CHERUBZ DAYCARE LIMITED,300000020470397
Portsmouth City Council,PCC,Children's and Education Services,Early Years,Children's Services and Education,Third Party Payments,Other establishments,05-Sep-23,6735931,"10,913.70",SUPPLIER,CHERUBZ DAYCARE LIMITED,300000020470397
Portsmouth City Council,PCC,Children's and Education Services,Early Years,Children's Services and Education,Third Party Payments,Other establishments,05-Sep-23,6736032,"3,939.60",SUPPLIER,DISCOVERY NURSERY SCHOOL (PORTSMOUTH) LIMITED,300000020475766
Portsmouth City Council,PCC,Children's and Education Services,Early Years,Children's Services and Education,Third Party Payments,Other establishments,05-Sep-23,6736032,"8,590.40",SUPPLIER,DISCOVERY NURSERY SCHOOL (PORTSMOUTH) LIMITED,300000020475766
Portsmouth City Council,PCC,Children's and Education Services,Early Years,Children's Services and Education,Third Party Payments,Other establishments,05-Sep-23,6736032,"21,695.94",SUPPLIER,DISCOVERY NURSERY SCHOOL (PORTSMOUTH) LIMITED,300000020475766
Portsmouth City Council,PCC,Children's and Education Services,Early Years,Children's Services and Education,Third Party Payments,Other establishments,05-Sep-23,6736057,110.81,SUPPLIER,DOLLS HOUSE NURSERY,300000020478739
Portsmouth City Council,PCC,Children's and Education Services,Early Years,Children's Services and Education,Third Party Payments,Other establishments,05-Sep-23,6736057,"1,239.00",SUPPLIER,DOLLS HOUSE NURSERY,300000020478739
Portsmouth City Council,PCC,Children's and Education Services,Early Years,Children's Services and Education,Third Party Payments,Other establishments,05-Sep-23,6736057,"10,900.52",SUPPLIER,DOLLS HOUSE NURSERY,300000020478739
Portsmouth City Council,PCC,Children's and Education Services,Early Years,Children's Services and Education,Third Party Payments,Other establishments,05-Sep-23,6736057,"32,266.41",SUPPLIER,DOLLS HOUSE NURSERY,300000020478739
Portsmouth City Council,PCC,Children's and Education Services,Early Years,Children's Services and Education,Third Party Payments,Other establishments,05-Sep-23,6736047,"5,712.42",SUPPLIER,DRAYTON DAISY CHAIN PRE SCHOOL,300000020459713
Portsmouth City Council,PCC,Children's and Education Services,Early Years,Children's Services and Education,Third Party Payments,Other establishments,05-Sep-23,6736047,"11,818.80",SUPPLIER,DRAYTON DAISY CHAIN PRE SCHOOL,300000020459713
Portsmouth City Council,PCC,Children's and Education Services,Early Years,Children's Services and Education,Third Party Payments,Other establishments,05-Sep-23,6735972,397.42,SUPPLIER,DREAM CATCHERS CHILDCARE LTD,300000306439296
Portsmouth City Council,PCC,Children's and Education Services,Early Years,Children's Services and Education,Third Party Payments,Other establishments,05-Sep-23,6735972,"3,911.70",SUPPLIER,DREAM CATCHERS CHILDCARE LTD,300000306439296
Portsmouth City Council,PCC,Children's and Education Services,Early Years,Children's Services and Education,Third Party Payments,Other establishments,05-Sep-23,6735972,"7,049.07",SUPPLIER,DREAM CATCHERS CHILDCARE LTD,300000306439296
Portsmouth City Council,PCC,Children's and Education Services,Early Years,Children's Services and Education,Third Party Payments,Other establishments,05-Sep-23,6735972,"17,001.25",SUPPLIER,DREAM CATCHERS CHILDCARE LTD,300000306439296
Portsmouth City Council,PCC,Children's and Education Services,Early Years,Children's Services and Education,Third Party Payments,Other establishments,05-Sep-23,6735986,520.8,SUPPLIER,DREAM CATCHERS CHILDCARE LTD,300000306439296
Portsmouth City Council,PCC,Children's and Education Services,Early Years,Children's Services and Education,Third Party Payments,Other establishments,05-Sep-23,6735986,"5,909.40",SUPPLIER,DREAM CATCHERS CHILDCARE LTD,300000306439296
Portsmouth City Council,PCC,Children's and Education Services,Early Years,Children's Services and Education,Third Party Payments,Other establishments,05-Sep-23,6735986,"7,434.00",SUPPLIER,DREAM CATCHERS CHILDCARE LTD,300000306439296
Portsmouth City Council,PCC,Children's and Education Services,Early Years,Children's Services and Education,Third Party Payments,Other establishments,05-Sep-23,6735986,"21,076.86",SUPPLIER,DREAM CATCHERS CHILDCARE LTD,300000306439296
Portsmouth City Council,PCC,Children's and Education Services,Early Years,Children's Services and Education,Third Party Payments,Other establishments,05-Sep-23,6736038,"2,478.00",SUPPLIER,DUCKPOND LTD,300000020461230
Portsmouth City Council,PCC,Children's and Education Services,Early Years,Children's Services and Education,Third Party Payments,Other establishments,05-Sep-23,6736038,"7,879.20",SUPPLIER,DUCKPOND LTD,300000020461230
Portsmouth City Council,PCC,Children's and Education Services,Early Years,Children's Services and Education,Third Party Payments,Other establishments,05-Sep-23,6736038,"16,415.00",SUPPLIER,DUCKPOND LTD,300000020461230
Portsmouth City Council,PCC,Children's and Education Services,Early Years,Children's Services and Education,Third Party Payments,Other establishments,05-Sep-23,6736045,"1,120.35",SUPPLIER,DYSART NURSERY,300000020460730
Portsmouth City Council,PCC,Children's and Education Services,Early Years,Children's Services and Education,Third Party Payments,Other establishments,05-Sep-23,6736045,"10,992.00",SUPPLIER,DYSART NURSERY,300000020460730
Portsmouth City Council,PCC,Children's and Education Services,Early Years,Children's Services and Education,Third Party Payments,Other establishments,05-Sep-23,6736045,"15,700.80",SUPPLIER,DYSART NURSERY,300000020460730
Portsmouth City Council,PCC,Children's and Education Services,Early Years,Children's Services and Education,Third Party Payments,Other establishments,05-Sep-23,6736067,"1,302.00",SUPPLIER,E C ROBERTS CENTRE,300000020458528
Portsmouth City Council,PCC,Children's and Education Services,Early Years,Children's Services and Education,Third Party Payments,Other establishments,05-Sep-23,6736067,"10,597.35",SUPPLIER,E C ROBERTS CENTRE,300000020458528
Portsmouth City Council,PCC,Children's and Education Services,Early Years,Children's Services and Education,Third Party Payments,Other establishments,05-Sep-23,6736067,"26,663.44",SUPPLIER,E C ROBERTS CENTRE,300000020458528
Portsmouth City Council,PCC,Children's and Education Services,Early Years,Children's Services and Education,Third Party Payments,Other establishments,05-Sep-23,6735948,"2,016.00",SUPPLIER,ELIZABETH FOUNDATION,300000020459466
Portsmouth City Council,PCC,Children's and Education Services,Early Years,Children's Services and Education,Third Party Payments,Other establishments,05-Sep-23,6736037,"1,239.00",SUPPLIER,FARLINGTON DAY NURSERY,300000020464440
Portsmouth City Council,PCC,Children's and Education Services,Early Years,Children's Services and Education,Third Party Payments,Other establishments,05-Sep-23,6736037,"11,647.30",SUPPLIER,FARLINGTON DAY NURSERY,300000020464440
Portsmouth City Council,PCC,Children's and Education Services,Early Years,Children's Services and Education,Third Party Payments,Other establishments,05-Sep-23,6736037,"33,150.96",SUPPLIER,FARLINGTON DAY NURSERY,300000020464440
Portsmouth City Council,PCC,Children's and Education Services,Early Years,Children's Services and Education,Third Party Payments,Other establishments,05-Sep-23,6736014,260.4,SUPPLIER,FLEDGLINGS PRE SCHOOL,300000020460510
Portsmouth City Council,PCC,Children's and Education Services,Early Years,Children's Services and Education,Third Party Payments,Other establishments,05-Sep-23,6736014,"3,717.00",SUPPLIER,FLEDGLINGS PRE SCHOOL,300000020460510
Portsmouth City Council,PCC,Children's and Education Services,Early Years,Children's Services and Education,Third Party Payments,Other establishments,05-Sep-23,6736014,"3,939.60",SUPPLIER,FLEDGLINGS PRE SCHOOL,300000020460510
Portsmouth City Council,PCC,Children's and Education Services,Early Years,Children's Services and Education,Third Party Payments,Other establishments,05-Sep-23,6736014,"19,698.00",SUPPLIER,FLEDGLINGS PRE SCHOOL,300000020460510
Portsmouth City Council,PCC,Children's and Education Services,Early Years,Children's Services and Education,Third Party Payments,Other establishments,05-Sep-23,6736019,"14,219.62",SUPPLIER,GIRLS DAY SCHOOL TRUST T/AS PORTSMOUTH HIGH SCHOOL,300000020461223
Portsmouth City Council,PCC,Children's and Education Services,Early Years,Children's Services and Education,Third Party Payments,Other establishments,05-Sep-23,6736073,105.4,SUPPLIER,GOOD MANORS DAY NURSERY,300000020476261
Portsmouth City Council,PCC,Children's and Education Services,Early Years,Children's Services and Education,Third Party Payments,Other establishments,05-Sep-23,6736073,"4,248.70",SUPPLIER,GOOD MANORS DAY NURSERY,300000020476261
Portsmouth City Council,PCC,Children's and Education Services,Early Years,Children's Services and Education,Third Party Payments,Other establishments,05-Sep-23,6736073,"6,524.72",SUPPLIER,GOOD MANORS DAY NURSERY,300000020476261
Portsmouth City Council,PCC,Children's and Education Services,Early Years,Children's Services and Education,Third Party Payments,Other establishments,05-Sep-23,6736073,"25,240.56",SUPPLIER,GOOD MANORS DAY NURSERY,300000020476261
Portsmouth City Council,PCC,Children's and Education Services,Early Years,Children's Services and Education,Third Party Payments,Other establishments,05-Sep-23,6735958,781.2,SUPPLIER,HAVEN NURSERY,300000020459521
Portsmouth City Council,PCC,Children's and Education Services,Early Years,Children's Services and Education,Third Party Payments,Other establishments,05-Sep-23,6735958,"3,890.41",SUPPLIER,HAVEN NURSERY,300000020459521
Portsmouth City Council,PCC,Children's and Education Services,Early Years,Children's Services and Education,Third Party Payments,Other establishments,05-Sep-23,6735958,"4,956.00",SUPPLIER,HAVEN NURSERY,300000020459521
Portsmouth City Council,PCC,Children's and Education Services,Early Years,Children's Services and Education,Third Party Payments,Other establishments,05-Sep-23,6735958,"21,484.63",SUPPLIER,HAVEN NURSERY,300000020459521
Portsmouth City Council,PCC,Children's and Education Services,Early Years,Children's Services and Education,Third Party Payments,Other establishments,05-Sep-23,6735950,130.2,SUPPLIER,JACK & JILL PRE-SCHOOL,300000020461807
Portsmouth City Council,PCC,Children's and Education Services,Early Years,Children's Services and Education,Third Party Payments,Other establishments,05-Sep-23,6735950,"1,329.62",SUPPLIER,JACK & JILL PRE-SCHOOL,300000020461807
Portsmouth City Council,PCC,Children's and Education Services,Early Years,Children's Services and Education,Third Party Payments,Other establishments,05-Sep-23,6735950,"3,717.00",SUPPLIER,JACK & JILL PRE-SCHOOL,300000020461807
Portsmouth City Council,PCC,Children's and Education Services,Early Years,Children's Services and Education,Third Party Payments,Other establishments,05-Sep-23,6735950,"13,591.62",SUPPLIER,JACK & JILL PRE-SCHOOL,300000020461807
Portsmouth City Council,PCC,Children's and Education Services,Early Years,Children's Services and Education,Third Party Payments,Other establishments,01-Sep-23,6735803,104.16,PRIVATE PROVIDER,Sparkle Lodge CIC,300000198558659
Portsmouth City Council,PCC,Children's and Education Services,Early Years,Children's Services and Education,Third Party Payments,Other establishments,01-Sep-23,6735803,974.4,PRIVATE PROVIDER,Sparkle Lodge CIC,300000198558659
Portsmouth City Council,PCC,Children's and Education Services,Early Years,Children's Services and Education,Third Party Payments,Other establishments,01-Sep-23,6735803,"4,838.40",PRIVATE PROVIDER,Sparkle Lodge CIC,300000198558659
Portsmouth City Council,PCC,Children's and Education Services,Early Years,Children's Services and Education,Third Party Payments,Other establishments,05-Sep-23,6735963,"1,239.00",SUPPLIER,LEAPFROG NEIGHBOURHOOD NURSERY,300000020461617
Portsmouth City Council,PCC,Children's and Education Services,Early Years,Children's Services and Education,Third Party Payments,Other establishments,05-Sep-23,6735963,"20,059.76",SUPPLIER,LEAPFROG NEIGHBOURHOOD NURSERY,300000020461617
Portsmouth City Council,PCC,Children's and Education Services,Early Years,Children's Services and Education,Third Party Payments,Other establishments,05-Sep-23,6735963,"35,187.88",SUPPLIER,LEAPFROG NEIGHBOURHOOD NURSERY,300000020461617
Portsmouth City Council,PCC,Children's and Education Services,Early Years,Children's Services and Education,Third Party Payments,Other establishments,05-Sep-23,6735962,"4,613.22",SUPPLIER,LEAPFROG NEIGHBOURHOOD NURSERY,300000020461617
Portsmouth City Council,PCC,Children's and Education Services,Early Years,Children's Services and Education,Third Party Payments,Other establishments,05-Sep-23,6735962,"9,112.40",SUPPLIER,LEAPFROG NEIGHBOURHOOD NURSERY,300000020461617
Portsmouth City Council,PCC,Children's and Education Services,Early Years,Children's Services and Education,Third Party Payments,Other establishments,05-Sep-23,6735962,"16,913.91",SUPPLIER,LEAPFROG NEIGHBOURHOOD NURSERY,300000020461617
Portsmouth City Council,PCC,Children's and Education Services,Early Years,Children's Services and Education,Third Party Payments,Other establishments,05-Sep-23,6735980,"1,734.60",SUPPLIER,LITTLE BEARS FOREST PRE SCHOOL LTD,300000020477805
Portsmouth City Council,PCC,Children's and Education Services,Early Years,Children's Services and Education,Third Party Payments,Other establishments,05-Sep-23,6735980,"6,921.60",SUPPLIER,LITTLE BEARS FOREST PRE SCHOOL LTD,300000020477805
Portsmouth City Council,PCC,Children's and Education Services,Early Years,Children's Services and Education,Third Party Payments,Other establishments,05-Sep-23,6735980,"10,752.00",SUPPLIER,LITTLE BEARS FOREST PRE SCHOOL LTD,300000020477805
Portsmouth City Council,PCC,Children's and Education Services,Early Years,Children's Services and Education,Third Party Payments,Other establishments,05-Sep-23,6735933,"6,048.00",SUPPLIER,LITTLE LAMBS NURSERY,300000020472621
Portsmouth City Council,PCC,Children's and Education Services,Early Years,Children's Services and Education,Third Party Payments,Other establishments,05-Sep-23,6735933,"6,195.00",SUPPLIER,LITTLE LAMBS NURSERY,300000020472621
Portsmouth City Council,PCC,Children's and Education Services,Early Years,Children's Services and Education,Third Party Payments,Other establishments,05-Sep-23,6736049,218.24,SUPPLIER,LITTLE LEARNERS DAYCARE LIMITED,300000020463552
Portsmouth City Council,PCC,Children's and Education Services,Early Years,Children's Services and Education,Third Party Payments,Other establishments,05-Sep-23,6736049,"1,038.40",SUPPLIER,LITTLE LEARNERS DAYCARE LIMITED,300000020463552
Portsmouth City Council,PCC,Children's and Education Services,Early Years,Children's Services and Education,Third Party Payments,Other establishments,05-Sep-23,6736049,"11,911.04",SUPPLIER,LITTLE LEARNERS DAYCARE LIMITED,300000020463552
Portsmouth City Council,PCC,Children's and Education Services,Early Years,Children's Services and Education,Third Party Payments,Other establishments,05-Sep-23,6736049,"27,604.64",SUPPLIER,LITTLE LEARNERS DAYCARE LIMITED,300000020463552
Portsmouth City Council,PCC,Children's and Education Services,Early Years,Children's Services and Education,Third Party Payments,Other establishments,05-Sep-23,6736117,117.73,SUPPLIER,LITTLE MINDS BIG DREAMS LIMITED,300000020483239
Portsmouth City Council,PCC,Children's and Education Services,Early Years,Children's Services and Education,Third Party Payments,Other establishments,05-Sep-23,6736117,"4,481.40",SUPPLIER,LITTLE MINDS BIG DREAMS LIMITED,300000020483239
Portsmouth City Council,PCC,Children's and Education Services,Early Years,Children's Services and Education,Third Party Payments,Other establishments,05-Sep-23,6736117,"8,045.80",SUPPLIER,LITTLE MINDS BIG DREAMS LIMITED,300000020483239
Portsmouth City Council,PCC,Children's and Education Services,Early Years,Children's Services and Education,Third Party Payments,Other establishments,05-Sep-23,6736117,"15,990.45",SUPPLIER,LITTLE MINDS BIG DREAMS LIMITED,300000020483239
Portsmouth City Council,PCC,Children's and Education Services,Early Years,Children's Services and Education,Third Party Payments,Other establishments,05-Sep-23,6735919,231.04,SUPPLIER,LITTLE PEOPLES NURSERY,300000020478574
Portsmouth City Council,PCC,Children's and Education Services,Early Years,Children's Services and Education,Third Party Payments,Other establishments,05-Sep-23,6735919,"1,099.29",SUPPLIER,LITTLE PEOPLES NURSERY,300000020478574
Portsmouth City Council,PCC,Children's and Education Services,Early Years,Children's Services and Education,Third Party Payments,Other establishments,05-Sep-23,6735919,"12,913.07",SUPPLIER,LITTLE PEOPLES NURSERY,300000020478574
Portsmouth City Council,PCC,Children's and Education Services,Early Years,Children's Services and Education,Third Party Payments,Other establishments,05-Sep-23,6735919,"26,062.12",SUPPLIER,LITTLE PEOPLES NURSERY,300000020478574
Portsmouth City Council,PCC,Children's and Education Services,Early Years,Children's Services and Education,Third Party Payments,Other establishments,05-Sep-23,6735940,"5,040.00",SUPPLIER,LITTLE SPINNAKERS PRE-SCHOOL,300000020459851
Portsmouth City Council,PCC,Children's and Education Services,Early Years,Children's Services and Education,Third Party Payments,Other establishments,05-Sep-23,6735940,"8,673.00",SUPPLIER,LITTLE SPINNAKERS PRE-SCHOOL,300000020459851
Portsmouth City Council,PCC,Children's and Education Services,Early Years,Children's Services and Education,Third Party Payments,Other establishments,05-Sep-23,6735940,"15,120.00",SUPPLIER,LITTLE SPINNAKERS PRE-SCHOOL,300000020459851
Portsmouth City Council,PCC,Children's and Education Services,Early Years,Children's Services and Education,Third Party Payments,Other establishments,05-Sep-23,6736031,991.2,SUPPLIER,LITTLE STARS PRE SCHOOL,300000020457319
Portsmouth City Council,PCC,Children's and Education Services,Early Years,Children's Services and Education,Third Party Payments,Other establishments,05-Sep-23,6736031,"1,302.00",SUPPLIER,LITTLE STARS PRE SCHOOL,300000020457319
Portsmouth City Council,PCC,Children's and Education Services,Early Years,Children's Services and Education,Third Party Payments,Other establishments,05-Sep-23,6736031,"2,923.20",SUPPLIER,LITTLE STARS PRE SCHOOL,300000020457319
Portsmouth City Council,PCC,Children's and Education Services,Early Years,Children's Services and Education,Third Party Payments,Other establishments,05-Sep-23,6736031,"29,232.00",SUPPLIER,LITTLE STARS PRE SCHOOL,300000020457319
Portsmouth City Council,PCC,Children's and Education Services,Early Years,Children's Services and Education,Third Party Payments,Other establishments,05-Sep-23,6735942,260.4,SUPPLIER,LITTLE SUNBEAMS PRE SCHOOL,300000020460134
Portsmouth City Council,PCC,Children's and Education Services,Early Years,Children's Services and Education,Third Party Payments,Other establishments,05-Sep-23,6735942,"2,217.60",SUPPLIER,LITTLE SUNBEAMS PRE SCHOOL,300000020460134
Portsmouth City Council,PCC,Children's and Education Services,Early Years,Children's Services and Education,Third Party Payments,Other establishments,05-Sep-23,6735942,"2,478.00",SUPPLIER,LITTLE SUNBEAMS PRE SCHOOL,300000020460134
Portsmouth City Council,PCC,Children's and Education Services,Early Years,Children's Services and Education,Third Party Payments,Other establishments,05-Sep-23,6735942,"35,683.20",SUPPLIER,LITTLE SUNBEAMS PRE SCHOOL,300000020460134
Portsmouth City Council,PCC,Children's and Education Services,Early Years,Children's Services and Education,Third Party Payments,Other establishments,05-Sep-23,6735969,638.53,SUPPLIER,LITTLE THINKERS AT NEW HORIZONS,300000020461851
Portsmouth City Council,PCC,Children's and Education Services,Early Years,Children's Services and Education,Third Party Payments,Other establishments,05-Sep-23,6735969,"4,956.00",SUPPLIER,LITTLE THINKERS AT NEW HORIZONS,300000020461851
Portsmouth City Council,PCC,Children's and Education Services,Early Years,Children's Services and Education,Third Party Payments,Other establishments,05-Sep-23,6735969,"14,856.19",SUPPLIER,LITTLE THINKERS AT NEW HORIZONS,300000020461851
Portsmouth City Council,PCC,Children's and Education Services,Early Years,Children's Services and Education,Third Party Payments,Other establishments,05-Sep-23,6735969,"47,485.59",SUPPLIER,LITTLE THINKERS AT NEW HORIZONS,300000020461851
Portsmouth City Council,PCC,Children's and Education Services,Early Years,Children's Services and Education,Third Party Payments,Other establishments,05-Sep-23,6735911,"18,741.24",SUPPLIER,MAYVILLE HIGH SCHOOL,300000020460898
Portsmouth City Council,PCC,Children's and Education Services,Early Years,Children's Services and Education,Third Party Payments,Other establishments,05-Sep-23,6735911,"30,391.20",SUPPLIER,MAYVILLE HIGH SCHOOL,300000020460898
Portsmouth City Council,PCC,Children's and Education Services,Early Years,Children's Services and Education,Third Party Payments,Other establishments,05-Sep-23,6735912,503.44,SUPPLIER,MILTON PARK PRE SCHOOL,300000020460904
Portsmouth City Council,PCC,Children's and Education Services,Early Years,Children's Services and Education,Third Party Payments,Other establishments,05-Sep-23,6735912,"1,747.20",SUPPLIER,MILTON PARK PRE SCHOOL,300000020460904
Portsmouth City Council,PCC,Children's and Education Services,Early Years,Children's Services and Education,Third Party Payments,Other establishments,05-Sep-23,6735912,"2,312.80",SUPPLIER,MILTON PARK PRE SCHOOL,300000020460904
Portsmouth City Council,PCC,Children's and Education Services,Early Years,Children's Services and Education,Third Party Payments,Other establishments,05-Sep-23,6735912,"19,420.80",SUPPLIER,MILTON PARK PRE SCHOOL,300000020460904
Portsmouth City Council,PCC,Children's and Education Services,Early Years,Children's Services and Education,Third Party Payments,Other establishments,05-Sep-23,6735946,"16,894.28",SUPPLIER,PORTSMOUTH GRAMMAR SCHOOL,300000020463490
Portsmouth City Council,PCC,Children's and Education Services,Early Years,Children's Services and Education,Third Party Payments,Other establishments,05-Sep-23,6735946,"29,268.48",SUPPLIER,PORTSMOUTH GRAMMAR SCHOOL,300000020463490
Portsmouth City Council,PCC,Children's and Education Services,Early Years,Children's Services and Education,Third Party Payments,Other establishments,05-Sep-23,6736015,115.52,SUPPLIER,RAINBOW CORNER NURSERY SCHOOL,300000020464337
Portsmouth City Council,PCC,Children's and Education Services,Early Years,Children's Services and Education,Third Party Payments,Other establishments,05-Sep-23,6736015,"7,406.16",SUPPLIER,RAINBOW CORNER NURSERY SCHOOL,300000020464337
Portsmouth City Council,PCC,Children's and Education Services,Early Years,Children's Services and Education,Third Party Payments,Other establishments,05-Sep-23,6736015,"12,179.94",SUPPLIER,RAINBOW CORNER NURSERY SCHOOL,300000020464337
Portsmouth City Council,PCC,Children's and Education Services,Early Years,Children's Services and Education,Third Party Payments,Other establishments,05-Sep-23,6736015,"26,299.70",SUPPLIER,RAINBOW CORNER NURSERY SCHOOL,300000020464337
Portsmouth City Council,PCC,Children's and Education Services,Early Years,Children's Services and Education,Third Party Payments,Other establishments,05-Sep-23,6735970,251.72,SUPPLIER,SOUTHSEA NATURE NURSERY,300000020483131
Portsmouth City Council,PCC,Children's and Education Services,Early Years,Children's Services and Education,Third Party Payments,Other establishments,05-Sep-23,6735970,459.62,SUPPLIER,SOUTHSEA NATURE NURSERY,300000020483131
Portsmouth City Council,PCC,Children's and Education Services,Early Years,Children's Services and Education,Third Party Payments,Other establishments,05-Sep-23,6735970,"19,041.40",SUPPLIER,SOUTHSEA NATURE NURSERY,300000020483131
Portsmouth City Council,PCC,Children's and Education Services,Early Years,Children's Services and Education,Third Party Payments,Other establishments,05-Sep-23,6735990,260.4,SUPPLIER,SPRINGWOOD PRESCHOOL AND NURSERY LIMITED,300000588615627
Portsmouth City Council,PCC,Children's and Education Services,Early Years,Children's Services and Education,Third Party Payments,Other establishments,05-Sep-23,6735990,"5,155.50",SUPPLIER,SPRINGWOOD PRESCHOOL AND NURSERY LIMITED,300000588615627
Portsmouth City Council,PCC,Children's and Education Services,Early Years,Children's Services and Education,Third Party Payments,Other establishments,05-Sep-23,6735990,"9,912.00",SUPPLIER,SPRINGWOOD PRESCHOOL AND NURSERY LIMITED,300000588615627
Portsmouth City Council,PCC,Children's and Education Services,Early Years,Children's Services and Education,Third Party Payments,Other establishments,05-Sep-23,6735990,"10,311.00",SUPPLIER,SPRINGWOOD PRESCHOOL AND NURSERY LIMITED,300000588615627
Portsmouth City Council,PCC,Children's and Education Services,Early Years,Children's Services and Education,Third Party Payments,Other establishments,05-Sep-23,6736039,865.31,SUPPLIER,ST JUDES NURSERY SCHOOL,300000020461235
Portsmouth City Council,PCC,Children's and Education Services,Early Years,Children's Services and Education,Third Party Payments,Other establishments,05-Sep-23,6736039,"6,265.70",SUPPLIER,ST JUDES NURSERY SCHOOL,300000020461235
Portsmouth City Council,PCC,Children's and Education Services,Early Years,Children's Services and Education,Third Party Payments,Other establishments,05-Sep-23,6736039,"21,328.50",SUPPLIER,ST JUDES NURSERY SCHOOL,300000020461235
Portsmouth City Council,PCC,Children's and Education Services,Early Years,Children's Services and Education,Third Party Payments,Other establishments,05-Sep-23,6736039,"54,918.65",SUPPLIER,ST JUDES NURSERY SCHOOL,300000020461235
Portsmouth City Council,PCC,Children's and Education Services,Early Years,Children's Services and Education,Third Party Payments,Other establishments,05-Sep-23,6736040,130.2,SUPPLIER,ST NICHOLAS PRE SCHOOL,300000020461240
Portsmouth City Council,PCC,Children's and Education Services,Early Years,Children's Services and Education,Third Party Payments,Other establishments,05-Sep-23,6736040,"1,008.00",SUPPLIER,ST NICHOLAS PRE SCHOOL,300000020461240
Portsmouth City Council,PCC,Children's and Education Services,Early Years,Children's Services and Education,Third Party Payments,Other establishments,05-Sep-23,6736040,"1,239.00",SUPPLIER,ST NICHOLAS PRE SCHOOL,300000020461240
Portsmouth City Council,PCC,Children's and Education Services,Early Years,Children's Services and Education,Third Party Payments,Other establishments,05-Sep-23,6736040,"15,724.80",SUPPLIER,ST NICHOLAS PRE SCHOOL,300000020461240
Portsmouth City Council,PCC,Children's and Education Services,Early Years,Children's Services and Education,Third Party Payments,Other establishments,05-Sep-23,6735977,338.52,SUPPLIER,STACEY COMMUNITY ASSOCIATION,300000020463271
Portsmouth City Council,PCC,Children's and Education Services,Early Years,Children's Services and Education,Third Party Payments,Other establishments,05-Sep-23,6735977,"2,478.00",SUPPLIER,STACEY COMMUNITY ASSOCIATION,300000020463271
Portsmouth City Council,PCC,Children's and Education Services,Early Years,Children's Services and Education,Third Party Payments,Other establishments,05-Sep-23,6735977,"3,348.66",SUPPLIER,STACEY COMMUNITY ASSOCIATION,300000020463271
Portsmouth City Council,PCC,Children's and Education Services,Early Years,Children's Services and Education,Third Party Payments,Other establishments,05-Sep-23,6735977,"14,379.54",SUPPLIER,STACEY COMMUNITY ASSOCIATION,300000020463271
Portsmouth City Council,PCC,Children's and Education Services,Early Years,Children's Services and Education,Third Party Payments,Other establishments,05-Sep-23,6736066,"1,239.00",SUPPLIER,TEDDY BEARS NURSERY SCHOOL,300000020463060
Portsmouth City Council,PCC,Children's and Education Services,Early Years,Children's Services and Education,Third Party Payments,Other establishments,05-Sep-23,6736066,"13,146.70",SUPPLIER,TEDDY BEARS NURSERY SCHOOL,300000020463060
Portsmouth City Council,PCC,Children's and Education Services,Early Years,Children's Services and Education,Third Party Payments,Other establishments,05-Sep-23,6736066,"17,704.05",SUPPLIER,TEDDY BEARS NURSERY SCHOOL,300000020463060
Portsmouth City Council,PCC,Children's and Education Services,Early Years,Children's Services and Education,Third Party Payments,Other establishments,05-Sep-23,6736022,260.4,SUPPLIER,THE CORNER PRE-SCHOOL,300000020459342
Portsmouth City Council,PCC,Children's and Education Services,Early Years,Children's Services and Education,Third Party Payments,Other establishments,05-Sep-23,6736022,"2,478.00",SUPPLIER,THE CORNER PRE-SCHOOL,300000020459342
Portsmouth City Council,PCC,Children's and Education Services,Early Years,Children's Services and Education,Third Party Payments,Other establishments,05-Sep-23,6736022,"3,102.44",SUPPLIER,THE CORNER PRE-SCHOOL,300000020459342
Portsmouth City Council,PCC,Children's and Education Services,Early Years,Children's Services and Education,Third Party Payments,Other establishments,05-Sep-23,6736022,"19,254.80",SUPPLIER,THE CORNER PRE-SCHOOL,300000020459342
Portsmouth City Council,PCC,Children's and Education Services,Early Years,Children's Services and Education,Third Party Payments,Other establishments,05-Sep-23,6735913,651,SUPPLIER,THE PARADE COMMUNITY PRE SCHOOL,300000020460910
Portsmouth City Council,PCC,Children's and Education Services,Early Years,Children's Services and Education,Third Party Payments,Other establishments,05-Sep-23,6735913,"4,956.00",SUPPLIER,THE PARADE COMMUNITY PRE SCHOOL,300000020460910
Portsmouth City Council,PCC,Children's and Education Services,Early Years,Children's Services and Education,Third Party Payments,Other establishments,05-Sep-23,6735913,"8,064.00",SUPPLIER,THE PARADE COMMUNITY PRE SCHOOL,300000020460910
Portsmouth City Council,PCC,Children's and Education Services,Early Years,Children's Services and Education,Third Party Payments,Other establishments,05-Sep-23,6735913,"36,288.00",SUPPLIER,THE PARADE COMMUNITY PRE SCHOOL,300000020460910
Portsmouth City Council,PCC,Children's and Education Services,Early Years,Children's Services and Education,Third Party Payments,Other establishments,05-Sep-23,6736053,"2,478.00",SUPPLIER,THE THINKING SCHOOLS TRUST,300000020481073
Portsmouth City Council,PCC,Children's and Education Services,Early Years,Children's Services and Education,Third Party Payments,Other establishments,05-Sep-23,6736053,"7,394.10",SUPPLIER,THE THINKING SCHOOLS TRUST,300000020481073
Portsmouth City Council,PCC,Children's and Education Services,Early Years,Children's Services and Education,Third Party Payments,Other establishments,05-Sep-23,6735947,260.4,SUPPLIER,TINY TURTLES PRESCHOOL,300000020480455
Portsmouth City Council,PCC,Children's and Education Services,Early Years,Children's Services and Education,Third Party Payments,Other establishments,05-Sep-23,6735947,"1,079.40",SUPPLIER,TINY TURTLES PRESCHOOL,300000020480455
Portsmouth City Council,PCC,Children's and Education Services,Early Years,Children's Services and Education,Third Party Payments,Other establishments,05-Sep-23,6735947,"7,434.00",SUPPLIER,TINY TURTLES PRESCHOOL,300000020480455
Portsmouth City Council,PCC,Children's and Education Services,Early Years,Children's Services and Education,Third Party Payments,Other establishments,05-Sep-23,6735947,"10,794.00",SUPPLIER,TINY TURTLES PRESCHOOL,300000020480455
Portsmouth City Council,PCC,Children's and Education Services,Early Years,Children's Services and Education,Third Party Payments,Other establishments,05-Sep-23,6736055,260.4,SUPPLIER,TOP TOTS DAY NURSERY LIMITED,300000020457274
Portsmouth City Council,PCC,Children's and Education Services,Early Years,Children's Services and Education,Third Party Payments,Other establishments,05-Sep-23,6736055,"1,239.00",SUPPLIER,TOP TOTS DAY NURSERY LIMITED,300000020457274
Portsmouth City Council,PCC,Children's and Education Services,Early Years,Children's Services and Education,Third Party Payments,Other establishments,05-Sep-23,6736055,"10,833.90",SUPPLIER,TOP TOTS DAY NURSERY LIMITED,300000020457274
Portsmouth City Council,PCC,Children's and Education Services,Early Years,Children's Services and Education,Third Party Payments,Other establishments,05-Sep-23,6736055,"20,682.90",SUPPLIER,TOP TOTS DAY NURSERY LIMITED,300000020457274
Portsmouth City Council,PCC,Children's and Education Services,Early Years,Children's Services and Education,Third Party Payments,Other establishments,05-Sep-23,6736054,130.2,SUPPLIER,TOP TOTS DAY NURSERY LIMITED,300000020457274
Portsmouth City Council,PCC,Children's and Education Services,Early Years,Children's Services and Education,Third Party Payments,Other establishments,05-Sep-23,6736054,"3,168.90",SUPPLIER,TOP TOTS DAY NURSERY LIMITED,300000020457274
Portsmouth City Council,PCC,Children's and Education Services,Early Years,Children's Services and Education,Third Party Payments,Other establishments,05-Sep-23,6736054,"3,717.00",SUPPLIER,TOP TOTS DAY NURSERY LIMITED,300000020457274
Portsmouth City Council,PCC,Children's and Education Services,Early Years,Children's Services and Education,Third Party Payments,Other establishments,05-Sep-23,6736054,"29,576.40",SUPPLIER,TOP TOTS DAY NURSERY LIMITED,300000020457274
Portsmouth City Council,PCC,Children's and Education Services,Early Years,Children's Services and Education,Third Party Payments,Other establishments,05-Sep-23,6736056,130.2,SUPPLIER,TOP TOTS DAY NURSERY LIMITED,300000020457274
Portsmouth City Council,PCC,Children's and Education Services,Early Years,Children's Services and Education,Third Party Payments,Other establishments,05-Sep-23,6736056,"4,956.00",SUPPLIER,TOP TOTS DAY NURSERY LIMITED,300000020457274
Portsmouth City Council,PCC,Children's and Education Services,Early Years,Children's Services and Education,Third Party Payments,Other establishments,05-Sep-23,6736056,"13,404.30",SUPPLIER,TOP TOTS DAY NURSERY LIMITED,300000020457274
Portsmouth City Council,PCC,Children's and Education Services,Early Years,Children's Services and Education,Third Party Payments,Other establishments,05-Sep-23,6736056,"32,995.20",SUPPLIER,TOP TOTS DAY NURSERY LIMITED,300000020457274
Portsmouth City Council,PCC,Children's and Education Services,Early Years,Children's Services and Education,Third Party Payments,Other establishments,05-Sep-23,6735966,"3,939.60",SUPPLIER,TOP TOTS DAY NURSERY LIMITED,300000020457274
Portsmouth City Council,PCC,Children's and Education Services,Early Years,Children's Services and Education,Third Party Payments,Other establishments,05-Sep-23,6735966,"11,818.80",SUPPLIER,TOP TOTS DAY NURSERY LIMITED,300000020457274
Portsmouth City Council,PCC,Children's and Education Services,Early Years,Children's Services and Education,Third Party Payments,Other establishments,05-Sep-23,6736030,727.88,SUPPLIER,TOPS DAY NURSERY LIMITED,300000020463687
Portsmouth City Council,PCC,Children's and Education Services,Early Years,Children's Services and Education,Third Party Payments,Other establishments,05-Sep-23,6736030,"1,103.30",SUPPLIER,TOPS DAY NURSERY LIMITED,300000020463687
Portsmouth City Council,PCC,Children's and Education Services,Early Years,Children's Services and Education,Third Party Payments,Other establishments,05-Sep-23,6736030,"2,420.04",SUPPLIER,TOPS DAY NURSERY LIMITED,300000020463687
Portsmouth City Council,PCC,Children's and Education Services,Early Years,Children's Services and Education,Third Party Payments,Other establishments,05-Sep-23,6736030,"14,145.04",SUPPLIER,TOPS DAY NURSERY LIMITED,300000020463687
Portsmouth City Council,PCC,Children's and Education Services,Early Years,Children's Services and Education,Third Party Payments,Other establishments,05-Sep-23,6736027,442.68,SUPPLIER,TOPS DAY NURSERY LIMITED,300000020463687
Portsmouth City Council,PCC,Children's and Education Services,Early Years,Children's Services and Education,Third Party Payments,Other establishments,05-Sep-23,6736027,"13,782.40",SUPPLIER,TOPS DAY NURSERY LIMITED,300000020463687
Portsmouth City Council,PCC,Children's and Education Services,Early Years,Children's Services and Education,Third Party Payments,Other establishments,05-Sep-23,6736027,"23,395.79",SUPPLIER,TOPS DAY NURSERY LIMITED,300000020463687
Portsmouth City Council,PCC,Children's and Education Services,Early Years,Children's Services and Education,Third Party Payments,Other establishments,05-Sep-23,6736027,"51,260.73",SUPPLIER,TOPS DAY NURSERY LIMITED,300000020463687
Portsmouth City Council,PCC,Children's and Education Services,Early Years,Children's Services and Education,Third Party Payments,Other establishments,05-Sep-23,6736029,115.94,SUPPLIER,TOPS DAY NURSERY LIMITED,300000020463687
Portsmouth City Council,PCC,Children's and Education Services,Early Years,Children's Services and Education,Third Party Payments,Other establishments,05-Sep-23,6736029,"3,395.45",SUPPLIER,TOPS DAY NURSERY LIMITED,300000020463687
Portsmouth City Council,PCC,Children's and Education Services,Early Years,Children's Services and Education,Third Party Payments,Other establishments,05-Sep-23,6736029,"11,667.55",SUPPLIER,TOPS DAY NURSERY LIMITED,300000020463687
Portsmouth City Council,PCC,Children's and Education Services,Early Years,Children's Services and Education,Third Party Payments,Other establishments,05-Sep-23,6736029,"18,876.08",SUPPLIER,TOPS DAY NURSERY LIMITED,300000020463687
Portsmouth City Council,PCC,Children's and Education Services,Early Years,Children's Services and Education,Third Party Payments,Other establishments,05-Sep-23,6735932,601.12,SUPPLIER,TWINKLE COTTAGE DAY NURSERY LTD,300000020483451
Portsmouth City Council,PCC,Children's and Education Services,Early Years,Children's Services and Education,Third Party Payments,Other establishments,05-Sep-23,6735932,"13,278.89",SUPPLIER,TWINKLE COTTAGE DAY NURSERY LTD,300000020483451
Portsmouth City Council,PCC,Children's and Education Services,Early Years,Children's Services and Education,Third Party Payments,Other establishments,05-Sep-23,6735932,"30,257.48",SUPPLIER,TWINKLE COTTAGE DAY NURSERY LTD,300000020483451
Portsmouth City Council,PCC,Children's and Education Services,Early Years,Children's Services and Education,Third Party Payments,Other establishments,05-Sep-23,6735932,"35,753.09",SUPPLIER,TWINKLE COTTAGE DAY NURSERY LTD,300000020483451
Portsmouth City Council,PCC,Children's and Education Services,Early Years,Children's Services and Education,Third Party Payments,Other establishments,05-Sep-23,6735934,235.46,SUPPLIER,TWINKLE STAR DAY NURSERY & PRE SCHOOL,300000020482530
Portsmouth City Council,PCC,Children's and Education Services,Early Years,Children's Services and Education,Third Party Payments,Other establishments,05-Sep-23,6735934,"6,487.40",SUPPLIER,TWINKLE STAR DAY NURSERY & PRE SCHOOL,300000020482530
Portsmouth City Council,PCC,Children's and Education Services,Early Years,Children's Services and Education,Third Party Payments,Other establishments,05-Sep-23,6735934,"13,672.05",SUPPLIER,TWINKLE STAR DAY NURSERY & PRE SCHOOL,300000020482530
Portsmouth City Council,PCC,Children's and Education Services,Early Years,Children's Services and Education,Third Party Payments,Other establishments,05-Sep-23,6735934,"25,613.42",SUPPLIER,TWINKLE STAR DAY NURSERY & PRE SCHOOL,300000020482530
Portsmouth City Council,PCC,Children's and Education Services,Early Years,Children's Services and Education,Third Party Payments,Other establishments,05-Sep-23,6736123,651,SUPPLIER,ULT TRADING COMPANY LTD,300000020476218
Portsmouth City Council,PCC,Children's and Education Services,Early Years,Children's Services and Education,Third Party Payments,Other establishments,05-Sep-23,6736123,"2,806.44",SUPPLIER,ULT TRADING COMPANY LTD,300000020476218
Portsmouth City Council,PCC,Children's and Education Services,Early Years,Children's Services and Education,Third Party Payments,Other establishments,05-Sep-23,6736123,"14,032.20",SUPPLIER,ULT TRADING COMPANY LTD,300000020476218
Portsmouth City Council,PCC,Children's and Education Services,Early Years,Children's Services and Education,Third Party Payments,Other establishments,05-Sep-23,6736124,520.8,SUPPLIER,ULT TRADING COMPANY LTD,300000020476218
Portsmouth City Council,PCC,Children's and Education Services,Early Years,Children's Services and Education,Third Party Payments,Other establishments,05-Sep-23,6736124,"1,079.40",SUPPLIER,ULT TRADING COMPANY LTD,300000020476218
Portsmouth City Council,PCC,Children's and Education Services,Early Years,Children's Services and Education,Third Party Payments,Other establishments,05-Sep-23,6736124,"11,873.40",SUPPLIER,ULT TRADING COMPANY LTD,300000020476218
Portsmouth City Council,PCC,Children's and Education Services,Early Years,Children's Services and Education,Third Party Payments,Other establishments,05-Sep-23,6735975,260.4,SUPPLIER,WILLOW TREE NURSERY PORTSMOUTH,300000361640780
Portsmouth City Council,PCC,Children's and Education Services,Early Years,Children's Services and Education,Third Party Payments,Other establishments,05-Sep-23,6735975,"2,478.00",SUPPLIER,WILLOW TREE NURSERY PORTSMOUTH,300000361640780
Portsmouth City Council,PCC,Children's and Education Services,Early Years,Children's Services and Education,Third Party Payments,Other establishments,05-Sep-23,6735975,"12,292.49",SUPPLIER,WILLOW TREE NURSERY PORTSMOUTH,300000361640780
Portsmouth City Council,PCC,Children's and Education Services,Early Years,Children's Services and Education,Third Party Payments,Other establishments,05-Sep-23,6735975,"27,422.43",SUPPLIER,WILLOW TREE NURSERY PORTSMOUTH,300000361640780
Portsmouth City Council,PCC,Children's and Education Services,Early Years,Children's Services and Education,Third Party Payments,Other establishments,05-Sep-23,6736034,231.88,SUPPLIER,WIND IN THE WILLOWS PRE SCHOOL,300000020478315
Portsmouth City Council,PCC,Children's and Education Services,Early Years,Children's Services and Education,Third Party Payments,Other establishments,05-Sep-23,6736034,"1,103.30",SUPPLIER,WIND IN THE WILLOWS PRE SCHOOL,300000020478315
Portsmouth City Council,PCC,Children's and Education Services,Early Years,Children's Services and Education,Third Party Payments,Other establishments,05-Sep-23,6736034,"21,438.95",SUPPLIER,WIND IN THE WILLOWS PRE SCHOOL,300000020478315
Portsmouth City Council,PCC,Children's and Education Services,Early Years,Children's Services and Education,Third Party Payments,Other establishments,05-Sep-23,6736034,"38,248.55",SUPPLIER,WIND IN THE WILLOWS PRE SCHOOL,300000020478315
Portsmouth City Council,PCC,Children's and Education Services,Early Years,Children's Services and Education,Third Party Payments,Other establishments,05-Sep-23,6736016,"2,534.40",SUPPLIER,YMCA FAIRTHORNE GROUP,300000020465120
Portsmouth City Council,PCC,Children's and Education Services,Early Years,Children's Services and Education,Third Party Payments,Other establishments,05-Sep-23,6736016,"9,974.40",SUPPLIER,YMCA FAIRTHORNE GROUP,300000020465120
Portsmouth City Council,PCC,Housing Revenue Account,"Rents, Rates, Taxes and Other Charges","Housing, Neighbourhood and Building Services",Premises-Related Expenditure,Rates,25-Sep-23,6739215,153,OTHER LOCAL AUTHORITY,HAVANT BOROUGH COUNCIL,300000020457057
Portsmouth City Council,PCC,Children's and Education Services,Early Years,Children's Services and Education,Third Party Payments,Other establishments,05-Sep-23,6736087,597.98,SOLETRADER,Classified as 'personal data' (under the Data Protection Act 2018),300000020466504
Portsmouth City Council,PCC,Children's and Education Services,Early Years,Children's Services and Education,Third Party Payments,Other establishments,05-Sep-23,6736101,984.9,SOLETRADER,A TO Z CHILDMINDING,300000020481288
Portsmouth City Council,PCC,Children's and Education Services,Early Years,Children's Services and Education,Third Party Payments,Other establishments,05-Sep-23,6736101,"1,575.84",SOLETRADER,A TO Z CHILDMINDING,300000020481288
Portsmouth City Council,PCC,Children's and Education Services,Early Years,Children's Services and Education,Third Party Payments,Other establishments,05-Sep-23,6736079,984.9,SOLETRADER,Classified as 'personal data' (under the Data Protection Act 2018),300000020476307
Portsmouth City Council,PCC,Children's and Education Services,Early Years,Children's Services and Education,Third Party Payments,Other establishments,05-Sep-23,6736079,"1,969.80",SOLETRADER,Classified as 'personal data' (under the Data Protection Act 2018),300000020476307
Portsmouth City Council,PCC,Children's and Education Services,Early Years,Children's Services and Education,Third Party Payments,Other establishments,05-Sep-23,6736109,"1,687.41",SOLETRADER,Classified as 'personal data' (under the Data Protection Act 2018),300000020477579
Portsmouth City Council,PCC,Children's and Education Services,Early Years,Children's Services and Education,Third Party Payments,Other establishments,05-Sep-23,6736109,"1,687.41",SOLETRADER,Classified as 'personal data' (under the Data Protection Act 2018),300000020477579
Portsmouth City Council,PCC,Children's and Education Services,Early Years,Children's Services and Education,Third Party Payments,Other establishments,05-Sep-23,6736061,"1,313.20",SOLETRADER,Classified as 'personal data' (under the Data Protection Act 2018),300000020477278
Portsmouth City Council,PCC,Children's and Education Services,Early Years,Children's Services and Education,Third Party Payments,Other establishments,05-Sep-23,6736061,"1,969.80",SOLETRADER,Classified as 'personal data' (under the Data Protection Act 2018),300000020477278
Portsmouth City Council,PCC,Children's and Education Services,Early Years,Children's Services and Education,Third Party Payments,Other establishments,05-Sep-23,6736077,164.15,SOLETRADER,Classified as 'personal data' (under the Data Protection Act 2018),300000020481067
Portsmouth City Council,PCC,Children's and Education Services,Early Years,Children's Services and Education,Third Party Payments,Other establishments,05-Sep-23,6736077,984.9,SOLETRADER,Classified as 'personal data' (under the Data Protection Act 2018),300000020481067
Portsmouth City Council,PCC,Children's and Education Services,Early Years,Children's Services and Education,Third Party Payments,Other establishments,05-Sep-23,6735929,984.9,SUPPLIER,CHAPTER 1 CHILD CARE,300000020466062
Portsmouth City Council,PCC,Children's and Education Services,Early Years,Children's Services and Education,Third Party Payments,Other establishments,05-Sep-23,6735929,"1,239.00",SUPPLIER,CHAPTER 1 CHILD CARE,300000020466062
Portsmouth City Council,PCC,Children's and Education Services,Early Years,Children's Services and Education,Third Party Payments,Other establishments,05-Sep-23,6735929,"1,969.80",SUPPLIER,CHAPTER 1 CHILD CARE,300000020466062
Portsmouth City Council,PCC,Children's and Education Services,Early Years,Children's Services and Education,Third Party Payments,Other establishments,05-Sep-23,6736100,"1,969.80",SUPPLIER,CLAIRES PLAYCARE,300000020481017
Portsmouth City Council,PCC,Children's and Education Services,Early Years,Children's Services and Education,Third Party Payments,Other establishments,05-Sep-23,6736100,"4,793.18",SUPPLIER,CLAIRES PLAYCARE,300000020481017
Portsmouth City Council,PCC,Children's and Education Services,Early Years,Children's Services and Education,Third Party Payments,Other establishments,05-Sep-23,6736085,"2,485.70",SOLETRADER,PINEAPPLE TOTS CHILDCARE,300000020467128
Portsmouth City Council,PCC,Children's and Education Services,Early Years,Children's Services and Education,Third Party Payments,Other establishments,05-Sep-23,6736085,"2,730.34",SOLETRADER,PINEAPPLE TOTS CHILDCARE,300000020467128
Portsmouth City Council,PCC,Children's and Education Services,Early Years,Children's Services and Education,Third Party Payments,Other establishments,05-Sep-23,6736111,984.9,SOLETRADER,TOODLES TOTS,300000020484553
Portsmouth City Council,PCC,Children's and Education Services,Early Years,Children's Services and Education,Third Party Payments,Other establishments,05-Sep-23,6736111,984.9,SOLETRADER,TOODLES TOTS,300000020484553
Portsmouth City Council,PCC,Children's and Education Services,Early Years,Children's Services and Education,Third Party Payments,Other establishments,05-Sep-23,6736111,"1,239.00",SOLETRADER,TOODLES TOTS,300000020484553
Portsmouth City Council,PCC,Children's and Education Services,Early Years,Children's Services and Education,Third Party Payments,Other establishments,05-Sep-23,6736084,"1,239.00",SOLETRADER,Classified as 'personal data' (under the Data Protection Act 2018),300000020479527
Portsmouth City Council,PCC,Children's and Education Services,Early Years,Children's Services and Education,Third Party Payments,Other establishments,05-Sep-23,6736084,"1,346.03",SOLETRADER,Classified as 'personal data' (under the Data Protection Act 2018),300000020479527
Portsmouth City Council,PCC,Children's and Education Services,Early Years,Children's Services and Education,Third Party Payments,Other establishments,05-Sep-23,6736084,"1,543.01",SOLETRADER,Classified as 'personal data' (under the Data Protection Act 2018),300000020479527
Portsmouth City Council,PCC,Children's and Education Services,Early Years,Children's Services and Education,Third Party Payments,Other establishments,05-Sep-23,6736058,984.9,SOLETRADER,Classified as 'personal data' (under the Data Protection Act 2018),300000020478321
Portsmouth City Council,PCC,Children's and Education Services,Early Years,Children's Services and Education,Third Party Payments,Other establishments,05-Sep-23,6736112,"1,894.62",SOLETRADER,Classified as 'personal data' (under the Data Protection Act 2018),300000020478857
Portsmouth City Council,PCC,Children's and Education Services,Early Years,Children's Services and Education,Third Party Payments,Other establishments,05-Sep-23,6736107,984.9,SOLETRADER,Classified as 'personal data' (under the Data Protection Act 2018),300000020477084
Portsmouth City Council,PCC,Children's and Education Services,Early Years,Children's Services and Education,Third Party Payments,Other establishments,05-Sep-23,6735923,984.9,SUPPLIER,Classified as 'personal data' (under the Data Protection Act 2018),300000020481384
Portsmouth City Council,PCC,Children's and Education Services,Early Years,Children's Services and Education,Third Party Payments,Other establishments,05-Sep-23,6736105,590.94,SOLETRADER,Classified as 'personal data' (under the Data Protection Act 2018),300000020481334
Portsmouth City Council,PCC,Children's and Education Services,Early Years,Children's Services and Education,Third Party Payments,Other establishments,05-Sep-23,6736105,853.58,SOLETRADER,Classified as 'personal data' (under the Data Protection Act 2018),300000020481334
Portsmouth City Council,PCC,Children's and Education Services,Early Years,Children's Services and Education,Third Party Payments,Other establishments,05-Sep-23,6736110,"1,575.84",SOLETRADER,Classified as 'personal data' (under the Data Protection Act 2018),300000020477669
Portsmouth City Council,PCC,Children's and Education Services,Early Years,Children's Services and Education,Third Party Payments,Other establishments,05-Sep-23,6736089,130.2,SOLETRADER,Classified as 'personal data' (under the Data Protection Act 2018),300000020460603
Portsmouth City Council,PCC,Children's and Education Services,Early Years,Children's Services and Education,Third Party Payments,Other establishments,05-Sep-23,6736089,984.9,SOLETRADER,Classified as 'personal data' (under the Data Protection Act 2018),300000020460603
Portsmouth City Council,PCC,Children's and Education Services,Early Years,Children's Services and Education,Third Party Payments,Other establishments,05-Sep-23,6736089,"1,239.00",SOLETRADER,Classified as 'personal data' (under the Data Protection Act 2018),300000020460603
Portsmouth City Council,PCC,Children's and Education Services,Early Years,Children's Services and Education,Third Party Payments,Other establishments,05-Sep-23,6736089,"4,924.50",SOLETRADER,Classified as 'personal data' (under the Data Protection Act 2018),300000020460603
Portsmouth City Council,PCC,Children's and Education Services,Early Years,Children's Services and Education,Third Party Payments,Other establishments,05-Sep-23,6736093,"1,782.20",SOLETRADER,LITTLE BUGS CHILDMINDING,300000020473198
Portsmouth City Council,PCC,Children's and Education Services,Early Years,Children's Services and Education,Third Party Payments,Other establishments,05-Sep-23,6736093,"1,782.20",SOLETRADER,LITTLE BUGS CHILDMINDING,300000020473198
Portsmouth City Council,PCC,Children's and Education Services,Early Years,Children's Services and Education,Third Party Payments,Other establishments,05-Sep-23,6736093,"3,911.70",SOLETRADER,LITTLE BUGS CHILDMINDING,300000020473198
Portsmouth City Council,PCC,Children's and Education Services,Early Years,Children's Services and Education,Third Party Payments,Other establishments,05-Sep-23,6736083,525.28,SOLETRADER,Classified as 'personal data' (under the Data Protection Act 2018),300000020478665
Portsmouth City Council,PCC,Children's and Education Services,Early Years,Children's Services and Education,Third Party Payments,Other establishments,05-Sep-23,6736108,689.43,SOLETRADER,LITTLE PADDINGTONS CHILDCARE,300000020484104
Portsmouth City Council,PCC,Children's and Education Services,Early Years,Children's Services and Education,Third Party Payments,Other establishments,05-Sep-23,6736108,"1,969.80",SOLETRADER,LITTLE PADDINGTONS CHILDCARE,300000020484104
Portsmouth City Council,PCC,Children's and Education Services,Early Years,Children's Services and Education,Third Party Payments,Other establishments,05-Sep-23,6736076,525.28,SOLETRADER,Classified as 'personal data' (under the Data Protection Act 2018),300000020482620
Portsmouth City Council,PCC,Children's and Education Services,Early Years,Children's Services and Education,Third Party Payments,Other establishments,05-Sep-23,6736076,984.9,SOLETRADER,Classified as 'personal data' (under the Data Protection Act 2018),300000020482620
Portsmouth City Council,PCC,Children's and Education Services,Early Years,Children's Services and Education,Third Party Payments,Other establishments,05-Sep-23,6736080,984.9,SOLETRADER,Classified as 'personal data' (under the Data Protection Act 2018),300000020482625
Portsmouth City Council,PCC,Children's and Education Services,Early Years,Children's Services and Education,Third Party Payments,Other establishments,05-Sep-23,6736080,984.9,SOLETRADER,Classified as 'personal data' (under the Data Protection Act 2018),300000020482625
Portsmouth City Council,PCC,Children's and Education Services,Early Years,Children's Services and Education,Third Party Payments,Other establishments,05-Sep-23,6736059,984.9,SOLETRADER,Classified as 'personal data' (under the Data Protection Act 2018),300000020480560
Portsmouth City Council,PCC,Children's and Education Services,Early Years,Children's Services and Education,Third Party Payments,Other establishments,05-Sep-23,6736103,"1,969.80",SOLETRADER,Classified as 'personal data' (under the Data Protection Act 2018),300000020484406
Portsmouth City Council,PCC,Children's and Education Services,Early Years,Children's Services and Education,Third Party Payments,Other establishments,05-Sep-23,6736103,"2,954.70",SOLETRADER,Classified as 'personal data' (under the Data Protection Act 2018),300000020484406
Portsmouth City Council,PCC,Children's and Education Services,Early Years,Children's Services and Education,Third Party Payments,Other establishments,05-Sep-23,6736075,196.98,SOLETRADER,PINK GIRAFFE CHILDCARE,300000020477728
Portsmouth City Council,PCC,Children's and Education Services,Early Years,Children's Services and Education,Third Party Payments,Other establishments,05-Sep-23,6736075,"1,969.80",SOLETRADER,PINK GIRAFFE CHILDCARE,300000020477728
Portsmouth City Council,PCC,Children's and Education Services,Early Years,Children's Services and Education,Third Party Payments,Other establishments,05-Sep-23,6736104,590.94,SOLETRADER,Classified as 'personal data' (under the Data Protection Act 2018),300000020474986
Portsmouth City Council,PCC,Children's and Education Services,Early Years,Children's Services and Education,Third Party Payments,Other establishments,05-Sep-23,6736099,984.9,SUPPLIER,Classified as 'personal data' (under the Data Protection Act 2018),300000020480147
Portsmouth City Council,PCC,Children's and Education Services,Early Years,Children's Services and Education,Third Party Payments,Other establishments,05-Sep-23,6736099,"2,954.70",SUPPLIER,Classified as 'personal data' (under the Data Protection Act 2018),300000020480147
Portsmouth City Council,PCC,Children's and Education Services,Early Years,Children's Services and Education,Third Party Payments,Other establishments,05-Sep-23,6736086,984.9,SOLETRADER,Classified as 'personal data' (under the Data Protection Act 2018),300000020476409
Portsmouth City Council,PCC,Children's and Education Services,Early Years,Children's Services and Education,Third Party Payments,Other establishments,05-Sep-23,6736086,984.9,SOLETRADER,Classified as 'personal data' (under the Data Protection Act 2018),300000020476409
Portsmouth City Council,PCC,Children's and Education Services,Early Years,Children's Services and Education,Third Party Payments,Other establishments,05-Sep-23,6736106,"1,181.88",PRIVATE PROVIDER,Classified as 'personal data' (under the Data Protection Act 2018),300000020476597
Portsmouth City Council,PCC,Children's and Education Services,Early Years,Children's Services and Education,Third Party Payments,Other establishments,05-Sep-23,6736081,984.9,SOLETRADER,Classified as 'personal data' (under the Data Protection Act 2018),300000020477411
Portsmouth City Council,PCC,Children's and Education Services,Early Years,Children's Services and Education,Third Party Payments,Other establishments,05-Sep-23,6736081,"1,969.80",SOLETRADER,Classified as 'personal data' (under the Data Protection Act 2018),300000020477411
Portsmouth City Council,PCC,Children's and Education Services,Early Years,Children's Services and Education,Third Party Payments,Other establishments,05-Sep-23,6736122,"1,969.80",SOLETRADER,Classified as 'personal data' (under the Data Protection Act 2018),300000020466830
Portsmouth City Council,PCC,Children's and Education Services,Early Years,Children's Services and Education,Third Party Payments,Other establishments,05-Sep-23,6736122,"2,560.74",SOLETRADER,Classified as 'personal data' (under the Data Protection Act 2018),300000020466830
Portsmouth City Council,PCC,Children's and Education Services,Early Years,Children's Services and Education,Third Party Payments,Other establishments,05-Sep-23,6736060,"1,857.24",SOLETRADER,Classified as 'personal data' (under the Data Protection Act 2018),300000020481730
Portsmouth City Council,PCC,Children's and Education Services,Early Years,Children's Services and Education,Third Party Payments,Other establishments,05-Sep-23,6736060,"1,857.24",SOLETRADER,Classified as 'personal data' (under the Data Protection Act 2018),300000020481730
Portsmouth City Council,PCC,Children's and Education Services,Early Years,Children's Services and Education,Third Party Payments,Other establishments,05-Sep-23,6736078,984.9,SOLETRADER,Classified as 'personal data' (under the Data Protection Act 2018),300000020481566
Portsmouth City Council,PCC,Children's and Education Services,Early Years,Children's Services and Education,Third Party Payments,Other establishments,05-Sep-23,6735937,"1,239.00",SUPPLIER,NAVAL UNDER FIVES (EASTERN AREA),300000020463429
Portsmouth City Council,PCC,Children's and Education Services,Early Years,Children's Services and Education,Third Party Payments,Other establishments,05-Sep-23,6735937,"3,024.00",SUPPLIER,NAVAL UNDER FIVES (EASTERN AREA),300000020463429
Portsmouth City Council,PCC,Children's and Education Services,Early Years,Children's Services and Education,Third Party Payments,Other establishments,05-Sep-23,6735937,"6,048.00",SUPPLIER,NAVAL UNDER FIVES (EASTERN AREA),300000020463429
Portsmouth City Council,PCC,Children's and Education Services,Early Years,Children's Services and Education,Third Party Payments,Other establishments,05-Sep-23,6735935,260.4,SUPPLIER,CITY OF PORTSMOUTH COLLEGE,300000015963966
Portsmouth City Council,PCC,Children's and Education Services,Early Years,Children's Services and Education,Third Party Payments,Other establishments,05-Sep-23,6735935,"2,734.48",SUPPLIER,CITY OF PORTSMOUTH COLLEGE,300000015963966
Portsmouth City Council,PCC,Children's and Education Services,Early Years,Children's Services and Education,Third Party Payments,Other establishments,05-Sep-23,6735935,"8,401.60",SUPPLIER,CITY OF PORTSMOUTH COLLEGE,300000015963966
Portsmouth City Council,PCC,Children's and Education Services,Early Years,Children's Services and Education,Third Party Payments,Other establishments,05-Sep-23,6735935,"18,038.20",SUPPLIER,CITY OF PORTSMOUTH COLLEGE,300000015963966
Portsmouth City Council,PCC,Children's and Education Services,Early Years,Children's Services and Education,Third Party Payments,Other establishments,05-Sep-23,6735960,"1,562.40",SUPPLIER,MONEYFIELDS PRE -SCHOOL,300000020463403
Portsmouth City Council,PCC,Children's and Education Services,Early Years,Children's Services and Education,Third Party Payments,Other establishments,05-Sep-23,6735960,"7,434.00",SUPPLIER,MONEYFIELDS PRE -SCHOOL,300000020463403
Portsmouth City Council,PCC,Children's and Education Services,Early Years,Children's Services and Education,Third Party Payments,Other establishments,05-Sep-23,6735960,"8,864.10",SUPPLIER,MONEYFIELDS PRE -SCHOOL,300000020463403
Portsmouth City Council,PCC,Children's and Education Services,Early Years,Children's Services and Education,Third Party Payments,Other establishments,05-Sep-23,6735960,"49,245.00",SUPPLIER,MONEYFIELDS PRE -SCHOOL,300000020463403
Portsmouth City Council,PCC,Children's and Education Services,Early Years,Children's Services and Education,Third Party Payments,Other establishments,05-Sep-23,6735936,196.98,SUPPLIER,NAVAL UNDER FIVES (EASTERN AREA),300000020463429
Portsmouth City Council,PCC,Children's and Education Services,Early Years,Children's Services and Education,Third Party Payments,Other establishments,05-Sep-23,6735936,"8,667.12",SUPPLIER,NAVAL UNDER FIVES (EASTERN AREA),300000020463429
Portsmouth City Council,PCC,Children's and Education Services,Early Years,Children's Services and Education,Third Party Payments,Other establishments,05-Sep-23,6735956,130.2,SUPPLIER,STACEY COMMUNITY ASSOCIATION,300000020463271
Portsmouth City Council,PCC,Children's and Education Services,Early Years,Children's Services and Education,Third Party Payments,Other establishments,05-Sep-23,6735956,"2,990.40",SUPPLIER,STACEY COMMUNITY ASSOCIATION,300000020463271
Portsmouth City Council,PCC,Children's and Education Services,Early Years,Children's Services and Education,Third Party Payments,Other establishments,05-Sep-23,6735956,"3,717.00",SUPPLIER,STACEY COMMUNITY ASSOCIATION,300000020463271
Portsmouth City Council,PCC,Children's and Education Services,Early Years,Children's Services and Education,Third Party Payments,Other establishments,05-Sep-23,6735956,"32,515.20",SUPPLIER,STACEY COMMUNITY ASSOCIATION,300000020463271
Portsmouth City Council,PCC,Children's and Education Services,Early Years,Children's Services and Education,Third Party Payments,Other establishments,05-Sep-23,6736028,130.2,SUPPLIER,TOPS DAY NURSERY LIMITED,300000020463687
Portsmouth City Council,PCC,Children's and Education Services,Early Years,Children's Services and Education,Third Party Payments,Other establishments,05-Sep-23,6736028,"1,103.30",SUPPLIER,TOPS DAY NURSERY LIMITED,300000020463687
Portsmouth City Council,PCC,Children's and Education Services,Early Years,Children's Services and Education,Third Party Payments,Other establishments,05-Sep-23,6736028,"9,840.00",SUPPLIER,TOPS DAY NURSERY LIMITED,300000020463687
Portsmouth City Council,PCC,Children's and Education Services,Early Years,Children's Services and Education,Third Party Payments,Other establishments,05-Sep-23,6736028,"16,401.60",SUPPLIER,TOPS DAY NURSERY LIMITED,300000020463687
Portsmouth City Council,PCC,Housing Services,Private Sector Housing Renewal,"Housing, Neighbourhood and Building Services",Income,Other grants reimbursements and contributions,07-Sep-23,6736676,"-1,569.00",LIMITED COMPANY,CONCEPT DESIGN SOLUTIONS LTD,300000118164776
Portsmouth City Council,PCC,Other,Suspense and Capital Schemes,Capital - Housing and Tackling Homelessness,Capital Charges,REFCUS,07-Sep-23,6736676,"1,882.80",LIMITED COMPANY,CONCEPT DESIGN SOLUTIONS LTD,300000118164776
Portsmouth City Council,PCC,Other,Suspense and Capital Schemes,Capital - Housing and Tackling Homelessness,Capital Charges,REFCUS,07-Sep-23,6736676,"10,460.00",LIMITED COMPANY,CONCEPT DESIGN SOLUTIONS LTD,300000118164776
Portsmouth City Council,PCC,Children's and Education Services,Early Years,Children's Services and Education,Third Party Payments,Other establishments,05-Sep-23,6735985,318.92,SOLETRADER,Classified as 'personal data' (under the Data Protection Act 2018),300000020477663
Portsmouth City Council,PCC,Children's and Education Services,Early Years,Children's Services and Education,Third Party Payments,Other establishments,05-Sep-23,6735985,"1,074.01",SOLETRADER,Classified as 'personal data' (under the Data Protection Act 2018),300000020477663
Portsmouth City Council,PCC,Housing Services,Housing Strategy,"Housing, Neighbourhood and Building Services",Income,Customer and client receipts,06-Sep-23,6736440,"-1,198.20",LIMITED COMPANY,CONCEPT DESIGN SOLUTIONS LTD,300000118164776
Portsmouth City Council,PCC,Adult Social Care,Assistive Equipment & Technology,"Housing, Neighbourhood and Building Services",Supplies and Services,Services,06-Sep-23,6736440,"1,437.84",LIMITED COMPANY,CONCEPT DESIGN SOLUTIONS LTD,300000118164776
Portsmouth City Council,PCC,Adult Social Care,Assistive Equipment & Technology,"Housing, Neighbourhood and Building Services",Supplies and Services,Services,06-Sep-23,6736440,"7,988.00",LIMITED COMPANY,CONCEPT DESIGN SOLUTIONS LTD,300000118164776
Portsmouth City Council,PCC,Adult Social Care,Mental Health Support Adults (18 - 64),Adult Care,Third Party Payments,Other establishments,05-Sep-23,6736033,77,SUPPLIER,PREPAID FINANCIAL SERVICES,300000020477745
Portsmouth City Council,PCC,Adult Social Care,Mental Health Support Adults (18 - 64),Adult Care,Third Party Payments,Other establishments,05-Sep-23,6736033,84.8,SUPPLIER,PREPAID FINANCIAL SERVICES,300000020477745
Portsmouth City Council,PCC,Adult Social Care,Mental Health Support Adults (18 - 64),Adult Care,Third Party Payments,Other establishments,05-Sep-23,6736033,84.8,SUPPLIER,PREPAID FINANCIAL SERVICES,300000020477745
Portsmouth City Council,PCC,Adult Social Care,Physical Support Older People (85+),Adult Care,Third Party Payments,Other establishments,05-Sep-23,6736033,120.54,SUPPLIER,PREPAID FINANCIAL SERVICES,300000020477745
Portsmouth City Council,PCC,Adult Social Care,Mental Health Support Adults (18 - 64),Adult Care,Third Party Payments,Other establishments,05-Sep-23,6736033,177.1,SUPPLIER,PREPAID FINANCIAL SERVICES,300000020477745
Portsmouth City Council,PCC,Adult Social Care,Mental Health Support Adults (18 - 64),Adult Care,Third Party Payments,Other establishments,15-Sep-23,6737776,"1,031.95",SUPPLIER,TWO SAINTS LTD,300000020462955
Portsmouth City Council,PCC,Children's and Education Services,Asylum seekers,Children's Services and Education,Third Party Payments,Other establishments,04-Sep-23,6735858,131,SUPPLIER,BANYA FAMILY PLACEMENT AGENCY LTD,300000020481029
Portsmouth City Council,PCC,Children's and Education Services,Asylum seekers,Children's Services and Education,Third Party Payments,Other establishments,04-Sep-23,6735858,262,SUPPLIER,BANYA FAMILY PLACEMENT AGENCY LTD,300000020481029
Portsmouth City Council,PCC,Children's and Education Services,Asylum seekers,Children's Services and Education,Third Party Payments,Other establishments,04-Sep-23,6735858,917,SUPPLIER,BANYA FAMILY PLACEMENT AGENCY LTD,300000020481029
Portsmouth City Council,PCC,Children's and Education Services,Asylum seekers,Children's Services and Education,Third Party Payments,Other establishments,04-Sep-23,6735858,917,SUPPLIER,BANYA FAMILY PLACEMENT AGENCY LTD,300000020481029
Portsmouth City Council,PCC,Children's and Education Services,Asylum seekers,Children's Services and Education,Third Party Payments,Other establishments,04-Sep-23,6735858,917,SUPPLIER,BANYA FAMILY PLACEMENT AGENCY LTD,300000020481029
Portsmouth City Council,PCC,Children's and Education Services,Asylum seekers,Children's Services and Education,Third Party Payments,Other establishments,04-Sep-23,6735858,917,SUPPLIER,BANYA FAMILY PLACEMENT AGENCY LTD,300000020481029
Portsmouth City Council,PCC,Children's and Education Services,Asylum seekers,Children's Services and Education,Third Party Payments,Other establishments,04-Sep-23,6735858,131,SUPPLIER,BANYA FAMILY PLACEMENT AGENCY LTD,300000020481029
Portsmouth City Council,PCC,Children's and Education Services,Asylum seekers,Children's Services and Education,Third Party Payments,Other establishments,04-Sep-23,6735858,262,SUPPLIER,BANYA FAMILY PLACEMENT AGENCY LTD,300000020481029
Portsmouth City Council,PCC,Children's and Education Services,Asylum seekers,Children's Services and Education,Third Party Payments,Other establishments,04-Sep-23,6735858,917,SUPPLIER,BANYA FAMILY PLACEMENT AGENCY LTD,300000020481029
Portsmouth City Council,PCC,Children's and Education Services,Asylum seekers,Children's Services and Education,Third Party Payments,Other establishments,04-Sep-23,6735858,917,SUPPLIER,BANYA FAMILY PLACEMENT AGENCY LTD,300000020481029
Portsmouth City Council,PCC,Children's and Education Services,Asylum seekers,Children's Services and Education,Third Party Payments,Other establishments,04-Sep-23,6735858,917,SUPPLIER,BANYA FAMILY PLACEMENT AGENCY LTD,300000020481029
Portsmouth City Council,PCC,Children's and Education Services,Asylum seekers,Children's Services and Education,Third Party Payments,Other establishments,04-Sep-23,6735858,917,SUPPLIER,BANYA FAMILY PLACEMENT AGENCY LTD,300000020481029
Portsmouth City Council,PCC,Children's and Education Services,Children Looked After,Children's Services and Education,Third Party Payments,Other establishments,11-Sep-23,6736917,-0.07,SUPPLIER,FOSTERING SOLUTIONS,300000009793967
Portsmouth City Council,PCC,Children's and Education Services,Children Looked After,Children's Services and Education,Third Party Payments,Other establishments,11-Sep-23,6736917,619.89,SUPPLIER,FOSTERING SOLUTIONS,300000009793967
Portsmouth City Council,PCC,Children's and Education Services,Children Looked After,Children's Services and Education,Third Party Payments,Other establishments,11-Sep-23,6736917,619.89,SUPPLIER,FOSTERING SOLUTIONS,300000009793967
Portsmouth City Council,PCC,Children's and Education Services,Children Looked After,Children's Services and Education,Third Party Payments,Other establishments,11-Sep-23,6736917,867.84,SUPPLIER,FOSTERING SOLUTIONS,300000009793967
Portsmouth City Council,PCC,Children's and Education Services,Children Looked After,Children's Services and Education,Third Party Payments,Other establishments,11-Sep-23,6736917,867.84,SUPPLIER,FOSTERING SOLUTIONS,300000009793967
Portsmouth City Council,PCC,Children's and Education Services,Children Looked After,Children's Services and Education,Third Party Payments,Other establishments,11-Sep-23,6736917,867.84,SUPPLIER,FOSTERING SOLUTIONS,300000009793967
Portsmouth City Council,PCC,Adult Social Care,Social Care Activities,Adult Care,Third Party Payments,Other establishments,18-Sep-23,6737856,"-5,763.52",SUPPLIER,TWO SAINTS LTD,300000020462955
Portsmouth City Council,PCC,Adult Social Care,Social Care Activities,Adult Care,Third Party Payments,Other establishments,18-Sep-23,6737856,"-3,100.62",SUPPLIER,TWO SAINTS LTD,300000020462955
Portsmouth City Council,PCC,Adult Social Care,Social Care Activities,Adult Care,Third Party Payments,Other establishments,18-Sep-23,6737856,"-2,867.24",SUPPLIER,TWO SAINTS LTD,300000020462955
Portsmouth City Council,PCC,Adult Social Care,Social Care Activities,Adult Care,Third Party Payments,Other establishments,18-Sep-23,6737856,"-1,366.94",SUPPLIER,TWO SAINTS LTD,300000020462955
Portsmouth City Council,PCC,Adult Social Care,Social Care Activities,Adult Care,Third Party Payments,Other establishments,18-Sep-23,6737856,"-1,033.54",SUPPLIER,TWO SAINTS LTD,300000020462955
Portsmouth City Council,PCC,Adult Social Care,Social Care Activities,Adult Care,Third Party Payments,Other establishments,18-Sep-23,6737856,"-1,000.20",SUPPLIER,TWO SAINTS LTD,300000020462955
Portsmouth City Council,PCC,Adult Social Care,Social Care Activities,Adult Care,Third Party Payments,Other establishments,18-Sep-23,6737856,-533.44,SUPPLIER,TWO SAINTS LTD,300000020462955
Portsmouth City Council,PCC,Adult Social Care,Social Care Activities,Adult Care,Third Party Payments,Other establishments,18-Sep-23,6737856,200.4,SUPPLIER,TWO SAINTS LTD,300000020462955
Portsmouth City Council,PCC,Adult Social Care,Social Care Activities,Adult Care,Third Party Payments,Other establishments,18-Sep-23,6737856,333.4,SUPPLIER,TWO SAINTS LTD,300000020462955
Portsmouth City Council,PCC,Adult Social Care,Social Care Activities,Adult Care,Third Party Payments,Other establishments,18-Sep-23,6737856,533.44,SUPPLIER,TWO SAINTS LTD,300000020462955
Portsmouth City Council,PCC,Adult Social Care,Social Care Activities,Adult Care,Third Party Payments,Other establishments,18-Sep-23,6737856,866.84,SUPPLIER,TWO SAINTS LTD,300000020462955
Portsmouth City Council,PCC,Adult Social Care,Social Care Activities,Adult Care,Third Party Payments,Other establishments,18-Sep-23,6737856,"1,000.20",SUPPLIER,TWO SAINTS LTD,300000020462955
Portsmouth City Council,PCC,Adult Social Care,Social Care Activities,Adult Care,Third Party Payments,Other establishments,18-Sep-23,6737856,"1,000.20",SUPPLIER,TWO SAINTS LTD,300000020462955
Portsmouth City Council,PCC,Adult Social Care,Social Care Activities,Adult Care,Third Party Payments,Other establishments,18-Sep-23,6737856,"1,000.20",SUPPLIER,TWO SAINTS LTD,300000020462955
Portsmouth City Council,PCC,Adult Social Care,Social Care Activities,Adult Care,Third Party Payments,Other establishments,18-Sep-23,6737856,"1,033.54",SUPPLIER,TWO SAINTS LTD,300000020462955
Portsmouth City Council,PCC,Adult Social Care,Social Care Activities,Adult Care,Third Party Payments,Other establishments,18-Sep-23,6737856,"1,033.54",SUPPLIER,TWO SAINTS LTD,300000020462955
Portsmouth City Council,PCC,Adult Social Care,Social Care Activities,Adult Care,Third Party Payments,Other establishments,18-Sep-23,6737856,"1,033.54",SUPPLIER,TWO SAINTS LTD,300000020462955
Portsmouth City Council,PCC,Adult Social Care,Social Care Activities,Adult Care,Third Party Payments,Other establishments,18-Sep-23,6737856,"1,033.54",SUPPLIER,TWO SAINTS LTD,300000020462955
Portsmouth City Council,PCC,Adult Social Care,Social Care Activities,Adult Care,Third Party Payments,Other establishments,18-Sep-23,6737856,"1,033.54",SUPPLIER,TWO SAINTS LTD,300000020462955
Portsmouth City Council,PCC,Adult Social Care,Social Care Activities,Adult Care,Third Party Payments,Other establishments,18-Sep-23,6737856,"1,033.54",SUPPLIER,TWO SAINTS LTD,300000020462955
Portsmouth City Council,PCC,Adult Social Care,Social Care Activities,Adult Care,Third Party Payments,Other establishments,18-Sep-23,6737856,"1,033.54",SUPPLIER,TWO SAINTS LTD,300000020462955
Portsmouth City Council,PCC,Adult Social Care,Social Care Activities,Adult Care,Third Party Payments,Other establishments,18-Sep-23,6737856,"1,033.54",SUPPLIER,TWO SAINTS LTD,300000020462955
Portsmouth City Council,PCC,Adult Social Care,Social Care Activities,Adult Care,Third Party Payments,Other establishments,18-Sep-23,6737856,"1,033.54",SUPPLIER,TWO SAINTS LTD,300000020462955
Portsmouth City Council,PCC,Adult Social Care,Social Care Activities,Adult Care,Third Party Payments,Other establishments,18-Sep-23,6737856,"1,033.54",SUPPLIER,TWO SAINTS LTD,300000020462955
Portsmouth City Council,PCC,Adult Social Care,Social Care Activities,Adult Care,Third Party Payments,Other establishments,18-Sep-23,6737856,"1,033.54",SUPPLIER,TWO SAINTS LTD,300000020462955
Portsmouth City Council,PCC,Adult Social Care,Social Care Activities,Adult Care,Third Party Payments,Other establishments,18-Sep-23,6737856,"1,033.54",SUPPLIER,TWO SAINTS LTD,300000020462955
Portsmouth City Council,PCC,Adult Social Care,Social Care Activities,Adult Care,Third Party Payments,Other establishments,18-Sep-23,6737856,"1,033.54",SUPPLIER,TWO SAINTS LTD,300000020462955
Portsmouth City Council,PCC,Adult Social Care,Social Care Activities,Adult Care,Third Party Payments,Other establishments,18-Sep-23,6737856,"1,033.54",SUPPLIER,TWO SAINTS LTD,300000020462955
Portsmouth City Council,PCC,Adult Social Care,Social Care Activities,Adult Care,Third Party Payments,Other establishments,18-Sep-23,6737856,"1,202.40",SUPPLIER,TWO SAINTS LTD,300000020462955
Portsmouth City Council,PCC,Adult Social Care,Social Care Activities,Adult Care,Third Party Payments,Other establishments,18-Sep-23,6737856,"4,134.16",SUPPLIER,TWO SAINTS LTD,300000020462955
Portsmouth City Council,PCC,Adult Social Care,Social Care Activities,Adult Care,Third Party Payments,Joint authorities,18-Sep-23,6737856,"5,010.00",SUPPLIER,TWO SAINTS LTD,300000020462955
Portsmouth City Council,PCC,Adult Social Care,Social Care Activities,Adult Care,Third Party Payments,Other establishments,18-Sep-23,6737856,"5,763.52",SUPPLIER,TWO SAINTS LTD,300000020462955
Portsmouth City Council,PCC,Adult Social Care,Social Care Activities,Adult Care,Third Party Payments,Joint authorities,18-Sep-23,6737856,"6,212.40",SUPPLIER,TWO SAINTS LTD,300000020462955
Portsmouth City Council,PCC,Adult Social Care,Social Care Activities,Adult Care,Third Party Payments,Joint authorities,18-Sep-23,6737856,"6,212.40",SUPPLIER,TWO SAINTS LTD,300000020462955
Portsmouth City Council,PCC,Adult Social Care,Social Care Activities,Adult Care,Third Party Payments,Other establishments,18-Sep-23,6737856,"6,381.04",SUPPLIER,TWO SAINTS LTD,300000020462955
Portsmouth City Council,PCC,Adult Social Care,Social Care Activities,Adult Care,Third Party Payments,Other establishments,18-Sep-23,6737856,"6,381.04",SUPPLIER,TWO SAINTS LTD,300000020462955
Portsmouth City Council,PCC,Adult Social Care,Social Care Activities,Adult Care,Third Party Payments,Other establishments,18-Sep-23,6737856,"6,381.04",SUPPLIER,TWO SAINTS LTD,300000020462955
Portsmouth City Council,PCC,Adult Social Care,Social Care Activities,Adult Care,Third Party Payments,Other establishments,18-Sep-23,6737856,"6,381.04",SUPPLIER,TWO SAINTS LTD,300000020462955
Portsmouth City Council,PCC,Adult Social Care,Social Care Activities,Adult Care,Third Party Payments,Other establishments,18-Sep-23,6737856,"6,381.04",SUPPLIER,TWO SAINTS LTD,300000020462955
Portsmouth City Council,PCC,Adult Social Care,Social Care Activities,Adult Care,Third Party Payments,Other establishments,18-Sep-23,6737856,"6,381.04",SUPPLIER,TWO SAINTS LTD,300000020462955
Portsmouth City Council,PCC,Adult Social Care,Physical Support Older People (85+),Adult Care,Third Party Payments,Other establishments,01-Sep-23,6735795,145.68,SUPPLIER,CEDDAR HOUSE,300000020461696
Portsmouth City Council,PCC,Adult Social Care,Physical Support Older People (85+),Adult Care,Third Party Payments,Other establishments,01-Sep-23,6735795,194.24,SUPPLIER,CEDDAR HOUSE,300000020461696
Portsmouth City Council,PCC,Adult Social Care,Physical Support Older People (85+),Adult Care,Third Party Payments,Other establishments,01-Sep-23,6735795,194.24,SUPPLIER,CEDDAR HOUSE,300000020461696
Portsmouth City Council,PCC,Adult Social Care,Physical Support Adults (18 - 64),Adult Care,Third Party Payments,Other establishments,01-Sep-23,6735795,194.24,SUPPLIER,CEDDAR HOUSE,300000020461696
Portsmouth City Council,PCC,Adult Social Care,Physical Support Older People (85+),Adult Care,Third Party Payments,Other establishments,01-Sep-23,6735795,291.36,SUPPLIER,CEDDAR HOUSE,300000020461696
Portsmouth City Council,PCC,Adult Social Care,Physical Support Older People (85+),Adult Care,Third Party Payments,Other establishments,01-Sep-23,6735795,339.92,SUPPLIER,CEDDAR HOUSE,300000020461696
Portsmouth City Council,PCC,Adult Social Care,Physical Support Older People (85+),Adult Care,Third Party Payments,Other establishments,01-Sep-23,6735795,388.48,SUPPLIER,CEDDAR HOUSE,300000020461696
Portsmouth City Council,PCC,Adult Social Care,Physical Support Older People (85+),Adult Care,Third Party Payments,Other establishments,01-Sep-23,6735795,388.48,SUPPLIER,CEDDAR HOUSE,300000020461696
Portsmouth City Council,PCC,Adult Social Care,Physical Support Older People (85+),Adult Care,Third Party Payments,Other establishments,01-Sep-23,6735795,388.48,SUPPLIER,CEDDAR HOUSE,300000020461696
Portsmouth City Council,PCC,Adult Social Care,Physical Support Older People (85+),Adult Care,Third Party Payments,Other establishments,01-Sep-23,6735795,582.72,SUPPLIER,CEDDAR HOUSE,300000020461696
Portsmouth City Council,PCC,Adult Social Care,Physical Support Older People (85+),Adult Care,Third Party Payments,Other establishments,01-Sep-23,6735795,582.72,SUPPLIER,CEDDAR HOUSE,300000020461696
Portsmouth City Council,PCC,Adult Social Care,Physical Support Older People (85+),Adult Care,Third Party Payments,Other establishments,01-Sep-23,6735795,582.72,SUPPLIER,CEDDAR HOUSE,300000020461696
Portsmouth City Council,PCC,Adult Social Care,Physical Support Older People (85+),Adult Care,Third Party Payments,Other establishments,01-Sep-23,6735795,776.96,SUPPLIER,CEDDAR HOUSE,300000020461696
Portsmouth City Council,PCC,Adult Social Care,Social Care Activities,Adult Care,Third Party Payments,Other establishments,04-Sep-23,6735868,"1,687.50",SUPPLIER,THE OUT OF TOWN CENTRE LIMITED,300000020478605
Portsmouth City Council,PCC,Adult Social Care,Social Care Activities,Adult Care,Third Party Payments,Other establishments,04-Sep-23,6735868,"5,625.00",SUPPLIER,THE OUT OF TOWN CENTRE LIMITED,300000020478605
Portsmouth City Council,PCC,Adult Social Care,Physical Support Older People (85+),Adult Care,Third Party Payments,Other establishments,01-Sep-23,6735777,-91.8,SUPPLIER,QUALITCARE24-7 LTD,300000020482021
Portsmouth City Council,PCC,Adult Social Care,Social Support - Support for Carer,Adult Care,Third Party Payments,Other establishments,01-Sep-23,6735777,4.59,SUPPLIER,QUALITCARE24-7 LTD,300000020482021
Portsmouth City Council,PCC,Adult Social Care,Social Support - Support for Carer,Adult Care,Third Party Payments,Other establishments,01-Sep-23,6735777,110.16,SUPPLIER,QUALITCARE24-7 LTD,300000020482021
Portsmouth City Council,PCC,Adult Social Care,Physical Support Older People (85+),Adult Care,Third Party Payments,Other establishments,01-Sep-23,6735777,89.28,SUPPLIER,QUALITCARE24-7 LTD,300000020482021
Portsmouth City Council,PCC,Adult Social Care,Social Support - Support for Carer,Adult Care,Third Party Payments,Other establishments,01-Sep-23,6735777,91.8,SUPPLIER,QUALITCARE24-7 LTD,300000020482021
Portsmouth City Council,PCC,Adult Social Care,Physical Support Older People (85+),Adult Care,Third Party Payments,Other establishments,01-Sep-23,6735777,100.44,SUPPLIER,QUALITCARE24-7 LTD,300000020482021
Portsmouth City Council,PCC,Adult Social Care,Social Care Activities,Adult Care,Third Party Payments,Other establishments,01-Sep-23,6735777,111.6,SUPPLIER,QUALITCARE24-7 LTD,300000020482021
Portsmouth City Council,PCC,Adult Social Care,Physical Support Older People (85+),Adult Care,Third Party Payments,Other establishments,01-Sep-23,6735777,111.6,SUPPLIER,QUALITCARE24-7 LTD,300000020482021
Portsmouth City Council,PCC,Adult Social Care,Social Care Activities,Adult Care,Third Party Payments,Other establishments,01-Sep-23,6735777,133.92,SUPPLIER,QUALITCARE24-7 LTD,300000020482021
Portsmouth City Council,PCC,Adult Social Care,Social Care Activities,Adult Care,Third Party Payments,Other establishments,01-Sep-23,6735777,133.92,SUPPLIER,QUALITCARE24-7 LTD,300000020482021
Portsmouth City Council,PCC,Adult Social Care,Physical Support Older People (85+),Adult Care,Third Party Payments,Other establishments,01-Sep-23,6735777,133.92,SUPPLIER,QUALITCARE24-7 LTD,300000020482021
Portsmouth City Council,PCC,Adult Social Care,Physical Support Older People (85+),Adult Care,Third Party Payments,Other establishments,01-Sep-23,6735777,133.92,SUPPLIER,QUALITCARE24-7 LTD,300000020482021
Portsmouth City Council,PCC,Adult Social Care,Social Support - Support for Carer,Adult Care,Third Party Payments,Other establishments,01-Sep-23,6735777,165.24,SUPPLIER,QUALITCARE24-7 LTD,300000020482021
Portsmouth City Council,PCC,Adult Social Care,Social Care Activities,Adult Care,Third Party Payments,Other establishments,01-Sep-23,6735777,167.4,SUPPLIER,QUALITCARE24-7 LTD,300000020482021
Portsmouth City Council,PCC,Adult Social Care,Social Care Activities,Adult Care,Third Party Payments,Other establishments,01-Sep-23,6735777,167.4,SUPPLIER,QUALITCARE24-7 LTD,300000020482021
Portsmouth City Council,PCC,Adult Social Care,Social Care Activities,Adult Care,Third Party Payments,Other establishments,01-Sep-23,6735777,223.2,SUPPLIER,QUALITCARE24-7 LTD,300000020482021
Portsmouth City Council,PCC,Adult Social Care,Physical Support Older People (85+),Adult Care,Third Party Payments,Other establishments,01-Sep-23,6735777,223.2,SUPPLIER,QUALITCARE24-7 LTD,300000020482021
Portsmouth City Council,PCC,Adult Social Care,Physical Support Older People (85+),Adult Care,Third Party Payments,Other establishments,01-Sep-23,6735777,223.2,SUPPLIER,QUALITCARE24-7 LTD,300000020482021
Portsmouth City Council,PCC,Adult Social Care,Physical Support Older People (85+),Adult Care,Third Party Payments,Other establishments,01-Sep-23,6735777,234.36,SUPPLIER,QUALITCARE24-7 LTD,300000020482021
Portsmouth City Council,PCC,Adult Social Care,Social Care Activities,Adult Care,Third Party Payments,Other establishments,01-Sep-23,6735777,245.52,SUPPLIER,QUALITCARE24-7 LTD,300000020482021
Portsmouth City Council,PCC,Adult Social Care,Social Care Activities,Adult Care,Third Party Payments,Other establishments,01-Sep-23,6735777,288,SUPPLIER,QUALITCARE24-7 LTD,300000020482021
Portsmouth City Council,PCC,Adult Social Care,Social Care Activities,Adult Care,Third Party Payments,Other establishments,01-Sep-23,6735777,288,SUPPLIER,QUALITCARE24-7 LTD,300000020482021
Portsmouth City Council,PCC,Adult Social Care,Mental Health Support Older People (65 - 74),Adult Care,Third Party Payments,Other establishments,01-Sep-23,6735777,312.48,SUPPLIER,QUALITCARE24-7 LTD,300000020482021
Portsmouth City Council,PCC,Adult Social Care,Physical Support Older People (85+),Adult Care,Third Party Payments,Other establishments,01-Sep-23,6735777,312.48,SUPPLIER,QUALITCARE24-7 LTD,300000020482021
Portsmouth City Council,PCC,Adult Social Care,Physical Support Older People (85+),Adult Care,Third Party Payments,Other establishments,01-Sep-23,6735777,312.48,SUPPLIER,QUALITCARE24-7 LTD,300000020482021
Portsmouth City Council,PCC,Adult Social Care,Physical Support Older People (85+),Adult Care,Third Party Payments,Other establishments,01-Sep-23,6735777,312.48,SUPPLIER,QUALITCARE24-7 LTD,300000020482021
Portsmouth City Council,PCC,Adult Social Care,Physical Support Older People (85+),Adult Care,Third Party Payments,Other establishments,01-Sep-23,6735777,312.48,SUPPLIER,QUALITCARE24-7 LTD,300000020482021
Portsmouth City Council,PCC,Adult Social Care,Physical Support Older People (85+),Adult Care,Third Party Payments,Other establishments,01-Sep-23,6735777,312.48,SUPPLIER,QUALITCARE24-7 LTD,300000020482021
Portsmouth City Council,PCC,Adult Social Care,Social Care Activities,Adult Care,Third Party Payments,Other establishments,01-Sep-23,6735777,334.8,SUPPLIER,QUALITCARE24-7 LTD,300000020482021
Portsmouth City Council,PCC,Adult Social Care,Social Care Activities,Adult Care,Third Party Payments,Other establishments,01-Sep-23,6735777,334.8,SUPPLIER,QUALITCARE24-7 LTD,300000020482021
Portsmouth City Council,PCC,Adult Social Care,Social Care Activities,Adult Care,Third Party Payments,Other establishments,01-Sep-23,6735777,390.6,SUPPLIER,QUALITCARE24-7 LTD,300000020482021
Portsmouth City Council,PCC,Adult Social Care,Physical Support Older People (85+),Adult Care,Third Party Payments,Other establishments,01-Sep-23,6735777,401.76,SUPPLIER,QUALITCARE24-7 LTD,300000020482021
Portsmouth City Council,PCC,Adult Social Care,Physical Support Older People (85+),Adult Care,Third Party Payments,Other establishments,01-Sep-23,6735777,424.08,SUPPLIER,QUALITCARE24-7 LTD,300000020482021
Portsmouth City Council,PCC,Adult Social Care,Physical Support Older People (85+),Adult Care,Third Party Payments,Other establishments,01-Sep-23,6735777,424.08,SUPPLIER,QUALITCARE24-7 LTD,300000020482021
Portsmouth City Council,PCC,Adult Social Care,Social Support - Support for Carer,Adult Care,Third Party Payments,Other establishments,01-Sep-23,6735777,440.64,SUPPLIER,QUALITCARE24-7 LTD,300000020482021
Portsmouth City Council,PCC,Adult Social Care,Physical Support Older People (85+),Adult Care,Third Party Payments,Other establishments,01-Sep-23,6735777,468.72,SUPPLIER,QUALITCARE24-7 LTD,300000020482021
Portsmouth City Council,PCC,Adult Social Care,Physical Support Older People (85+),Adult Care,Third Party Payments,Other establishments,01-Sep-23,6735777,468.72,SUPPLIER,QUALITCARE24-7 LTD,300000020482021
Portsmouth City Council,PCC,Adult Social Care,Social Care Activities,Adult Care,Third Party Payments,Other establishments,01-Sep-23,6735777,502.2,SUPPLIER,QUALITCARE24-7 LTD,300000020482021
Portsmouth City Council,PCC,Adult Social Care,Social Care Activities,Adult Care,Third Party Payments,Other establishments,01-Sep-23,6735777,502.2,SUPPLIER,QUALITCARE24-7 LTD,300000020482021
Portsmouth City Council,PCC,Adult Social Care,Physical Support Older People (85+),Adult Care,Third Party Payments,Other establishments,01-Sep-23,6735777,530.1,SUPPLIER,QUALITCARE24-7 LTD,300000020482021
Portsmouth City Council,PCC,Adult Social Care,Physical Support Older People (85+),Adult Care,Third Party Payments,Other establishments,01-Sep-23,6735777,530.1,SUPPLIER,QUALITCARE24-7 LTD,300000020482021
Portsmouth City Council,PCC,Adult Social Care,Social Care Activities,Adult Care,Third Party Payments,Other establishments,01-Sep-23,6735777,552.42,SUPPLIER,QUALITCARE24-7 LTD,300000020482021
Portsmouth City Council,PCC,Adult Social Care,Physical Support Older People (85+),Adult Care,Third Party Payments,Other establishments,01-Sep-23,6735777,558,SUPPLIER,QUALITCARE24-7 LTD,300000020482021
Portsmouth City Council,PCC,Adult Social Care,Social Care Activities,Adult Care,Third Party Payments,Other establishments,01-Sep-23,6735777,624.96,SUPPLIER,QUALITCARE24-7 LTD,300000020482021
Portsmouth City Council,PCC,Adult Social Care,Social Care Activities,Adult Care,Third Party Payments,Other establishments,01-Sep-23,6735777,624.96,SUPPLIER,QUALITCARE24-7 LTD,300000020482021
Portsmouth City Council,PCC,Adult Social Care,Physical Support Adults (18 - 64),Adult Care,Third Party Payments,Other establishments,01-Sep-23,6735777,624.96,SUPPLIER,QUALITCARE24-7 LTD,300000020482021
Portsmouth City Council,PCC,Adult Social Care,Physical Support Older People (85+),Adult Care,Third Party Payments,Other establishments,01-Sep-23,6735777,624.96,SUPPLIER,QUALITCARE24-7 LTD,300000020482021
Portsmouth City Council,PCC,Adult Social Care,Physical Support Older People (85+),Adult Care,Third Party Payments,Other establishments,01-Sep-23,6735777,624.96,SUPPLIER,QUALITCARE24-7 LTD,300000020482021
Portsmouth City Council,PCC,Adult Social Care,Physical Support Older People (85+),Adult Care,Third Party Payments,Other establishments,01-Sep-23,6735777,624.96,SUPPLIER,QUALITCARE24-7 LTD,300000020482021
Portsmouth City Council,PCC,Adult Social Care,Physical Support Older People (85+),Adult Care,Third Party Payments,Other establishments,01-Sep-23,6735777,624.96,SUPPLIER,QUALITCARE24-7 LTD,300000020482021
Portsmouth City Council,PCC,Adult Social Care,Physical Support Older People (85+),Adult Care,Third Party Payments,Other establishments,01-Sep-23,6735777,669.6,SUPPLIER,QUALITCARE24-7 LTD,300000020482021
Portsmouth City Council,PCC,Adult Social Care,Physical Support Older People (85+),Adult Care,Third Party Payments,Other establishments,01-Sep-23,6735777,669.6,SUPPLIER,QUALITCARE24-7 LTD,300000020482021
Portsmouth City Council,PCC,Adult Social Care,Physical Support Older People (85+),Adult Care,Third Party Payments,Other establishments,01-Sep-23,6735777,669.6,SUPPLIER,QUALITCARE24-7 LTD,300000020482021
Portsmouth City Council,PCC,Adult Social Care,Physical Support Older People (85+),Adult Care,Third Party Payments,Other establishments,01-Sep-23,6735777,691.92,SUPPLIER,QUALITCARE24-7 LTD,300000020482021
Portsmouth City Council,PCC,Adult Social Care,Physical Support Older People (85+),Adult Care,Third Party Payments,Other establishments,01-Sep-23,6735777,691.92,SUPPLIER,QUALITCARE24-7 LTD,300000020482021
Portsmouth City Council,PCC,Adult Social Care,Social Care Activities,Adult Care,Third Party Payments,Other establishments,01-Sep-23,6735777,703.08,SUPPLIER,QUALITCARE24-7 LTD,300000020482021
Portsmouth City Council,PCC,Adult Social Care,Physical Support Older People (85+),Adult Care,Third Party Payments,Other establishments,01-Sep-23,6735777,736.56,SUPPLIER,QUALITCARE24-7 LTD,300000020482021
Portsmouth City Council,PCC,Adult Social Care,Physical Support Older People (85+),Adult Care,Third Party Payments,Other establishments,01-Sep-23,6735777,736.56,SUPPLIER,QUALITCARE24-7 LTD,300000020482021
Portsmouth City Council,PCC,Adult Social Care,Physical Support Older People (85+),Adult Care,Third Party Payments,Other establishments,01-Sep-23,6735777,781.2,SUPPLIER,QUALITCARE24-7 LTD,300000020482021
Portsmouth City Council,PCC,Adult Social Care,Physical Support Older People (85+),Adult Care,Third Party Payments,Other establishments,01-Sep-23,6735777,781.2,SUPPLIER,QUALITCARE24-7 LTD,300000020482021
Portsmouth City Council,PCC,Adult Social Care,Physical Support Older People (85+),Adult Care,Third Party Payments,Other establishments,01-Sep-23,6735777,781.2,SUPPLIER,QUALITCARE24-7 LTD,300000020482021
Portsmouth City Council,PCC,Adult Social Care,Physical Support Older People (85+),Adult Care,Third Party Payments,Other establishments,01-Sep-23,6735777,803.52,SUPPLIER,QUALITCARE24-7 LTD,300000020482021
Portsmouth City Council,PCC,Adult Social Care,Physical Support Adults (18 - 64),Adult Care,Third Party Payments,Other establishments,01-Sep-23,6735777,848.16,SUPPLIER,QUALITCARE24-7 LTD,300000020482021
Portsmouth City Council,PCC,Adult Social Care,Physical Support Adults (18 - 64),Adult Care,Third Party Payments,Other establishments,01-Sep-23,6735777,848.16,SUPPLIER,QUALITCARE24-7 LTD,300000020482021
Portsmouth City Council,PCC,Adult Social Care,Physical Support Older People (85+),Adult Care,Third Party Payments,Other establishments,01-Sep-23,6735777,892.8,SUPPLIER,QUALITCARE24-7 LTD,300000020482021
Portsmouth City Council,PCC,Adult Social Care,Physical Support Older People (85+),Adult Care,Third Party Payments,Other establishments,01-Sep-23,6735777,892.8,SUPPLIER,QUALITCARE24-7 LTD,300000020482021
Portsmouth City Council,PCC,Adult Social Care,Physical Support Adults (18 - 64),Adult Care,Third Party Payments,Other establishments,01-Sep-23,6735777,937.44,SUPPLIER,QUALITCARE24-7 LTD,300000020482021
Portsmouth City Council,PCC,Adult Social Care,Physical Support Older People (85+),Adult Care,Third Party Payments,Other establishments,01-Sep-23,6735777,937.44,SUPPLIER,QUALITCARE24-7 LTD,300000020482021
Portsmouth City Council,PCC,Adult Social Care,Physical Support Older People (85+),Adult Care,Third Party Payments,Other establishments,01-Sep-23,6735777,937.44,SUPPLIER,QUALITCARE24-7 LTD,300000020482021
Portsmouth City Council,PCC,Adult Social Care,Physical Support Older People (85+),Adult Care,Third Party Payments,Other establishments,01-Sep-23,6735777,937.44,SUPPLIER,QUALITCARE24-7 LTD,300000020482021
Portsmouth City Council,PCC,Adult Social Care,Physical Support Older People (85+),Adult Care,Third Party Payments,Other establishments,01-Sep-23,6735777,937.44,SUPPLIER,QUALITCARE24-7 LTD,300000020482021
Portsmouth City Council,PCC,Adult Social Care,Physical Support Older People (85+),Adult Care,Third Party Payments,Other establishments,01-Sep-23,6735777,937.44,SUPPLIER,QUALITCARE24-7 LTD,300000020482021
Portsmouth City Council,PCC,Adult Social Care,Physical Support Older People (85+),Adult Care,Third Party Payments,Other establishments,01-Sep-23,6735777,937.44,SUPPLIER,QUALITCARE24-7 LTD,300000020482021
Portsmouth City Council,PCC,Adult Social Care,Physical Support Older People (85+),Adult Care,Third Party Payments,Other establishments,01-Sep-23,6735777,"1,015.56",SUPPLIER,QUALITCARE24-7 LTD,300000020482021
Portsmouth City Council,PCC,Adult Social Care,Physical Support Older People (85+),Adult Care,Third Party Payments,Other establishments,01-Sep-23,6735777,"1,015.56",SUPPLIER,QUALITCARE24-7 LTD,300000020482021
Portsmouth City Council,PCC,Adult Social Care,Physical Support Older People (85+),Adult Care,Third Party Payments,Other establishments,01-Sep-23,6735777,"1,071.36",SUPPLIER,QUALITCARE24-7 LTD,300000020482021
Portsmouth City Council,PCC,Adult Social Care,Physical Support Adults (18 - 64),Adult Care,Third Party Payments,Other establishments,01-Sep-23,6735777,"1,093.68",SUPPLIER,QUALITCARE24-7 LTD,300000020482021
Portsmouth City Council,PCC,Adult Social Care,Physical Support Older People (85+),Adult Care,Third Party Payments,Other establishments,01-Sep-23,6735777,"1,093.68",SUPPLIER,QUALITCARE24-7 LTD,300000020482021
Portsmouth City Council,PCC,Adult Social Care,Physical Support Older People (85+),Adult Care,Third Party Payments,Other establishments,01-Sep-23,6735777,"1,093.68",SUPPLIER,QUALITCARE24-7 LTD,300000020482021
Portsmouth City Council,PCC,Adult Social Care,Physical Support Older People (85+),Adult Care,Third Party Payments,Other establishments,01-Sep-23,6735777,"1,093.68",SUPPLIER,QUALITCARE24-7 LTD,300000020482021
Portsmouth City Council,PCC,Adult Social Care,Physical Support Older People (85+),Adult Care,Third Party Payments,Other establishments,01-Sep-23,6735777,"1,093.68",SUPPLIER,QUALITCARE24-7 LTD,300000020482021
Portsmouth City Council,PCC,Adult Social Care,Physical Support Older People (85+),Adult Care,Third Party Payments,Other establishments,01-Sep-23,6735777,"1,093.68",SUPPLIER,QUALITCARE24-7 LTD,300000020482021
Portsmouth City Council,PCC,Adult Social Care,Social Care Activities,Adult Care,Third Party Payments,Other establishments,01-Sep-23,6735777,"1,155.06",SUPPLIER,QUALITCARE24-7 LTD,300000020482021
Portsmouth City Council,PCC,Adult Social Care,Social Care Activities,Adult Care,Third Party Payments,Other establishments,01-Sep-23,6735777,"1,155.06",SUPPLIER,QUALITCARE24-7 LTD,300000020482021
Portsmouth City Council,PCC,Adult Social Care,Physical Support Older People (85+),Adult Care,Third Party Payments,Other establishments,01-Sep-23,6735777,"1,160.64",SUPPLIER,QUALITCARE24-7 LTD,300000020482021
Portsmouth City Council,PCC,Adult Social Care,Physical Support Older People (85+),Adult Care,Third Party Payments,Other establishments,01-Sep-23,6735777,"1,160.64",SUPPLIER,QUALITCARE24-7 LTD,300000020482021
Portsmouth City Council,PCC,Adult Social Care,Physical Support Older People (85+),Adult Care,Third Party Payments,Other establishments,01-Sep-23,6735777,"1,205.28",SUPPLIER,QUALITCARE24-7 LTD,300000020482021
Portsmouth City Council,PCC,Adult Social Care,Physical Support Older People (85+),Adult Care,Third Party Payments,Other establishments,01-Sep-23,6735777,"1,205.28",SUPPLIER,QUALITCARE24-7 LTD,300000020482021
Portsmouth City Council,PCC,Adult Social Care,Physical Support Adults (18 - 64),Adult Care,Third Party Payments,Other establishments,01-Sep-23,6735777,"1,249.92",SUPPLIER,QUALITCARE24-7 LTD,300000020482021
Portsmouth City Council,PCC,Adult Social Care,Physical Support Adults (18 - 64),Adult Care,Third Party Payments,Other establishments,01-Sep-23,6735777,"1,249.92",SUPPLIER,QUALITCARE24-7 LTD,300000020482021
Portsmouth City Council,PCC,Adult Social Care,Physical Support Older People (85+),Adult Care,Third Party Payments,Other establishments,01-Sep-23,6735777,"1,249.92",SUPPLIER,QUALITCARE24-7 LTD,300000020482021
Portsmouth City Council,PCC,Adult Social Care,Physical Support Older People (85+),Adult Care,Third Party Payments,Other establishments,01-Sep-23,6735777,"1,249.92",SUPPLIER,QUALITCARE24-7 LTD,300000020482021
Portsmouth City Council,PCC,Adult Social Care,Physical Support Older People (85+),Adult Care,Third Party Payments,Other establishments,01-Sep-23,6735777,"1,249.92",SUPPLIER,QUALITCARE24-7 LTD,300000020482021
Portsmouth City Council,PCC,Adult Social Care,Physical Support Older People (85+),Adult Care,Third Party Payments,Other establishments,01-Sep-23,6735777,"1,272.24",SUPPLIER,QUALITCARE24-7 LTD,300000020482021
Portsmouth City Council,PCC,Adult Social Care,Physical Support Older People (85+),Adult Care,Third Party Payments,Other establishments,01-Sep-23,6735777,"1,272.24",SUPPLIER,QUALITCARE24-7 LTD,300000020482021
Portsmouth City Council,PCC,Adult Social Care,Physical Support Older People (85+),Adult Care,Third Party Payments,Other establishments,01-Sep-23,6735777,"1,355.94",SUPPLIER,QUALITCARE24-7 LTD,300000020482021
Portsmouth City Council,PCC,Adult Social Care,Physical Support Older People (85+),Adult Care,Third Party Payments,Other establishments,01-Sep-23,6735777,"1,355.94",SUPPLIER,QUALITCARE24-7 LTD,300000020482021
Portsmouth City Council,PCC,Adult Social Care,Social Care Activities,Adult Care,Third Party Payments,Other establishments,01-Sep-23,6735777,"1,406.16",SUPPLIER,QUALITCARE24-7 LTD,300000020482021
Portsmouth City Council,PCC,Adult Social Care,Social Care Activities,Adult Care,Third Party Payments,Other establishments,01-Sep-23,6735777,"1,406.16",SUPPLIER,QUALITCARE24-7 LTD,300000020482021
Portsmouth City Council,PCC,Adult Social Care,Social Care Activities,Adult Care,Third Party Payments,Other establishments,01-Sep-23,6735777,"1,406.16",SUPPLIER,QUALITCARE24-7 LTD,300000020482021
Portsmouth City Council,PCC,Adult Social Care,Social Care Activities,Adult Care,Third Party Payments,Other establishments,01-Sep-23,6735777,"1,406.16",SUPPLIER,QUALITCARE24-7 LTD,300000020482021
Portsmouth City Council,PCC,Adult Social Care,Physical Support Older People (85+),Adult Care,Third Party Payments,Other establishments,01-Sep-23,6735777,"1,406.16",SUPPLIER,QUALITCARE24-7 LTD,300000020482021
Portsmouth City Council,PCC,Adult Social Care,Physical Support Older People (85+),Adult Care,Third Party Payments,Other establishments,01-Sep-23,6735777,"1,406.16",SUPPLIER,QUALITCARE24-7 LTD,300000020482021
Portsmouth City Council,PCC,Adult Social Care,Physical Support Older People (85+),Adult Care,Third Party Payments,Other establishments,01-Sep-23,6735777,"1,406.16",SUPPLIER,QUALITCARE24-7 LTD,300000020482021
Portsmouth City Council,PCC,Adult Social Care,Physical Support Older People (85+),Adult Care,Third Party Payments,Other establishments,01-Sep-23,6735777,"1,406.16",SUPPLIER,QUALITCARE24-7 LTD,300000020482021
Portsmouth City Council,PCC,Adult Social Care,Physical Support Older People (85+),Adult Care,Third Party Payments,Other establishments,01-Sep-23,6735777,"1,406.16",SUPPLIER,QUALITCARE24-7 LTD,300000020482021
